Workbook

Sheet Übersicht
B1: Register nummer | C1: Projekt | D1: Modus | E1: Start | F1: Konzept | G1: Entwicklung | H1: Fertig | I1: Pflege | J1: SORT | AB1: Modi
B2: 6 | C2: =HYPERLINK(CONCATENATE("#",MID(INDEX(xmap,B2),FIND("]",INDEX(xmap,B2))+1,31),"!A1"),MID(INDEX(xmap,B2),FIND("]",INDEX(xmap,B2))+1,31)) -> Projekt_1 | D2: Fast | E2: 2013-07-01 | F2: =IF(B2>0,VLOOKUP(D2,INDIRECT("'"&$C2&"'!A9:E11"),2,0)*30+E2,"") -> 2013-08-30 | G2: =IF(B2>0,VLOOKUP(D2,INDIRECT("'"&$C2&"'!A9:E11"),3,0)*30+F2,"") -> 2013-10-29 | H2: =IF(B2>0,VLOOKUP($D2,INDIRECT("'"&$C2&"'!A9:E11"),4,0)*30+G2,"") -> 2013-12-28 | I2: =IF(B2>0,VLOOKUP($D2,INDIRECT("'"&$C2&"'!A9:E11"),5,0)*30+H2,"") -> 2014-02-26 | J2: 1 | AB2: Fast
B3: 7 | C3: =HYPERLINK(CONCATENATE("#",MID(INDEX(xmap,B3),FIND("]",INDEX(xmap,B3))+1,31),"!A1"),MID(INDEX(xmap,B3),FIND("]",INDEX(xmap,B3))+1,31)) -> Projekt_2 | D3: Medium | E3: 2013-08-01 | F3: 2013-10-07T12:00:00 | G3: 2013-12-14 | H3: 2014-02-19T12:00:00 | I3: 2014-04-28 | J3: 2 | AB3: Medium
B4: 8 | C4: =HYPERLINK(CONCATENATE("#",MID(INDEX(xmap,B4),FIND("]",INDEX(xmap,B4))+1,31),"!A1"),MID(INDEX(xmap,B4),FIND("]",INDEX(xmap,B4))+1,31)) -> Projekt_3 | D4: Slow | E4: 2013-09-01 | F4: 2013-11-15 | G4: 2014-01-29 | H4: 2014-04-14 | I4: 2014-06-28 | J4: 3 | AB4: Slow
B5: 9 | C5: =HYPERLINK(CONCATENATE("#",MID(INDEX(xmap,B5),FIND("]",INDEX(xmap,B5))+1,31),"!A1"),MID(INDEX(xmap,B5),FIND("]",INDEX(xmap,B5))+1,31)) -> Projekt_4 | D5: Exclude | E5: 2013-10-01 | J5: 4 | AB5: Exclude
B6: 10 | C6: =HYPERLINK(CONCATENATE("#",MID(INDEX(xmap,B6),FIND("]",INDEX(xmap,B6))+1,31),"!A1"),MID(INDEX(xmap,B6),FIND("]",INDEX(xmap,B6))+1,31)) -> Leer | D6: Exclude | J6: 5
B7: 10 | C7: =HYPERLINK(CONCATENATE("#",MID(INDEX(xmap,B7),FIND("]",INDEX(xmap,B7))+1,31),"!A1"),MID(INDEX(xmap,B7),FIND("]",INDEX(xmap,B7))+1,31)) -> Leer | D7: Exclude | J7: 6
B8: 10 | C8: =HYPERLINK(CONCATENATE("#",MID(INDEX(xmap,B8),FIND("]",INDEX(xmap,B8))+1,31),"!A1"),MID(INDEX(xmap,B8),FIND("]",INDEX(xmap,B8))+1,31)) -> Leer | D8: Exclude | J8: 7
B9: 10 | C9: =HYPERLINK(CONCATENATE("#",MID(INDEX(xmap,B9),FIND("]",INDEX(xmap,B9))+1,31),"!A1"),MID(INDEX(xmap,B9),FIND("]",INDEX(xmap,B9))+1,31)) -> Leer | D9: Exclude | J9: 8
B10: 10 | C10: =HYPERLINK(CONCATENATE("#",MID(INDEX(xmap,B10),FIND("]",INDEX(xmap,B10))+1,31),"!A1"),MID(INDEX(xmap,B10),FIND("]",INDEX(xmap,B10))+1,31)) -> Leer | D10: Exclude | J10: 9
B11: 10 | C11: =HYPERLINK(CONCATENATE("#",MID(INDEX(xmap,B11),FIND("]",INDEX(xmap,B11))+1,31),"!A1"),MID(INDEX(xmap,B11),FIND("]",INDEX(xmap,B11))+1,31)) -> Leer | D11: Exclude | J11: 10
B12: 10 | C12: =HYPERLINK(CONCATENATE("#",MID(INDEX(xmap,B12),FIND("]",INDEX(xmap,B12))+1,31),"!A1"),MID(INDEX(xmap,B12),FIND("]",INDEX(xmap,B12))+1,31)) -> Leer | D12: Exclude | J12: 11
B13: 10 | C13: =HYPERLINK(CONCATENATE("#",MID(INDEX(xmap,B13),FIND("]",INDEX(xmap,B13))+1,31),"!A1"),MID(INDEX(xmap,B13),FIND("]",INDEX(xmap,B13))+1,31)) -> Leer | D13: Exclude | J13: 12
B14: 10 | C14: =HYPERLINK(CONCATENATE("#",MID(INDEX(xmap,B14),FIND("]",INDEX(xmap,B14))+1,31),"!A1"),MID(INDEX(xmap,B14),FIND("]",INDEX(xmap,B14))+1,31)) -> Leer | D14: Exclude | J14: 13
B15: 10 | C15: =HYPERLINK(CONCATENATE("#",MID(INDEX(xmap,B15),FIND("]",INDEX(xmap,B15))+1,31),"!A1"),MID(INDEX(xmap,B15),FIND("]",INDEX(xmap,B15))+1,31)) -> Leer | D15: Exclude | J15: 14
B16: 10 | C16: =HYPERLINK(CONCATENATE("#",MID(INDEX(xmap,B16),FIND("]",INDEX(xmap,B16))+1,31),"!A1"),MID(INDEX(xmap,B16),FIND("]",INDEX(xmap,B16))+1,31)) -> Leer | D16: Exclude | J16: 15
B17: 10 | C17: =HYPERLINK(CONCATENATE("#",MID(INDEX(xmap,B17),FIND("]",INDEX(xmap,B17))+1,31),"!A1"),MID(INDEX(xmap,B17),FIND("]",INDEX(xmap,B17))+1,31)) -> Leer | D17: Exclude | J17: 16
B18: 10 | C18: =HYPERLINK(CONCATENATE("#",MID(INDEX(xmap,B18),FIND("]",INDEX(xmap,B18))+1,31),"!A1"),MID(INDEX(xmap,B18),FIND("]",INDEX(xmap,B18))+1,31)) -> Leer | D18: Exclude | J18: 17
B19: 10 | C19: =HYPERLINK(CONCATENATE("#",MID(INDEX(xmap,B19),FIND("]",INDEX(xmap,B19))+1,31),"!A1"),MID(INDEX(xmap,B19),FIND("]",INDEX(xmap,B19))+1,31)) -> Leer | D19: Exclude | J19: 18
B20: 10 | C20: =HYPERLINK(CONCATENATE("#",MID(INDEX(xmap,B20),FIND("]",INDEX(xmap,B20))+1,31),"!A1"),MID(INDEX(xmap,B20),FIND("]",INDEX(xmap,B20))+1,31)) -> Leer | D20: Exclude | J20: 19
B21: 10 | C21: =HYPERLINK(CONCATENATE("#",MID(INDEX(xmap,B21),FIND("]",INDEX(xmap,B21))+1,31),"!A1"),MID(INDEX(xmap,B21),FIND("]",INDEX(xmap,B21))+1,31)) -> Leer | D21: Exclude | J21: 20
B22: 10 | C22: =HYPERLINK(CONCATENATE("#",MID(INDEX(xmap,B22),FIND("]",INDEX(xmap,B22))+1,31),"!A1"),MID(INDEX(xmap,B22),FIND("]",INDEX(xmap,B22))+1,31)) -> Leer | D22: Exclude | J22: 21
B23: 10 | C23: =HYPERLINK(CONCATENATE("#",MID(INDEX(xmap,B23),FIND("]",INDEX(xmap,B23))+1,31),"!A1"),MID(INDEX(xmap,B23),FIND("]",INDEX(xmap,B23))+1,31)) -> Leer | D23: Exclude | J23: 22
B24: 10 | C24: =HYPERLINK(CONCATENATE("#",MID(INDEX(xmap,B24),FIND("]",INDEX(xmap,B24))+1,31),"!A1"),MID(INDEX(xmap,B24),FIND("]",INDEX(xmap,B24))+1,31)) -> Leer | D24: Exclude | J24: 23
B25: 10 | C25: =HYPERLINK(CONCATENATE("#",MID(INDEX(xmap,B25),FIND("]",INDEX(xmap,B25))+1,31),"!A1"),MID(INDEX(xmap,B25),FIND("]",INDEX(xmap,B25))+1,31)) -> Leer | D25: Exclude | J25: 24
B26: 10 | C26: =HYPERLINK(CONCATENATE("#",MID(INDEX(xmap,B26),FIND("]",INDEX(xmap,B26))+1,31),"!A1"),MID(INDEX(xmap,B26),FIND("]",INDEX(xmap,B26))+1,31)) -> Leer | D26: Exclude | J26: 25
B27: 10 | C27: =HYPERLINK(CONCATENATE("#",MID(INDEX(xmap,B27),FIND("]",INDEX(xmap,B27))+1,31),"!A1"),MID(INDEX(xmap,B27),FIND("]",INDEX(xmap,B27))+1,31)) -> Leer | D27: Exclude | J27: 26
B28: 10 | C28: =HYPERLINK(CONCATENATE("#",MID(INDEX(xmap,B28),FIND("]",INDEX(xmap,B28))+1,31),"!A1"),MID(INDEX(xmap,B28),FIND("]",INDEX(xmap,B28))+1,31)) -> Leer | D28: Exclude | J28: 27
B29: 10 | C29: =HYPERLINK(CONCATENATE("#",MID(INDEX(xmap,B29),FIND("]",INDEX(xmap,B29))+1,31),"!A1"),MID(INDEX(xmap,B29),FIND("]",INDEX(xmap,B29))+1,31)) -> Leer | D29: Exclude | J29: 28
B30: 10 | C30: =HYPERLINK(CONCATENATE("#",MID(INDEX(xmap,B30),FIND("]",INDEX(xmap,B30))+1,31),"!A1"),MID(INDEX(xmap,B30),FIND("]",INDEX(xmap,B30))+1,31)) -> Leer | D30: Exclude | J30: 29
B31: 10 | C31: =HYPERLINK(CONCATENATE("#",MID(INDEX(xmap,B31),FIND("]",INDEX(xmap,B31))+1,31),"!A1"),MID(INDEX(xmap,B31),FIND("]",INDEX(xmap,B31))+1,31)) -> Leer | D31: Exclude | J31: 30

Sheet Verfügbarkeit
A1: Übertrag der Verfügbarkeit
A3: =Arbeitsplan!P3 -> KW 14 | B3: =Arbeitsplan!Q3 -> KW 18 | C3: =Arbeitsplan!R3 -> KW 23 | D3: =Arbeitsplan!S3 -> KW 27 | E3: =Arbeitsplan!T3 -> KW 32 | F3: =Arbeitsplan!U3 -> KW 36 | G3: =Arbeitsplan!V3 -> KW 40 | H3: =Arbeitsplan!W3 -> KW 45 | I3: =Arbeitsplan!X3 -> KW 49 | J3: =Arbeitsplan!Y3 -> KW 1 | K3: =Arbeitsplan!Z3 -> KW 6 | L3: =Arbeitsplan!AA3 -> KW 10 | M3: =Arbeitsplan!AB3 -> KW 14 | N3: =Arbeitsplan!AC3 -> KW 19 | O3: =Arbeitsplan!AD3 -> KW 23 | P3: =Arbeitsplan!AE3 -> KW 27 | Q3: =Arbeitsplan!AF3 -> KW 32 | R3: =Arbeitsplan!AG3 -> KW 36 | S3: =Arbeitsplan!AH3 -> KW 40 | T3: =Arbeitsplan!AI3 -> KW 45 | U3: =Arbeitsplan!AJ3 -> KW 49
A4: 150 | B4: 150 | C4: 150 | D4: 150 | E4: 150 | F4: 150 | G4: 150 | H4: 150 | I4: 150 | J4: 150 | K4: 150 | L4: 150 | M4: 150 | N4: 150 | O4: 150 | P4: 150 | Q4: 150 | R4: 150 | S4: 150 | T4: 150 | U4: 150

Sheet Gantt-Erzeugen
A1: Gantt-Diagramm
B3: Planned
C4: Duration
A5: Task-Bezeichnung | B5: Start | C5: Level 1 | D5: Level 2 | E5: Level 3
A6: =IF(C6<>"",Arbeitsplan!F12,"") -> Projekt_1 | B6: =IF(Arbeitsplan!F12<>"",Arbeitsplan!G12,"") -> 2013-07-01 | C6: =IF(Arbeitsplan!A12<>"",IF(Arbeitsplan!H12<>"",Arbeitsplan!H12-Arbeitsplan!G12+1,""),"") -> 181 | D6: =IF(Arbeitsplan!B12<>"",IF(Arbeitsplan!H12<>"",Arbeitsplan!H12-Arbeitsplan!G12+1,""),"") ->  | E6: =IF(Arbeitsplan!C12<>"",IF(Arbeitsplan!H12<>"",Arbeitsplan!H12-Arbeitsplan!G12+1,""),"") -> 
A7: =IF(C7<>"",Arbeitsplan!F13,"") ->  | B7: =IF(Arbeitsplan!F13<>"",Arbeitsplan!G13,"") -> 2013-07-01 | D7: =IF(Arbeitsplan!B13<>"",IF(Arbeitsplan!H13<>"",Arbeitsplan!H13-Arbeitsplan!G13+1,""),"") -> 61 | E7: =IF(Arbeitsplan!C13<>"",IF(Arbeitsplan!H13<>"",Arbeitsplan!H13-Arbeitsplan!G13+1,""),"") -> 
A8: =IF(C8<>"",Arbeitsplan!F14,"") ->  | B8: =IF(Arbeitsplan!F14<>"",Arbeitsplan!G14,"") -> 2013-07-01 | E8: =IF(Arbeitsplan!C14<>"",IF(Arbeitsplan!H14<>"",Arbeitsplan!H14-Arbeitsplan!G14+1,""),"") -> 61
A9: =IF(C9<>"",Arbeitsplan!F15,"") ->  | B9: =IF(Arbeitsplan!F15<>"",Arbeitsplan!G15,"") -> 2013-07-01 | E9: =IF(Arbeitsplan!C15<>"",IF(Arbeitsplan!H15<>"",Arbeitsplan!H15-Arbeitsplan!G15+1,""),"") -> 61
A10: =IF(C10<>"",Arbeitsplan!F16,"") ->  | B10: =IF(Arbeitsplan!F16<>"",Arbeitsplan!G16,"") -> 2013-07-01 | E10: =IF(Arbeitsplan!C16<>"",IF(Arbeitsplan!H16<>"",Arbeitsplan!H16-Arbeitsplan!G16+1,""),"") -> 61
A11: =IF(C11<>"",Arbeitsplan!F17,"") ->  | B11: =IF(Arbeitsplan!F17<>"",Arbeitsplan!G17,"") ->  | C11: =IF(Arbeitsplan!A17<>"",IF(Arbeitsplan!H17<>"",Arbeitsplan!H17-Arbeitsplan!G17+1,""),"") ->  | D11: =IF(Arbeitsplan!B17<>"",IF(Arbeitsplan!H17<>"",Arbeitsplan!H17-Arbeitsplan!G17+1,""),"") ->  | E11: =IF(Arbeitsplan!C17<>"",IF(Arbeitsplan!H17<>"",Arbeitsplan!H17-Arbeitsplan!G17+1,""),"") -> 
A12: =IF(C12<>"",Arbeitsplan!F18,"") ->  | B12: =IF(Arbeitsplan!F18<>"",Arbeitsplan!G18,"") -> 2013-08-30 | D12: =IF(Arbeitsplan!B18<>"",IF(Arbeitsplan!H18<>"",Arbeitsplan!H18-Arbeitsplan!G18+1,""),"") -> 61 | E12: =IF(Arbeitsplan!C18<>"",IF(Arbeitsplan!H18<>"",Arbeitsplan!H18-Arbeitsplan!G18+1,""),"") -> 
A13: =IF(C13<>"",Arbeitsplan!F19,"") ->  | B13: =IF(Arbeitsplan!F19<>"",Arbeitsplan!G19,"") -> 2013-08-30 | E13: =IF(Arbeitsplan!C19<>"",IF(Arbeitsplan!H19<>"",Arbeitsplan!H19-Arbeitsplan!G19+1,""),"") -> 61
A14: =IF(C14<>"",Arbeitsplan!F20,"") ->  | B14: =IF(Arbeitsplan!F20<>"",Arbeitsplan!G20,"") -> 2013-08-30 | E14: =IF(Arbeitsplan!C20<>"",IF(Arbeitsplan!H20<>"",Arbeitsplan!H20-Arbeitsplan!G20+1,""),"") -> 61
A15: =IF(C15<>"",Arbeitsplan!F21,"") ->  | B15: =IF(Arbeitsplan!F21<>"",Arbeitsplan!G21,"") -> 2013-08-30 | E15: =IF(Arbeitsplan!C21<>"",IF(Arbeitsplan!H21<>"",Arbeitsplan!H21-Arbeitsplan!G21+1,""),"") -> 61
A16: =IF(C16<>"",Arbeitsplan!F22,"") ->  | B16: =IF(Arbeitsplan!F22<>"",Arbeitsplan!G22,"") ->  | C16: =IF(Arbeitsplan!A22<>"",IF(Arbeitsplan!H22<>"",Arbeitsplan!H22-Arbeitsplan!G22+1,""),"") ->  | D16: =IF(Arbeitsplan!B22<>"",IF(Arbeitsplan!H22<>"",Arbeitsplan!H22-Arbeitsplan!G22+1,""),"") ->  | E16: =IF(Arbeitsplan!C22<>"",IF(Arbeitsplan!H22<>"",Arbeitsplan!H22-Arbeitsplan!G22+1,""),"") -> 
A17: =IF(C17<>"",Arbeitsplan!F23,"") ->  | B17: =IF(Arbeitsplan!F23<>"",Arbeitsplan!G23,"") -> 2013-10-29 | D17: =IF(Arbeitsplan!B23<>"",IF(Arbeitsplan!H23<>"",Arbeitsplan!H23-Arbeitsplan!G23+1,""),"") -> 61 | E17: =IF(Arbeitsplan!C23<>"",IF(Arbeitsplan!H23<>"",Arbeitsplan!H23-Arbeitsplan!G23+1,""),"") -> 
A18: =IF(C18<>"",Arbeitsplan!F24,"") ->  | B18: =IF(Arbeitsplan!F24<>"",Arbeitsplan!G24,"") -> 2013-10-29 | E18: =IF(Arbeitsplan!C24<>"",IF(Arbeitsplan!H24<>"",Arbeitsplan!H24-Arbeitsplan!G24+1,""),"") -> 61
A19: =IF(C19<>"",Arbeitsplan!F25,"") ->  | B19: =IF(Arbeitsplan!F25<>"",Arbeitsplan!G25,"") -> 2013-10-29 | E19: =IF(Arbeitsplan!C25<>"",IF(Arbeitsplan!H25<>"",Arbeitsplan!H25-Arbeitsplan!G25+1,""),"") -> 61
A20: =IF(C20<>"",Arbeitsplan!F26,"") ->  | B20: =IF(Arbeitsplan!F26<>"",Arbeitsplan!G26,"") -> 2013-10-29 | E20: =IF(Arbeitsplan!C26<>"",IF(Arbeitsplan!H26<>"",Arbeitsplan!H26-Arbeitsplan!G26+1,""),"") -> 61
A21: =IF(C21<>"",Arbeitsplan!F27,"") ->  | B21: =IF(Arbeitsplan!F27<>"",Arbeitsplan!G27,"") ->  | C21: =IF(Arbeitsplan!A27<>"",IF(Arbeitsplan!H27<>"",Arbeitsplan!H27-Arbeitsplan!G27+1,""),"") ->  | D21: =IF(Arbeitsplan!B27<>"",IF(Arbeitsplan!H27<>"",Arbeitsplan!H27-Arbeitsplan!G27+1,""),"") ->  | E21: =IF(Arbeitsplan!C27<>"",IF(Arbeitsplan!H27<>"",Arbeitsplan!H27-Arbeitsplan!G27+1,""),"") -> 
A22: =IF(C22<>"",Arbeitsplan!F28,"") ->  | B22: =IF(Arbeitsplan!F28<>"",Arbeitsplan!G28,"") -> 2013-12-28 | D22: =IF(Arbeitsplan!B28<>"",IF(Arbeitsplan!H28<>"",Arbeitsplan!H28-Arbeitsplan!G28+1,""),"") -> 61 | E22: =IF(Arbeitsplan!C28<>"",IF(Arbeitsplan!H28<>"",Arbeitsplan!H28-Arbeitsplan!G28+1,""),"") -> 
A23: =IF(C23<>"",Arbeitsplan!F29,"") ->  | B23: =IF(Arbeitsplan!F29<>"",Arbeitsplan!G29,"") -> 2013-12-28 | E23: =IF(Arbeitsplan!C29<>"",IF(Arbeitsplan!H29<>"",Arbeitsplan!H29-Arbeitsplan!G29+1,""),"") -> 61
A24: =IF(C24<>"",Arbeitsplan!F30,"") ->  | B24: =IF(Arbeitsplan!F30<>"",Arbeitsplan!G30,"") -> 2013-12-28 | E24: =IF(Arbeitsplan!C30<>"",IF(Arbeitsplan!H30<>"",Arbeitsplan!H30-Arbeitsplan!G30+1,""),"") -> 61
A25: =IF(C25<>"",Arbeitsplan!F31,"") ->  | B25: =IF(Arbeitsplan!F31<>"",Arbeitsplan!G31,"") -> 2013-12-28 | E25: =IF(Arbeitsplan!C31<>"",IF(Arbeitsplan!H31<>"",Arbeitsplan!H31-Arbeitsplan!G31+1,""),"") -> 61
A26: =IF(C26<>"",Arbeitsplan!F32,"") ->  | B26: =IF(Arbeitsplan!F32<>"",Arbeitsplan!G32,"") ->  | C26: =IF(Arbeitsplan!A32<>"",IF(Arbeitsplan!H32<>"",Arbeitsplan!H32-Arbeitsplan!G32+1,""),"") ->  | D26: =IF(Arbeitsplan!B32<>"",IF(Arbeitsplan!H32<>"",Arbeitsplan!H32-Arbeitsplan!G32+1,""),"") ->  | E26: =IF(Arbeitsplan!C32<>"",IF(Arbeitsplan!H32<>"",Arbeitsplan!H32-Arbeitsplan!G32+1,""),"") -> 
A27: =IF(C27<>"",Arbeitsplan!F33,"") ->  | B27: =IF(Arbeitsplan!F33<>"",Arbeitsplan!G33,"") ->  | C27: =IF(Arbeitsplan!A33<>"",IF(Arbeitsplan!H33<>"",Arbeitsplan!H33-Arbeitsplan!G33+1,""),"") ->  | D27: =IF(Arbeitsplan!B33<>"",IF(Arbeitsplan!H33<>"",Arbeitsplan!H33-Arbeitsplan!G33+1,""),"") ->  | E27: =IF(Arbeitsplan!C33<>"",IF(Arbeitsplan!H33<>"",Arbeitsplan!H33-Arbeitsplan!G33+1,""),"") -> 
A28: =IF(C28<>"",Arbeitsplan!F34,"") -> Projekt_2 | B28: =IF(Arbeitsplan!F34<>"",Arbeitsplan!G34,"") -> 2013-08-01 | C28: =IF(Arbeitsplan!A34<>"",IF(Arbeitsplan!H34<>"",Arbeitsplan!H34-Arbeitsplan!G34+1,""),"") -> 203.5 | D28: =IF(Arbeitsplan!B34<>"",IF(Arbeitsplan!H34<>"",Arbeitsplan!H34-Arbeitsplan!G34+1,""),"") ->  | E28: =IF(Arbeitsplan!C34<>"",IF(Arbeitsplan!H34<>"",Arbeitsplan!H34-Arbeitsplan!G34+1,""),"") -> 
A29: =IF(C29<>"",Arbeitsplan!F35,"") ->  | B29: =IF(Arbeitsplan!F35<>"",Arbeitsplan!G35,"") -> 2013-08-01 | D29: =IF(Arbeitsplan!B35<>"",IF(Arbeitsplan!H35<>"",Arbeitsplan!H35-Arbeitsplan!G35+1,""),"") -> 68.5 | E29: =IF(Arbeitsplan!C35<>"",IF(Arbeitsplan!H35<>"",Arbeitsplan!H35-Arbeitsplan!G35+1,""),"") -> 
A30: =IF(C30<>"",Arbeitsplan!F36,"") ->  | B30: =IF(Arbeitsplan!F36<>"",Arbeitsplan!G36,"") -> 2013-08-01 | E30: =IF(Arbeitsplan!C36<>"",IF(Arbeitsplan!H36<>"",Arbeitsplan!H36-Arbeitsplan!G36+1,""),"") -> 68.5
A31: =IF(C31<>"",Arbeitsplan!F37,"") ->  | B31: =IF(Arbeitsplan!F37<>"",Arbeitsplan!G37,"") -> 2013-08-01 | E31: =IF(Arbeitsplan!C37<>"",IF(Arbeitsplan!H37<>"",Arbeitsplan!H37-Arbeitsplan!G37+1,""),"") -> 68.5
A32: =IF(C32<>"",Arbeitsplan!F38,"") ->  | B32: =IF(Arbeitsplan!F38<>"",Arbeitsplan!G38,"") -> 2013-08-01 | E32: =IF(Arbeitsplan!C38<>"",IF(Arbeitsplan!H38<>"",Arbeitsplan!H38-Arbeitsplan!G38+1,""),"") -> 68.5
A33: =IF(C33<>"",Arbeitsplan!F39,"") ->  | B33: =IF(Arbeitsplan!F39<>"",Arbeitsplan!G39,"") ->  | C33: =IF(Arbeitsplan!A39<>"",IF(Arbeitsplan!H39<>"",Arbeitsplan!H39-Arbeitsplan!G39+1,""),"") ->  | D33: =IF(Arbeitsplan!B39<>"",IF(Arbeitsplan!H39<>"",Arbeitsplan!H39-Arbeitsplan!G39+1,""),"") ->  | E33: =IF(Arbeitsplan!C39<>"",IF(Arbeitsplan!H39<>"",Arbeitsplan!H39-Arbeitsplan!G39+1,""),"") -> 
A34: =IF(C34<>"",Arbeitsplan!F40,"") ->  | B34: =IF(Arbeitsplan!F40<>"",Arbeitsplan!G40,"") -> 2013-10-07T12:00:00 | D34: =IF(Arbeitsplan!B40<>"",IF(Arbeitsplan!H40<>"",Arbeitsplan!H40-Arbeitsplan!G40+1,""),"") -> 68.5 | E34: =IF(Arbeitsplan!C40<>"",IF(Arbeitsplan!H40<>"",Arbeitsplan!H40-Arbeitsplan!G40+1,""),"") -> 
A35: =IF(C35<>"",Arbeitsplan!F41,"") ->  | B35: =IF(Arbeitsplan!F41<>"",Arbeitsplan!G41,"") -> 2013-10-07T12:00:00 | E35: =IF(Arbeitsplan!C41<>"",IF(Arbeitsplan!H41<>"",Arbeitsplan!H41-Arbeitsplan!G41+1,""),"") -> 68.5
A36: =IF(C36<>"",Arbeitsplan!F42,"") ->  | B36: =IF(Arbeitsplan!F42<>"",Arbeitsplan!G42,"") -> 2013-10-07T12:00:00 | E36: =IF(Arbeitsplan!C42<>"",IF(Arbeitsplan!H42<>"",Arbeitsplan!H42-Arbeitsplan!G42+1,""),"") -> 68.5
A37: =IF(C37<>"",Arbeitsplan!F43,"") ->  | B37: =IF(Arbeitsplan!F43<>"",Arbeitsplan!G43,"") -> 2013-10-07T12:00:00 | E37: =IF(Arbeitsplan!C43<>"",IF(Arbeitsplan!H43<>"",Arbeitsplan!H43-Arbeitsplan!G43+1,""),"") -> 68.5
A38: =IF(C38<>"",Arbeitsplan!F44,"") ->  | B38: =IF(Arbeitsplan!F44<>"",Arbeitsplan!G44,"") ->  | C38: =IF(Arbeitsplan!A44<>"",IF(Arbeitsplan!H44<>"",Arbeitsplan!H44-Arbeitsplan!G44+1,""),"") ->  | D38: =IF(Arbeitsplan!B44<>"",IF(Arbeitsplan!H44<>"",Arbeitsplan!H44-Arbeitsplan!G44+1,""),"") ->  | E38: =IF(Arbeitsplan!C44<>"",IF(Arbeitsplan!H44<>"",Arbeitsplan!H44-Arbeitsplan!G44+1,""),"") -> 
A39: =IF(C39<>"",Arbeitsplan!F45,"") ->  | B39: =IF(Arbeitsplan!F45<>"",Arbeitsplan!G45,"") -> 2013-12-14 | D39: =IF(Arbeitsplan!B45<>"",IF(Arbeitsplan!H45<>"",Arbeitsplan!H45-Arbeitsplan!G45+1,""),"") -> 68.5 | E39: =IF(Arbeitsplan!C45<>"",IF(Arbeitsplan!H45<>"",Arbeitsplan!H45-Arbeitsplan!G45+1,""),"") -> 
A40: =IF(C40<>"",Arbeitsplan!F46,"") ->  | B40: =IF(Arbeitsplan!F46<>"",Arbeitsplan!G46,"") -> 2013-12-14 | E40: =IF(Arbeitsplan!C46<>"",IF(Arbeitsplan!H46<>"",Arbeitsplan!H46-Arbeitsplan!G46+1,""),"") -> 68.5
A41: =IF(C41<>"",Arbeitsplan!F47,"") ->  | B41: =IF(Arbeitsplan!F47<>"",Arbeitsplan!G47,"") -> 2013-12-14 | E41: =IF(Arbeitsplan!C47<>"",IF(Arbeitsplan!H47<>"",Arbeitsplan!H47-Arbeitsplan!G47+1,""),"") -> 68.5
A42: =IF(C42<>"",Arbeitsplan!F48,"") ->  | B42: =IF(Arbeitsplan!F48<>"",Arbeitsplan!G48,"") -> 2013-12-14 | E42: =IF(Arbeitsplan!C48<>"",IF(Arbeitsplan!H48<>"",Arbeitsplan!H48-Arbeitsplan!G48+1,""),"") -> 68.5
A43: =IF(C43<>"",Arbeitsplan!F49,"") ->  | B43: =IF(Arbeitsplan!F49<>"",Arbeitsplan!G49,"") ->  | C43: =IF(Arbeitsplan!A49<>"",IF(Arbeitsplan!H49<>"",Arbeitsplan!H49-Arbeitsplan!G49+1,""),"") ->  | D43: =IF(Arbeitsplan!B49<>"",IF(Arbeitsplan!H49<>"",Arbeitsplan!H49-Arbeitsplan!G49+1,""),"") ->  | E43: =IF(Arbeitsplan!C49<>"",IF(Arbeitsplan!H49<>"",Arbeitsplan!H49-Arbeitsplan!G49+1,""),"") -> 
A44: =IF(C44<>"",Arbeitsplan!F50,"") ->  | B44: =IF(Arbeitsplan!F50<>"",Arbeitsplan!G50,"") -> 2014-02-19T12:00:00 | D44: =IF(Arbeitsplan!B50<>"",IF(Arbeitsplan!H50<>"",Arbeitsplan!H50-Arbeitsplan!G50+1,""),"") -> 68.5 | E44: =IF(Arbeitsplan!C50<>"",IF(Arbeitsplan!H50<>"",Arbeitsplan!H50-Arbeitsplan!G50+1,""),"") -> 
A45: =IF(C45<>"",Arbeitsplan!F51,"") ->  | B45: =IF(Arbeitsplan!F51<>"",Arbeitsplan!G51,"") -> 2014-02-19T12:00:00 | E45: =IF(Arbeitsplan!C51<>"",IF(Arbeitsplan!H51<>"",Arbeitsplan!H51-Arbeitsplan!G51+1,""),"") -> 68.5
A46: =IF(C46<>"",Arbeitsplan!F52,"") ->  | B46: =IF(Arbeitsplan!F52<>"",Arbeitsplan!G52,"") -> 2014-02-19T12:00:00 | E46: =IF(Arbeitsplan!C52<>"",IF(Arbeitsplan!H52<>"",Arbeitsplan!H52-Arbeitsplan!G52+1,""),"") -> 68.5
A47: =IF(C47<>"",Arbeitsplan!F53,"") ->  | B47: =IF(Arbeitsplan!F53<>"",Arbeitsplan!G53,"") -> 2014-02-19T12:00:00 | E47: =IF(Arbeitsplan!C53<>"",IF(Arbeitsplan!H53<>"",Arbeitsplan!H53-Arbeitsplan!G53+1,""),"") -> 68.5
A48: =IF(C48<>"",Arbeitsplan!F54,"") ->  | B48: =IF(Arbeitsplan!F54<>"",Arbeitsplan!G54,"") ->  | C48: =IF(Arbeitsplan!A54<>"",IF(Arbeitsplan!H54<>"",Arbeitsplan!H54-Arbeitsplan!G54+1,""),"") ->  | D48: =IF(Arbeitsplan!B54<>"",IF(Arbeitsplan!H54<>"",Arbeitsplan!H54-Arbeitsplan!G54+1,""),"") ->  | E48: =IF(Arbeitsplan!C54<>"",IF(Arbeitsplan!H54<>"",Arbeitsplan!H54-Arbeitsplan!G54+1,""),"") -> 
A49: =IF(C49<>"",Arbeitsplan!F55,"") ->  | B49: =IF(Arbeitsplan!F55<>"",Arbeitsplan!G55,"") ->  | C49: =IF(Arbeitsplan!A55<>"",IF(Arbeitsplan!H55<>"",Arbeitsplan!H55-Arbeitsplan!G55+1,""),"") ->  | D49: =IF(Arbeitsplan!B55<>"",IF(Arbeitsplan!H55<>"",Arbeitsplan!H55-Arbeitsplan!G55+1,""),"") ->  | E49: =IF(Arbeitsplan!C55<>"",IF(Arbeitsplan!H55<>"",Arbeitsplan!H55-Arbeitsplan!G55+1,""),"") -> 
A50: =IF(C50<>"",Arbeitsplan!F56,"") -> Projekt_3 | B50: =IF(Arbeitsplan!F56<>"",Arbeitsplan!G56,"") -> 2013-09-01 | C50: =IF(Arbeitsplan!A56<>"",IF(Arbeitsplan!H56<>"",Arbeitsplan!H56-Arbeitsplan!G56+1,""),"") -> 226 | D50: =IF(Arbeitsplan!B56<>"",IF(Arbeitsplan!H56<>"",Arbeitsplan!H56-Arbeitsplan!G56+1,""),"") ->  | E50: =IF(Arbeitsplan!C56<>"",IF(Arbeitsplan!H56<>"",Arbeitsplan!H56-Arbeitsplan!G56+1,""),"") -> 
A51: =IF(C51<>"",Arbeitsplan!F57,"") ->  | B51: =IF(Arbeitsplan!F57<>"",Arbeitsplan!G57,"") -> 2013-09-01 | D51: =IF(Arbeitsplan!B57<>"",IF(Arbeitsplan!H57<>"",Arbeitsplan!H57-Arbeitsplan!G57+1,""),"") -> 76 | E51: =IF(Arbeitsplan!C57<>"",IF(Arbeitsplan!H57<>"",Arbeitsplan!H57-Arbeitsplan!G57+1,""),"") -> 
A52: =IF(C52<>"",Arbeitsplan!F58,"") ->  | B52: =IF(Arbeitsplan!F58<>"",Arbeitsplan!G58,"") -> 2013-09-01 | E52: =IF(Arbeitsplan!C58<>"",IF(Arbeitsplan!H58<>"",Arbeitsplan!H58-Arbeitsplan!G58+1,""),"") -> 76
A53: =IF(C53<>"",Arbeitsplan!F59,"") ->  | B53: =IF(Arbeitsplan!F59<>"",Arbeitsplan!G59,"") -> 2013-09-01 | E53: =IF(Arbeitsplan!C59<>"",IF(Arbeitsplan!H59<>"",Arbeitsplan!H59-Arbeitsplan!G59+1,""),"") -> 76
A54: =IF(C54<>"",Arbeitsplan!F60,"") ->  | B54: =IF(Arbeitsplan!F60<>"",Arbeitsplan!G60,"") -> 2013-09-01 | E54: =IF(Arbeitsplan!C60<>"",IF(Arbeitsplan!H60<>"",Arbeitsplan!H60-Arbeitsplan!G60+1,""),"") -> 76
A55: =IF(C55<>"",Arbeitsplan!F61,"") ->  | B55: =IF(Arbeitsplan!F61<>"",Arbeitsplan!G61,"") ->  | C55: =IF(Arbeitsplan!A61<>"",IF(Arbeitsplan!H61<>"",Arbeitsplan!H61-Arbeitsplan!G61+1,""),"") ->  | D55: =IF(Arbeitsplan!B61<>"",IF(Arbeitsplan!H61<>"",Arbeitsplan!H61-Arbeitsplan!G61+1,""),"") ->  | E55: =IF(Arbeitsplan!C61<>"",IF(Arbeitsplan!H61<>"",Arbeitsplan!H61-Arbeitsplan!G61+1,""),"") -> 
A56: =IF(C56<>"",Arbeitsplan!F62,"") ->  | B56: =IF(Arbeitsplan!F62<>"",Arbeitsplan!G62,"") -> 2013-11-15 | D56: =IF(Arbeitsplan!B62<>"",IF(Arbeitsplan!H62<>"",Arbeitsplan!H62-Arbeitsplan!G62+1,""),"") -> 76 | E56: =IF(Arbeitsplan!C62<>"",IF(Arbeitsplan!H62<>"",Arbeitsplan!H62-Arbeitsplan!G62+1,""),"") -> 
A57: =IF(C57<>"",Arbeitsplan!F63,"") ->  | B57: =IF(Arbeitsplan!F63<>"",Arbeitsplan!G63,"") -> 2013-11-15 | E57: =IF(Arbeitsplan!C63<>"",IF(Arbeitsplan!H63<>"",Arbeitsplan!H63-Arbeitsplan!G63+1,""),"") -> 76
A58: =IF(C58<>"",Arbeitsplan!F64,"") ->  | B58: =IF(Arbeitsplan!F64<>"",Arbeitsplan!G64,"") -> 2013-11-15 | E58: =IF(Arbeitsplan!C64<>"",IF(Arbeitsplan!H64<>"",Arbeitsplan!H64-Arbeitsplan!G64+1,""),"") -> 76
A59: =IF(C59<>"",Arbeitsplan!F65,"") ->  | B59: =IF(Arbeitsplan!F65<>"",Arbeitsplan!G65,"") -> 2013-11-15 | E59: =IF(Arbeitsplan!C65<>"",IF(Arbeitsplan!H65<>"",Arbeitsplan!H65-Arbeitsplan!G65+1,""),"") -> 76
A60: =IF(C60<>"",Arbeitsplan!F66,"") ->  | B60: =IF(Arbeitsplan!F66<>"",Arbeitsplan!G66,"") ->  | C60: =IF(Arbeitsplan!A66<>"",IF(Arbeitsplan!H66<>"",Arbeitsplan!H66-Arbeitsplan!G66+1,""),"") ->  | D60: =IF(Arbeitsplan!B66<>"",IF(Arbeitsplan!H66<>"",Arbeitsplan!H66-Arbeitsplan!G66+1,""),"") ->  | E60: =IF(Arbeitsplan!C66<>"",IF(Arbeitsplan!H66<>"",Arbeitsplan!H66-Arbeitsplan!G66+1,""),"") -> 
A61: =IF(C61<>"",Arbeitsplan!F67,"") ->  | B61: =IF(Arbeitsplan!F67<>"",Arbeitsplan!G67,"") -> 2014-01-29 | D61: =IF(Arbeitsplan!B67<>"",IF(Arbeitsplan!H67<>"",Arbeitsplan!H67-Arbeitsplan!G67+1,""),"") -> 76 | E61: =IF(Arbeitsplan!C67<>"",IF(Arbeitsplan!H67<>"",Arbeitsplan!H67-Arbeitsplan!G67+1,""),"") -> 
A62: =IF(C62<>"",Arbeitsplan!F68,"") ->  | B62: =IF(Arbeitsplan!F68<>"",Arbeitsplan!G68,"") -> 2014-01-29 | E62: =IF(Arbeitsplan!C68<>"",IF(Arbeitsplan!H68<>"",Arbeitsplan!H68-Arbeitsplan!G68+1,""),"") -> 76
A63: =IF(C63<>"",Arbeitsplan!F69,"") ->  | B63: =IF(Arbeitsplan!F69<>"",Arbeitsplan!G69,"") -> 2014-01-29 | E63: =IF(Arbeitsplan!C69<>"",IF(Arbeitsplan!H69<>"",Arbeitsplan!H69-Arbeitsplan!G69+1,""),"") -> 76
A64: =IF(C64<>"",Arbeitsplan!F70,"") ->  | B64: =IF(Arbeitsplan!F70<>"",Arbeitsplan!G70,"") -> 2014-01-29 | E64: =IF(Arbeitsplan!C70<>"",IF(Arbeitsplan!H70<>"",Arbeitsplan!H70-Arbeitsplan!G70+1,""),"") -> 76
A65: =IF(C65<>"",Arbeitsplan!F71,"") ->  | B65: =IF(Arbeitsplan!F71<>"",Arbeitsplan!G71,"") ->  | C65: =IF(Arbeitsplan!A71<>"",IF(Arbeitsplan!H71<>"",Arbeitsplan!H71-Arbeitsplan!G71+1,""),"") ->  | D65: =IF(Arbeitsplan!B71<>"",IF(Arbeitsplan!H71<>"",Arbeitsplan!H71-Arbeitsplan!G71+1,""),"") ->  | E65: =IF(Arbeitsplan!C71<>"",IF(Arbeitsplan!H71<>"",Arbeitsplan!H71-Arbeitsplan!G71+1,""),"") -> 
A66: =IF(C66<>"",Arbeitsplan!F72,"") ->  | B66: =IF(Arbeitsplan!F72<>"",Arbeitsplan!G72,"") -> 2014-04-14 | D66: =IF(Arbeitsplan!B72<>"",IF(Arbeitsplan!H72<>"",Arbeitsplan!H72-Arbeitsplan!G72+1,""),"") -> 76 | E66: =IF(Arbeitsplan!C72<>"",IF(Arbeitsplan!H72<>"",Arbeitsplan!H72-Arbeitsplan!G72+1,""),"") -> 
A67: =IF(C67<>"",Arbeitsplan!F73,"") ->  | B67: =IF(Arbeitsplan!F73<>"",Arbeitsplan!G73,"") -> 2014-04-14 | E67: =IF(Arbeitsplan!C73<>"",IF(Arbeitsplan!H73<>"",Arbeitsplan!H73-Arbeitsplan!G73+1,""),"") -> 76
A68: =IF(C68<>"",Arbeitsplan!F74,"") ->  | B68: =IF(Arbeitsplan!F74<>"",Arbeitsplan!G74,"") -> 2014-04-14 | E68: =IF(Arbeitsplan!C74<>"",IF(Arbeitsplan!H74<>"",Arbeitsplan!H74-Arbeitsplan!G74+1,""),"") -> 76
A69: =IF(C69<>"",Arbeitsplan!F75,"") ->  | B69: =IF(Arbeitsplan!F75<>"",Arbeitsplan!G75,"") -> 2014-04-14 | E69: =IF(Arbeitsplan!C75<>"",IF(Arbeitsplan!H75<>"",Arbeitsplan!H75-Arbeitsplan!G75+1,""),"") -> 76
A70: =IF(C70<>"",Arbeitsplan!F76,"") ->  | B70: =IF(Arbeitsplan!F76<>"",Arbeitsplan!G76,"") ->  | C70: =IF(Arbeitsplan!A76<>"",IF(Arbeitsplan!H76<>"",Arbeitsplan!H76-Arbeitsplan!G76+1,""),"") ->  | D70: =IF(Arbeitsplan!B76<>"",IF(Arbeitsplan!H76<>"",Arbeitsplan!H76-Arbeitsplan!G76+1,""),"") ->  | E70: =IF(Arbeitsplan!C76<>"",IF(Arbeitsplan!H76<>"",Arbeitsplan!H76-Arbeitsplan!G76+1,""),"") -> 
A71: =IF(C71<>"",Arbeitsplan!F77,"") ->  | B71: =IF(Arbeitsplan!F77<>"",Arbeitsplan!G77,"") ->  | C71: =IF(Arbeitsplan!A77<>"",IF(Arbeitsplan!H77<>"",Arbeitsplan!H77-Arbeitsplan!G77+1,""),"") ->  | D71: =IF(Arbeitsplan!B77<>"",IF(Arbeitsplan!H77<>"",Arbeitsplan!H77-Arbeitsplan!G77+1,""),"") ->  | E71: =IF(Arbeitsplan!C77<>"",IF(Arbeitsplan!H77<>"",Arbeitsplan!H77-Arbeitsplan!G77+1,""),"") -> 
A72: =IF(C72<>"",Arbeitsplan!F78,"") ->  | B72: =IF(Arbeitsplan!F78<>"",Arbeitsplan!G78,"") ->  | C72: =IF(Arbeitsplan!A78<>"",IF(Arbeitsplan!H78<>"",Arbeitsplan!H78-Arbeitsplan!G78+1,""),"") ->  | D72: =IF(Arbeitsplan!B78<>"",IF(Arbeitsplan!H78<>"",Arbeitsplan!H78-Arbeitsplan!G78+1,""),"") ->  | E72: =IF(Arbeitsplan!C78<>"",IF(Arbeitsplan!H78<>"",Arbeitsplan!H78-Arbeitsplan!G78+1,""),"") -> 
A73: =IF(C73<>"",Arbeitsplan!F79,"") ->  | B73: =IF(Arbeitsplan!F79<>"",Arbeitsplan!G79,"") -> 2013-10-01 | D73: =IF(Arbeitsplan!B79<>"",IF(Arbeitsplan!H79<>"",Arbeitsplan!H79-Arbeitsplan!G79+1,""),"") ->  | E73: =IF(Arbeitsplan!C79<>"",IF(Arbeitsplan!H79<>"",Arbeitsplan!H79-Arbeitsplan!G79+1,""),"") -> 
A74: =IF(C74<>"",Arbeitsplan!F80,"") ->  | B74: =IF(Arbeitsplan!F80<>"",Arbeitsplan!G80,"") -> 2013-10-01 | E74: =IF(Arbeitsplan!C80<>"",IF(Arbeitsplan!H80<>"",Arbeitsplan!H80-Arbeitsplan!G80+1,""),"") -> 
A75: =IF(C75<>"",Arbeitsplan!F81,"") ->  | B75: =IF(Arbeitsplan!F81<>"",Arbeitsplan!G81,"") -> 2013-10-01 | E75: =IF(Arbeitsplan!C81<>"",IF(Arbeitsplan!H81<>"",Arbeitsplan!H81-Arbeitsplan!G81+1,""),"") -> 
A76: =IF(C76<>"",Arbeitsplan!F82,"") ->  | B76: =IF(Arbeitsplan!F82<>"",Arbeitsplan!G82,"") -> 2013-10-01 | E76: =IF(Arbeitsplan!C82<>"",IF(Arbeitsplan!H82<>"",Arbeitsplan!H82-Arbeitsplan!G82+1,""),"") -> 
A77: =IF(C77<>"",Arbeitsplan!F83,"") ->  | B77: =IF(Arbeitsplan!F83<>"",Arbeitsplan!G83,"") ->  | C77: =IF(Arbeitsplan!A83<>"",IF(Arbeitsplan!H83<>"",Arbeitsplan!H83-Arbeitsplan!G83+1,""),"") ->  | D77: =IF(Arbeitsplan!B83<>"",IF(Arbeitsplan!H83<>"",Arbeitsplan!H83-Arbeitsplan!G83+1,""),"") ->  | E77: =IF(Arbeitsplan!C83<>"",IF(Arbeitsplan!H83<>"",Arbeitsplan!H83-Arbeitsplan!G83+1,""),"") -> 
A78: =IF(C78<>"",Arbeitsplan!F84,"") ->  | B78: =IF(Arbeitsplan!F84<>"",Arbeitsplan!G84,"") ->  | D78: =IF(Arbeitsplan!B84<>"",IF(Arbeitsplan!H84<>"",Arbeitsplan!H84-Arbeitsplan!G84+1,""),"") ->  | E78: =IF(Arbeitsplan!C84<>"",IF(Arbeitsplan!H84<>"",Arbeitsplan!H84-Arbeitsplan!G84+1,""),"") -> 
A79: =IF(C79<>"",Arbeitsplan!F85,"") ->  | B79: =IF(Arbeitsplan!F85<>"",Arbeitsplan!G85,"") ->  | E79: =IF(Arbeitsplan!C85<>"",IF(Arbeitsplan!H85<>"",Arbeitsplan!H85-Arbeitsplan!G85+1,""),"") -> 
A80: =IF(C80<>"",Arbeitsplan!F86,"") ->  | B80: =IF(Arbeitsplan!F86<>"",Arbeitsplan!G86,"") ->  | E80: =IF(Arbeitsplan!C86<>"",IF(Arbeitsplan!H86<>"",Arbeitsplan!H86-Arbeitsplan!G86+1,""),"") -> 
A81: =IF(C81<>"",Arbeitsplan!F87,"") ->  | B81: =IF(Arbeitsplan!F87<>"",Arbeitsplan!G87,"") ->  | E81: =IF(Arbeitsplan!C87<>"",IF(Arbeitsplan!H87<>"",Arbeitsplan!H87-Arbeitsplan!G87+1,""),"") -> 
A82: =IF(C82<>"",Arbeitsplan!F88,"") ->  | B82: =IF(Arbeitsplan!F88<>"",Arbeitsplan!G88,"") ->  | C82: =IF(Arbeitsplan!A88<>"",IF(Arbeitsplan!H88<>"",Arbeitsplan!H88-Arbeitsplan!G88+1,""),"") ->  | D82: =IF(Arbeitsplan!B88<>"",IF(Arbeitsplan!H88<>"",Arbeitsplan!H88-Arbeitsplan!G88+1,""),"") ->  | E82: =IF(Arbeitsplan!C88<>"",IF(Arbeitsplan!H88<>"",Arbeitsplan!H88-Arbeitsplan!G88+1,""),"") -> 
A83: =IF(C83<>"",Arbeitsplan!F89,"") ->  | B83: =IF(Arbeitsplan!F89<>"",Arbeitsplan!G89,"") ->  | D83: =IF(Arbeitsplan!B89<>"",IF(Arbeitsplan!H89<>"",Arbeitsplan!H89-Arbeitsplan!G89+1,""),"") ->  | E83: =IF(Arbeitsplan!C89<>"",IF(Arbeitsplan!H89<>"",Arbeitsplan!H89-Arbeitsplan!G89+1,""),"") -> 
A84: =IF(C84<>"",Arbeitsplan!F90,"") ->  | B84: =IF(Arbeitsplan!F90<>"",Arbeitsplan!G90,"") ->  | E84: =IF(Arbeitsplan!C90<>"",IF(Arbeitsplan!H90<>"",Arbeitsplan!H90-Arbeitsplan!G90+1,""),"") -> 
A85: =IF(C85<>"",Arbeitsplan!F91,"") ->  | B85: =IF(Arbeitsplan!F91<>"",Arbeitsplan!G91,"") ->  | E85: =IF(Arbeitsplan!C91<>"",IF(Arbeitsplan!H91<>"",Arbeitsplan!H91-Arbeitsplan!G91+1,""),"") -> 
A86: =IF(C86<>"",Arbeitsplan!F92,"") ->  | B86: =IF(Arbeitsplan!F92<>"",Arbeitsplan!G92,"") ->  | E86: =IF(Arbeitsplan!C92<>"",IF(Arbeitsplan!H92<>"",Arbeitsplan!H92-Arbeitsplan!G92+1,""),"") -> 
A87: =IF(C87<>"",Arbeitsplan!F93,"") ->  | B87: =IF(Arbeitsplan!F93<>"",Arbeitsplan!G93,"") ->  | C87: =IF(Arbeitsplan!A93<>"",IF(Arbeitsplan!H93<>"",Arbeitsplan!H93-Arbeitsplan!G93+1,""),"") ->  | D87: =IF(Arbeitsplan!B93<>"",IF(Arbeitsplan!H93<>"",Arbeitsplan!H93-Arbeitsplan!G93+1,""),"") ->  | E87: =IF(Arbeitsplan!C93<>"",IF(Arbeitsplan!H93<>"",Arbeitsplan!H93-Arbeitsplan!G93+1,""),"") -> 
A88: =IF(C88<>"",Arbeitsplan!F94,"") ->  | B88: =IF(Arbeitsplan!F94<>"",Arbeitsplan!G94,"") ->  | D88: =IF(Arbeitsplan!B94<>"",IF(Arbeitsplan!H94<>"",Arbeitsplan!H94-Arbeitsplan!G94+1,""),"") ->  | E88: =IF(Arbeitsplan!C94<>"",IF(Arbeitsplan!H94<>"",Arbeitsplan!H94-Arbeitsplan!G94+1,""),"") -> 
A89: =IF(C89<>"",Arbeitsplan!F95,"") ->  | B89: =IF(Arbeitsplan!F95<>"",Arbeitsplan!G95,"") ->  | E89: =IF(Arbeitsplan!C95<>"",IF(Arbeitsplan!H95<>"",Arbeitsplan!H95-Arbeitsplan!G95+1,""),"") -> 
A90: =IF(C90<>"",Arbeitsplan!F96,"") ->  | B90: =IF(Arbeitsplan!F96<>"",Arbeitsplan!G96,"") ->  | E90: =IF(Arbeitsplan!C96<>"",IF(Arbeitsplan!H96<>"",Arbeitsplan!H96-Arbeitsplan!G96+1,""),"") -> 
A91: =IF(C91<>"",Arbeitsplan!F97,"") ->  | B91: =IF(Arbeitsplan!F97<>"",Arbeitsplan!G97,"") ->  | E91: =IF(Arbeitsplan!C97<>"",IF(Arbeitsplan!H97<>"",Arbeitsplan!H97-Arbeitsplan!G97+1,""),"") -> 
A92: =IF(C92<>"",Arbeitsplan!F98,"") ->  | B92: =IF(Arbeitsplan!F98<>"",Arbeitsplan!G98,"") ->  | C92: =IF(Arbeitsplan!A98<>"",IF(Arbeitsplan!H98<>"",Arbeitsplan!H98-Arbeitsplan!G98+1,""),"") ->  | D92: =IF(Arbeitsplan!B98<>"",IF(Arbeitsplan!H98<>"",Arbeitsplan!H98-Arbeitsplan!G98+1,""),"") ->  | E92: =IF(Arbeitsplan!C98<>"",IF(Arbeitsplan!H98<>"",Arbeitsplan!H98-Arbeitsplan!G98+1,""),"") -> 
A93: =IF(C93<>"",Arbeitsplan!F99,"") ->  | B93: =IF(Arbeitsplan!F99<>"",Arbeitsplan!G99,"") ->  | C93: =IF(Arbeitsplan!A99<>"",IF(Arbeitsplan!H99<>"",Arbeitsplan!H99-Arbeitsplan!G99+1,""),"") ->  | D93: =IF(Arbeitsplan!B99<>"",IF(Arbeitsplan!H99<>"",Arbeitsplan!H99-Arbeitsplan!G99+1,""),"") ->  | E93: =IF(Arbeitsplan!C99<>"",IF(Arbeitsplan!H99<>"",Arbeitsplan!H99-Arbeitsplan!G99+1,""),"") -> 
A94: =IF(C94<>"",Arbeitsplan!F100,"") ->  | B94: =IF(Arbeitsplan!F100<>"",Arbeitsplan!G100,"") ->  | C94: =IF(Arbeitsplan!A100<>"",IF(Arbeitsplan!H100<>"",Arbeitsplan!H100-Arbeitsplan!G100+1,""),"") ->  | D94: =IF(Arbeitsplan!B100<>"",IF(Arbeitsplan!H100<>"",Arbeitsplan!H100-Arbeitsplan!G100+1,""),"") ->  | E94: =IF(Arbeitsplan!C100<>"",IF(Arbeitsplan!H100<>"",Arbeitsplan!H100-Arbeitsplan!G100+1,""),"") -> 
A95: =IF(C95<>"",Arbeitsplan!F101,"") ->  | B95: =IF(Arbeitsplan!F101<>"",Arbeitsplan!G101,"") -> 00:00:00 | D95: =IF(Arbeitsplan!B101<>"",IF(Arbeitsplan!H101<>"",Arbeitsplan!H101-Arbeitsplan!G101+1,""),"") ->  | E95: =IF(Arbeitsplan!C101<>"",IF(Arbeitsplan!H101<>"",Arbeitsplan!H101-Arbeitsplan!G101+1,""),"") -> 
A96: =IF(C96<>"",Arbeitsplan!F102,"") ->  | B96: =IF(Arbeitsplan!F102<>"",Arbeitsplan!G102,"") -> 00:00:00 | E96: =IF(Arbeitsplan!C102<>"",IF(Arbeitsplan!H102<>"",Arbeitsplan!H102-Arbeitsplan!G102+1,""),"") -> 
A97: =IF(C97<>"",Arbeitsplan!F103,"") ->  | B97: =IF(Arbeitsplan!F103<>"",Arbeitsplan!G103,"") -> 00:00:00 | E97: =IF(Arbeitsplan!C103<>"",IF(Arbeitsplan!H103<>"",Arbeitsplan!H103-Arbeitsplan!G103+1,""),"") -> 
A98: =IF(C98<>"",Arbeitsplan!F104,"") ->  | B98: =IF(Arbeitsplan!F104<>"",Arbeitsplan!G104,"") -> 00:00:00 | E98: =IF(Arbeitsplan!C104<>"",IF(Arbeitsplan!H104<>"",Arbeitsplan!H104-Arbeitsplan!G104+1,""),"") -> 
A99: =IF(C99<>"",Arbeitsplan!F105,"") ->  | B99: =IF(Arbeitsplan!F105<>"",Arbeitsplan!G105,"") ->  | C99: =IF(Arbeitsplan!A105<>"",IF(Arbeitsplan!H105<>"",Arbeitsplan!H105-Arbeitsplan!G105+1,""),"") ->  | D99: =IF(Arbeitsplan!B105<>"",IF(Arbeitsplan!H105<>"",Arbeitsplan!H105-Arbeitsplan!G105+1,""),"") ->  | E99: =IF(Arbeitsplan!C105<>"",IF(Arbeitsplan!H105<>"",Arbeitsplan!H105-Arbeitsplan!G105+1,""),"") -> 
A100: =IF(C100<>"",Arbeitsplan!F106,"") ->  | B100: =IF(Arbeitsplan!F106<>"",Arbeitsplan!G106,"") ->  | D100: =IF(Arbeitsplan!B106<>"",IF(Arbeitsplan!H106<>"",Arbeitsplan!H106-Arbeitsplan!G106+1,""),"") ->  | E100: =IF(Arbeitsplan!C106<>"",IF(Arbeitsplan!H106<>"",Arbeitsplan!H106-Arbeitsplan!G106+1,""),"") -> 
A101: =IF(C101<>"",Arbeitsplan!F107,"") ->  | B101: =IF(Arbeitsplan!F107<>"",Arbeitsplan!G107,"") ->  | E101: =IF(Arbeitsplan!C107<>"",IF(Arbeitsplan!H107<>"",Arbeitsplan!H107-Arbeitsplan!G107+1,""),"") -> 
A102: =IF(C102<>"",Arbeitsplan!F108,"") ->  | B102: =IF(Arbeitsplan!F108<>"",Arbeitsplan!G108,"") ->  | E102: =IF(Arbeitsplan!C108<>"",IF(Arbeitsplan!H108<>"",Arbeitsplan!H108-Arbeitsplan!G108+1,""),"") -> 
A103: =IF(C103<>"",Arbeitsplan!F109,"") ->  | B103: =IF(Arbeitsplan!F109<>"",Arbeitsplan!G109,"") ->  | E103: =IF(Arbeitsplan!C109<>"",IF(Arbeitsplan!H109<>"",Arbeitsplan!H109-Arbeitsplan!G109+1,""),"") -> 
A104: =IF(C104<>"",Arbeitsplan!F110,"") ->  | B104: =IF(Arbeitsplan!F110<>"",Arbeitsplan!G110,"") ->  | C104: =IF(Arbeitsplan!A110<>"",IF(Arbeitsplan!H110<>"",Arbeitsplan!H110-Arbeitsplan!G110+1,""),"") ->  | D104: =IF(Arbeitsplan!B110<>"",IF(Arbeitsplan!H110<>"",Arbeitsplan!H110-Arbeitsplan!G110+1,""),"") ->  | E104: =IF(Arbeitsplan!C110<>"",IF(Arbeitsplan!H110<>"",Arbeitsplan!H110-Arbeitsplan!G110+1,""),"") -> 
A105: =IF(C105<>"",Arbeitsplan!F111,"") ->  | B105: =IF(Arbeitsplan!F111<>"",Arbeitsplan!G111,"") ->  | D105: =IF(Arbeitsplan!B111<>"",IF(Arbeitsplan!H111<>"",Arbeitsplan!H111-Arbeitsplan!G111+1,""),"") ->  | E105: =IF(Arbeitsplan!C111<>"",IF(Arbeitsplan!H111<>"",Arbeitsplan!H111-Arbeitsplan!G111+1,""),"") -> 
A106: =IF(C106<>"",Arbeitsplan!F112,"") ->  | B106: =IF(Arbeitsplan!F112<>"",Arbeitsplan!G112,"") ->  | E106: =IF(Arbeitsplan!C112<>"",IF(Arbeitsplan!H112<>"",Arbeitsplan!H112-Arbeitsplan!G112+1,""),"") -> 
A107: =IF(C107<>"",Arbeitsplan!F113,"") ->  | B107: =IF(Arbeitsplan!F113<>"",Arbeitsplan!G113,"") ->  | E107: =IF(Arbeitsplan!C113<>"",IF(Arbeitsplan!H113<>"",Arbeitsplan!H113-Arbeitsplan!G113+1,""),"") -> 
A108: =IF(C108<>"",Arbeitsplan!F114,"") ->  | B108: =IF(Arbeitsplan!F114<>"",Arbeitsplan!G114,"") ->  | E108: =IF(Arbeitsplan!C114<>"",IF(Arbeitsplan!H114<>"",Arbeitsplan!H114-Arbeitsplan!G114+1,""),"") -> 
A109: =IF(C109<>"",Arbeitsplan!F115,"") ->  | B109: =IF(Arbeitsplan!F115<>"",Arbeitsplan!G115,"") ->  | C109: =IF(Arbeitsplan!A115<>"",IF(Arbeitsplan!H115<>"",Arbeitsplan!H115-Arbeitsplan!G115+1,""),"") ->  | D109: =IF(Arbeitsplan!B115<>"",IF(Arbeitsplan!H115<>"",Arbeitsplan!H115-Arbeitsplan!G115+1,""),"") ->  | E109: =IF(Arbeitsplan!C115<>"",IF(Arbeitsplan!H115<>"",Arbeitsplan!H115-Arbeitsplan!G115+1,""),"") -> 
A110: =IF(C110<>"",Arbeitsplan!F116,"") ->  | B110: =IF(Arbeitsplan!F116<>"",Arbeitsplan!G116,"") ->  | D110: =IF(Arbeitsplan!B116<>"",IF(Arbeitsplan!H116<>"",Arbeitsplan!H116-Arbeitsplan!G116+1,""),"") ->  | E110: =IF(Arbeitsplan!C116<>"",IF(Arbeitsplan!H116<>"",Arbeitsplan!H116-Arbeitsplan!G116+1,""),"") -> 
A111: =IF(C111<>"",Arbeitsplan!F117,"") ->  | B111: =IF(Arbeitsplan!F117<>"",Arbeitsplan!G117,"") ->  | E111: =IF(Arbeitsplan!C117<>"",IF(Arbeitsplan!H117<>"",Arbeitsplan!H117-Arbeitsplan!G117+1,""),"") -> 
A112: =IF(C112<>"",Arbeitsplan!F118,"") ->  | B112: =IF(Arbeitsplan!F118<>"",Arbeitsplan!G118,"") ->  | E112: =IF(Arbeitsplan!C118<>"",IF(Arbeitsplan!H118<>"",Arbeitsplan!H118-Arbeitsplan!G118+1,""),"") -> 
A113: =IF(C113<>"",Arbeitsplan!F119,"") ->  | B113: =IF(Arbeitsplan!F119<>"",Arbeitsplan!G119,"") ->  | E113: =IF(Arbeitsplan!C119<>"",IF(Arbeitsplan!H119<>"",Arbeitsplan!H119-Arbeitsplan!G119+1,""),"") -> 
A114: =IF(C114<>"",Arbeitsplan!F120,"") ->  | B114: =IF(Arbeitsplan!F120<>"",Arbeitsplan!G120,"") -> 
A115: =IF(C115<>"",Arbeitsplan!F121,"") ->  | B115: =IF(Arbeitsplan!F121<>"",Arbeitsplan!G121,"") -> 
A116: =IF(C116<>"",Arbeitsplan!F122,"") ->  | B116: =IF(Arbeitsplan!F122<>"",Arbeitsplan!G122,"") ->  | C116: =IF(Arbeitsplan!A122<>"",IF(Arbeitsplan!H122<>"",Arbeitsplan!H122-Arbeitsplan!G122+1,""),"") ->  | D116: =IF(Arbeitsplan!B122<>"",IF(Arbeitsplan!H122<>"",Arbeitsplan!H122-Arbeitsplan!G122+1,""),"") ->  | E116: =IF(Arbeitsplan!C122<>"",IF(Arbeitsplan!H122<>"",Arbeitsplan!H122-Arbeitsplan!G122+1,""),"") -> 
A117: =IF(C117<>"",Arbeitsplan!F123,"") ->  | B117: =IF(Arbeitsplan!F123<>"",Arbeitsplan!G123,"") -> 00:00:00 | D117: =IF(Arbeitsplan!B123<>"",IF(Arbeitsplan!H123<>"",Arbeitsplan!H123-Arbeitsplan!G123+1,""),"") ->  | E117: =IF(Arbeitsplan!C123<>"",IF(Arbeitsplan!H123<>"",Arbeitsplan!H123-Arbeitsplan!G123+1,""),"") -> 
A118: =IF(C118<>"",Arbeitsplan!F124,"") ->  | B118: =IF(Arbeitsplan!F124<>"",Arbeitsplan!G124,"") -> 00:00:00 | E118: =IF(Arbeitsplan!C124<>"",IF(Arbeitsplan!H124<>"",Arbeitsplan!H124-Arbeitsplan!G124+1,""),"") -> 
A119: =IF(C119<>"",Arbeitsplan!F125,"") ->  | B119: =IF(Arbeitsplan!F125<>"",Arbeitsplan!G125,"") -> 00:00:00 | E119: =IF(Arbeitsplan!C125<>"",IF(Arbeitsplan!H125<>"",Arbeitsplan!H125-Arbeitsplan!G125+1,""),"") -> 
A120: =IF(C120<>"",Arbeitsplan!F126,"") ->  | B120: =IF(Arbeitsplan!F126<>"",Arbeitsplan!G126,"") -> 00:00:00 | E120: =IF(Arbeitsplan!C126<>"",IF(Arbeitsplan!H126<>"",Arbeitsplan!H126-Arbeitsplan!G126+1,""),"") -> 
A121: =IF(C121<>"",Arbeitsplan!F127,"") ->  | B121: =IF(Arbeitsplan!F127<>"",Arbeitsplan!G127,"") ->  | C121: =IF(Arbeitsplan!A127<>"",IF(Arbeitsplan!H127<>"",Arbeitsplan!H127-Arbeitsplan!G127+1,""),"") ->  | D121: =IF(Arbeitsplan!B127<>"",IF(Arbeitsplan!H127<>"",Arbeitsplan!H127-Arbeitsplan!G127+1,""),"") ->  | E121: =IF(Arbeitsplan!C127<>"",IF(Arbeitsplan!H127<>"",Arbeitsplan!H127-Arbeitsplan!G127+1,""),"") -> 
A122: =IF(C122<>"",Arbeitsplan!F128,"") ->  | B122: =IF(Arbeitsplan!F128<>"",Arbeitsplan!G128,"") ->  | D122: =IF(Arbeitsplan!B128<>"",IF(Arbeitsplan!H128<>"",Arbeitsplan!H128-Arbeitsplan!G128+1,""),"") ->  | E122: =IF(Arbeitsplan!C128<>"",IF(Arbeitsplan!H128<>"",Arbeitsplan!H128-Arbeitsplan!G128+1,""),"") -> 
A123: =IF(C123<>"",Arbeitsplan!F129,"") ->  | B123: =IF(Arbeitsplan!F129<>"",Arbeitsplan!G129,"") ->  | E123: =IF(Arbeitsplan!C129<>"",IF(Arbeitsplan!H129<>"",Arbeitsplan!H129-Arbeitsplan!G129+1,""),"") -> 
A124: =IF(C124<>"",Arbeitsplan!F130,"") ->  | B124: =IF(Arbeitsplan!F130<>"",Arbeitsplan!G130,"") ->  | E124: =IF(Arbeitsplan!C130<>"",IF(Arbeitsplan!H130<>"",Arbeitsplan!H130-Arbeitsplan!G130+1,""),"") -> 
A125: =IF(C125<>"",Arbeitsplan!F131,"") ->  | B125: =IF(Arbeitsplan!F131<>"",Arbeitsplan!G131,"") ->  | E125: =IF(Arbeitsplan!C131<>"",IF(Arbeitsplan!H131<>"",Arbeitsplan!H131-Arbeitsplan!G131+1,""),"") -> 
A126: =IF(C126<>"",Arbeitsplan!F132,"") ->  | B126: =IF(Arbeitsplan!F132<>"",Arbeitsplan!G132,"") ->  | C126: =IF(Arbeitsplan!A132<>"",IF(Arbeitsplan!H132<>"",Arbeitsplan!H132-Arbeitsplan!G132+1,""),"") ->  | D126: =IF(Arbeitsplan!B132<>"",IF(Arbeitsplan!H132<>"",Arbeitsplan!H132-Arbeitsplan!G132+1,""),"") ->  | E126: =IF(Arbeitsplan!C132<>"",IF(Arbeitsplan!H132<>"",Arbeitsplan!H132-Arbeitsplan!G132+1,""),"") -> 
A127: =IF(C127<>"",Arbeitsplan!F133,"") ->  | B127: =IF(Arbeitsplan!F133<>"",Arbeitsplan!G133,"") ->  | D127: =IF(Arbeitsplan!B133<>"",IF(Arbeitsplan!H133<>"",Arbeitsplan!H133-Arbeitsplan!G133+1,""),"") ->  | E127: =IF(Arbeitsplan!C133<>"",IF(Arbeitsplan!H133<>"",Arbeitsplan!H133-Arbeitsplan!G133+1,""),"") -> 
A128: =IF(C128<>"",Arbeitsplan!F134,"") ->  | B128: =IF(Arbeitsplan!F134<>"",Arbeitsplan!G134,"") ->  | E128: =IF(Arbeitsplan!C134<>"",IF(Arbeitsplan!H134<>"",Arbeitsplan!H134-Arbeitsplan!G134+1,""),"") -> 
A129: =IF(C129<>"",Arbeitsplan!F135,"") ->  | B129: =IF(Arbeitsplan!F135<>"",Arbeitsplan!G135,"") ->  | E129: =IF(Arbeitsplan!C135<>"",IF(Arbeitsplan!H135<>"",Arbeitsplan!H135-Arbeitsplan!G135+1,""),"") -> 
A130: =IF(C130<>"",Arbeitsplan!F136,"") ->  | B130: =IF(Arbeitsplan!F136<>"",Arbeitsplan!G136,"") ->  | E130: =IF(Arbeitsplan!C136<>"",IF(Arbeitsplan!H136<>"",Arbeitsplan!H136-Arbeitsplan!G136+1,""),"") -> 
A131: =IF(C131<>"",Arbeitsplan!F137,"") ->  | B131: =IF(Arbeitsplan!F137<>"",Arbeitsplan!G137,"") ->  | C131: =IF(Arbeitsplan!A137<>"",IF(Arbeitsplan!H137<>"",Arbeitsplan!H137-Arbeitsplan!G137+1,""),"") ->  | D131: =IF(Arbeitsplan!B137<>"",IF(Arbeitsplan!H137<>"",Arbeitsplan!H137-Arbeitsplan!G137+1,""),"") ->  | E131: =IF(Arbeitsplan!C137<>"",IF(Arbeitsplan!H137<>"",Arbeitsplan!H137-Arbeitsplan!G137+1,""),"") -> 
A132: =IF(C132<>"",Arbeitsplan!F138,"") ->  | B132: =IF(Arbeitsplan!F138<>"",Arbeitsplan!G138,"") ->  | D132: =IF(Arbeitsplan!B138<>"",IF(Arbeitsplan!H138<>"",Arbeitsplan!H138-Arbeitsplan!G138+1,""),"") ->  | E132: =IF(Arbeitsplan!C138<>"",IF(Arbeitsplan!H138<>"",Arbeitsplan!H138-Arbeitsplan!G138+1,""),"") -> 
A133: =IF(C133<>"",Arbeitsplan!F139,"") ->  | B133: =IF(Arbeitsplan!F139<>"",Arbeitsplan!G139,"") ->  | E133: =IF(Arbeitsplan!C139<>"",IF(Arbeitsplan!H139<>"",Arbeitsplan!H139-Arbeitsplan!G139+1,""),"") -> 
A134: =IF(C134<>"",Arbeitsplan!F140,"") ->  | B134: =IF(Arbeitsplan!F140<>"",Arbeitsplan!G140,"") ->  | E134: =IF(Arbeitsplan!C140<>"",IF(Arbeitsplan!H140<>"",Arbeitsplan!H140-Arbeitsplan!G140+1,""),"") -> 
A135: =IF(C135<>"",Arbeitsplan!F141,"") ->  | B135: =IF(Arbeitsplan!F141<>"",Arbeitsplan!G141,"") ->  | E135: =IF(Arbeitsplan!C141<>"",IF(Arbeitsplan!H141<>"",Arbeitsplan!H141-Arbeitsplan!G141+1,""),"") -> 
A136: =IF(C136<>"",Arbeitsplan!F142,"") ->  | B136: =IF(Arbeitsplan!F142<>"",Arbeitsplan!G142,"") -> 
A137: =IF(C137<>"",Arbeitsplan!F143,"") ->  | B137: =IF(Arbeitsplan!F143<>"",Arbeitsplan!G143,"") -> 
A138: =IF(C138<>"",Arbeitsplan!F144,"") ->  | B138: =IF(Arbeitsplan!F144<>"",Arbeitsplan!G144,"") ->  | C138: =IF(Arbeitsplan!A144<>"",IF(Arbeitsplan!H144<>"",Arbeitsplan!H144-Arbeitsplan!G144+1,""),"") ->  | D138: =IF(Arbeitsplan!B144<>"",IF(Arbeitsplan!H144<>"",Arbeitsplan!H144-Arbeitsplan!G144+1,""),"") ->  | E138: =IF(Arbeitsplan!C144<>"",IF(Arbeitsplan!H144<>"",Arbeitsplan!H144-Arbeitsplan!G144+1,""),"") -> 
A139: =IF(C139<>"",Arbeitsplan!F145,"") ->  | B139: =IF(Arbeitsplan!F145<>"",Arbeitsplan!G145,"") -> 00:00:00 | D139: =IF(Arbeitsplan!B145<>"",IF(Arbeitsplan!H145<>"",Arbeitsplan!H145-Arbeitsplan!G145+1,""),"") ->  | E139: =IF(Arbeitsplan!C145<>"",IF(Arbeitsplan!H145<>"",Arbeitsplan!H145-Arbeitsplan!G145+1,""),"") -> 
A140: =IF(C140<>"",Arbeitsplan!F146,"") ->  | B140: =IF(Arbeitsplan!F146<>"",Arbeitsplan!G146,"") -> 00:00:00 | E140: =IF(Arbeitsplan!C146<>"",IF(Arbeitsplan!H146<>"",Arbeitsplan!H146-Arbeitsplan!G146+1,""),"") -> 
A141: =IF(C141<>"",Arbeitsplan!F147,"") ->  | B141: =IF(Arbeitsplan!F147<>"",Arbeitsplan!G147,"") -> 00:00:00 | E141: =IF(Arbeitsplan!C147<>"",IF(Arbeitsplan!H147<>"",Arbeitsplan!H147-Arbeitsplan!G147+1,""),"") -> 
A142: =IF(C142<>"",Arbeitsplan!F148,"") ->  | B142: =IF(Arbeitsplan!F148<>"",Arbeitsplan!G148,"") -> 00:00:00 | E142: =IF(Arbeitsplan!C148<>"",IF(Arbeitsplan!H148<>"",Arbeitsplan!H148-Arbeitsplan!G148+1,""),"") -> 
A143: =IF(C143<>"",Arbeitsplan!F149,"") ->  | B143: =IF(Arbeitsplan!F149<>"",Arbeitsplan!G149,"") ->  | C143: =IF(Arbeitsplan!A149<>"",IF(Arbeitsplan!H149<>"",Arbeitsplan!H149-Arbeitsplan!G149+1,""),"") ->  | D143: =IF(Arbeitsplan!B149<>"",IF(Arbeitsplan!H149<>"",Arbeitsplan!H149-Arbeitsplan!G149+1,""),"") ->  | E143: =IF(Arbeitsplan!C149<>"",IF(Arbeitsplan!H149<>"",Arbeitsplan!H149-Arbeitsplan!G149+1,""),"") -> 
A144: =IF(C144<>"",Arbeitsplan!F150,"") ->  | B144: =IF(Arbeitsplan!F150<>"",Arbeitsplan!G150,"") ->  | D144: =IF(Arbeitsplan!B150<>"",IF(Arbeitsplan!H150<>"",Arbeitsplan!H150-Arbeitsplan!G150+1,""),"") ->  | E144: =IF(Arbeitsplan!C150<>"",IF(Arbeitsplan!H150<>"",Arbeitsplan!H150-Arbeitsplan!G150+1,""),"") -> 
A145: =IF(C145<>"",Arbeitsplan!F151,"") ->  | B145: =IF(Arbeitsplan!F151<>"",Arbeitsplan!G151,"") ->  | E145: =IF(Arbeitsplan!C151<>"",IF(Arbeitsplan!H151<>"",Arbeitsplan!H151-Arbeitsplan!G151+1,""),"") -> 
A146: =IF(C146<>"",Arbeitsplan!F152,"") ->  | B146: =IF(Arbeitsplan!F152<>"",Arbeitsplan!G152,"") ->  | E146: =IF(Arbeitsplan!C152<>"",IF(Arbeitsplan!H152<>"",Arbeitsplan!H152-Arbeitsplan!G152+1,""),"") -> 
A147: =IF(C147<>"",Arbeitsplan!F153,"") ->  | B147: =IF(Arbeitsplan!F153<>"",Arbeitsplan!G153,"") ->  | E147: =IF(Arbeitsplan!C153<>"",IF(Arbeitsplan!H153<>"",Arbeitsplan!H153-Arbeitsplan!G153+1,""),"") -> 
A148: =IF(C148<>"",Arbeitsplan!F154,"") ->  | B148: =IF(Arbeitsplan!F154<>"",Arbeitsplan!G154,"") ->  | C148: =IF(Arbeitsplan!A154<>"",IF(Arbeitsplan!H154<>"",Arbeitsplan!H154-Arbeitsplan!G154+1,""),"") ->  | D148: =IF(Arbeitsplan!B154<>"",IF(Arbeitsplan!H154<>"",Arbeitsplan!H154-Arbeitsplan!G154+1,""),"") ->  | E148: =IF(Arbeitsplan!C154<>"",IF(Arbeitsplan!H154<>"",Arbeitsplan!H154-Arbeitsplan!G154+1,""),"") -> 
A149: =IF(C149<>"",Arbeitsplan!F155,"") ->  | B149: =IF(Arbeitsplan!F155<>"",Arbeitsplan!G155,"") ->  | D149: =IF(Arbeitsplan!B155<>"",IF(Arbeitsplan!H155<>"",Arbeitsplan!H155-Arbeitsplan!G155+1,""),"") ->  | E149: =IF(Arbeitsplan!C155<>"",IF(Arbeitsplan!H155<>"",Arbeitsplan!H155-Arbeitsplan!G155+1,""),"") -> 
A150: =IF(C150<>"",Arbeitsplan!F156,"") ->  | B150: =IF(Arbeitsplan!F156<>"",Arbeitsplan!G156,"") ->  | E150: =IF(Arbeitsplan!C156<>"",IF(Arbeitsplan!H156<>"",Arbeitsplan!H156-Arbeitsplan!G156+1,""),"") -> 
A151: =IF(C151<>"",Arbeitsplan!F157,"") ->  | B151: =IF(Arbeitsplan!F157<>"",Arbeitsplan!G157,"") ->  | E151: =IF(Arbeitsplan!C157<>"",IF(Arbeitsplan!H157<>"",Arbeitsplan!H157-Arbeitsplan!G157+1,""),"") -> 
A152: =IF(C152<>"",Arbeitsplan!F158,"") ->  | B152: =IF(Arbeitsplan!F158<>"",Arbeitsplan!G158,"") ->  | E152: =IF(Arbeitsplan!C158<>"",IF(Arbeitsplan!H158<>"",Arbeitsplan!H158-Arbeitsplan!G158+1,""),"") -> 
A153: =IF(C153<>"",Arbeitsplan!F159,"") ->  | B153: =IF(Arbeitsplan!F159<>"",Arbeitsplan!G159,"") ->  | C153: =IF(Arbeitsplan!A159<>"",IF(Arbeitsplan!H159<>"",Arbeitsplan!H159-Arbeitsplan!G159+1,""),"") ->  | D153: =IF(Arbeitsplan!B159<>"",IF(Arbeitsplan!H159<>"",Arbeitsplan!H159-Arbeitsplan!G159+1,""),"") ->  | E153: =IF(Arbeitsplan!C159<>"",IF(Arbeitsplan!H159<>"",Arbeitsplan!H159-Arbeitsplan!G159+1,""),"") -> 
A154: =IF(C154<>"",Arbeitsplan!F160,"") ->  | B154: =IF(Arbeitsplan!F160<>"",Arbeitsplan!G160,"") ->  | D154: =IF(Arbeitsplan!B160<>"",IF(Arbeitsplan!H160<>"",Arbeitsplan!H160-Arbeitsplan!G160+1,""),"") ->  | E154: =IF(Arbeitsplan!C160<>"",IF(Arbeitsplan!H160<>"",Arbeitsplan!H160-Arbeitsplan!G160+1,""),"") -> 
A155: =IF(C155<>"",Arbeitsplan!F161,"") ->  | B155: =IF(Arbeitsplan!F161<>"",Arbeitsplan!G161,"") ->  | E155: =IF(Arbeitsplan!C161<>"",IF(Arbeitsplan!H161<>"",Arbeitsplan!H161-Arbeitsplan!G161+1,""),"") -> 
A156: =IF(C156<>"",Arbeitsplan!F162,"") ->  | B156: =IF(Arbeitsplan!F162<>"",Arbeitsplan!G162,"") ->  | E156: =IF(Arbeitsplan!C162<>"",IF(Arbeitsplan!H162<>"",Arbeitsplan!H162-Arbeitsplan!G162+1,""),"") -> 
A157: =IF(C157<>"",Arbeitsplan!F163,"") ->  | B157: =IF(Arbeitsplan!F163<>"",Arbeitsplan!G163,"") ->  | E157: =IF(Arbeitsplan!C163<>"",IF(Arbeitsplan!H163<>"",Arbeitsplan!H163-Arbeitsplan!G163+1,""),"") -> 
A158: =IF(C158<>"",Arbeitsplan!F164,"") ->  | B158: =IF(Arbeitsplan!F164<>"",Arbeitsplan!G164,"") -> 
A159: =IF(C159<>"",Arbeitsplan!F165,"") ->  | B159: =IF(Arbeitsplan!F165<>"",Arbeitsplan!G165,"") -> 
A160: =IF(C160<>"",Arbeitsplan!#REF!,"") ->  | B160: =IF(Arbeitsplan!#REF!<>"",Arbeitsplan!#REF!,"") ->  | C160: =IF(Arbeitsplan!#REF!<>"",IF(Arbeitsplan!#REF!<>"",Arbeitsplan!#REF!-Arbeitsplan!#REF!+1,""),"") ->  | D160: =IF(Arbeitsplan!#REF!<>"",IF(Arbeitsplan!#REF!<>"",Arbeitsplan!#REF!-Arbeitsplan!#REF!+1,""),"") ->  | E160: =IF(Arbeitsplan!#REF!<>"",IF(Arbeitsplan!#REF!<>"",Arbeitsplan!#REF!-Arbeitsplan!#REF!+1,""),"") -> 
A161: =IF(C161<>"",Arbeitsplan!F166,"") ->  | B161: =IF(Arbeitsplan!F166<>"",Arbeitsplan!G166,"") ->  | C161: =IF(Arbeitsplan!A166<>"",IF(Arbeitsplan!H166<>"",Arbeitsplan!H166-Arbeitsplan!G166+1,""),"") ->  | D161: =IF(Arbeitsplan!B166<>"",IF(Arbeitsplan!H166<>"",Arbeitsplan!H166-Arbeitsplan!G166+1,""),"") ->  | E161: =IF(Arbeitsplan!C166<>"",IF(Arbeitsplan!H166<>"",Arbeitsplan!H166-Arbeitsplan!G166+1,""),"") -> 
A162: =IF(C162<>"",Arbeitsplan!F167,"") ->  | B162: =IF(Arbeitsplan!F167<>"",Arbeitsplan!G167,"") -> 00:00:00 | D162: =IF(Arbeitsplan!B167<>"",IF(Arbeitsplan!H167<>"",Arbeitsplan!H167-Arbeitsplan!G167+1,""),"") ->  | E162: =IF(Arbeitsplan!C167<>"",IF(Arbeitsplan!H167<>"",Arbeitsplan!H167-Arbeitsplan!G167+1,""),"") -> 
A163: =IF(C163<>"",Arbeitsplan!F168,"") ->  | B163: =IF(Arbeitsplan!F168<>"",Arbeitsplan!G168,"") -> 00:00:00 | E163: =IF(Arbeitsplan!C168<>"",IF(Arbeitsplan!H168<>"",Arbeitsplan!H168-Arbeitsplan!G168+1,""),"") -> 
A164: =IF(C164<>"",Arbeitsplan!F169,"") ->  | B164: =IF(Arbeitsplan!F169<>"",Arbeitsplan!G169,"") -> 00:00:00 | E164: =IF(Arbeitsplan!C169<>"",IF(Arbeitsplan!H169<>"",Arbeitsplan!H169-Arbeitsplan!G169+1,""),"") -> 
A165: =IF(C165<>"",Arbeitsplan!F170,"") ->  | B165: =IF(Arbeitsplan!F170<>"",Arbeitsplan!G170,"") -> 00:00:00 | E165: =IF(Arbeitsplan!C170<>"",IF(Arbeitsplan!H170<>"",Arbeitsplan!H170-Arbeitsplan!G170+1,""),"") -> 
A166: =IF(C166<>"",Arbeitsplan!F171,"") ->  | B166: =IF(Arbeitsplan!F171<>"",Arbeitsplan!G171,"") ->  | C166: =IF(Arbeitsplan!A171<>"",IF(Arbeitsplan!H171<>"",Arbeitsplan!H171-Arbeitsplan!G171+1,""),"") ->  | D166: =IF(Arbeitsplan!B171<>"",IF(Arbeitsplan!H171<>"",Arbeitsplan!H171-Arbeitsplan!G171+1,""),"") ->  | E166: =IF(Arbeitsplan!C171<>"",IF(Arbeitsplan!H171<>"",Arbeitsplan!H171-Arbeitsplan!G171+1,""),"") -> 
A167: =IF(C167<>"",Arbeitsplan!F172,"") ->  | B167: =IF(Arbeitsplan!F172<>"",Arbeitsplan!G172,"") ->  | D167: =IF(Arbeitsplan!B172<>"",IF(Arbeitsplan!H172<>"",Arbeitsplan!H172-Arbeitsplan!G172+1,""),"") ->  | E167: =IF(Arbeitsplan!C172<>"",IF(Arbeitsplan!H172<>"",Arbeitsplan!H172-Arbeitsplan!G172+1,""),"") -> 
A168: =IF(C168<>"",Arbeitsplan!F173,"") ->  | B168: =IF(Arbeitsplan!F173<>"",Arbeitsplan!G173,"") ->  | E168: =IF(Arbeitsplan!C173<>"",IF(Arbeitsplan!H173<>"",Arbeitsplan!H173-Arbeitsplan!G173+1,""),"") -> 
A169: =IF(C169<>"",Arbeitsplan!F174,"") ->  | B169: =IF(Arbeitsplan!F174<>"",Arbeitsplan!G174,"") ->  | E169: =IF(Arbeitsplan!C174<>"",IF(Arbeitsplan!H174<>"",Arbeitsplan!H174-Arbeitsplan!G174+1,""),"") -> 
A170: =IF(C170<>"",Arbeitsplan!F175,"") ->  | B170: =IF(Arbeitsplan!F175<>"",Arbeitsplan!G175,"") ->  | E170: =IF(Arbeitsplan!C175<>"",IF(Arbeitsplan!H175<>"",Arbeitsplan!H175-Arbeitsplan!G175+1,""),"") -> 
A171: =IF(C171<>"",Arbeitsplan!F176,"") ->  | B171: =IF(Arbeitsplan!F176<>"",Arbeitsplan!G176,"") ->  | C171: =IF(Arbeitsplan!A176<>"",IF(Arbeitsplan!H176<>"",Arbeitsplan!H176-Arbeitsplan!G176+1,""),"") ->  | D171: =IF(Arbeitsplan!B176<>"",IF(Arbeitsplan!H176<>"",Arbeitsplan!H176-Arbeitsplan!G176+1,""),"") ->  | E171: =IF(Arbeitsplan!C176<>"",IF(Arbeitsplan!H176<>"",Arbeitsplan!H176-Arbeitsplan!G176+1,""),"") -> 
A172: =IF(C172<>"",Arbeitsplan!F177,"") ->  | B172: =IF(Arbeitsplan!F177<>"",Arbeitsplan!G177,"") ->  | D172: =IF(Arbeitsplan!B177<>"",IF(Arbeitsplan!H177<>"",Arbeitsplan!H177-Arbeitsplan!G177+1,""),"") ->  | E172: =IF(Arbeitsplan!C177<>"",IF(Arbeitsplan!H177<>"",Arbeitsplan!H177-Arbeitsplan!G177+1,""),"") -> 
A173: =IF(C173<>"",Arbeitsplan!F178,"") ->  | B173: =IF(Arbeitsplan!F178<>"",Arbeitsplan!G178,"") ->  | E173: =IF(Arbeitsplan!C178<>"",IF(Arbeitsplan!H178<>"",Arbeitsplan!H178-Arbeitsplan!G178+1,""),"") -> 
A174: =IF(C174<>"",Arbeitsplan!F179,"") ->  | B174: =IF(Arbeitsplan!F179<>"",Arbeitsplan!G179,"") ->  | E174: =IF(Arbeitsplan!C179<>"",IF(Arbeitsplan!H179<>"",Arbeitsplan!H179-Arbeitsplan!G179+1,""),"") -> 
A175: =IF(C175<>"",Arbeitsplan!F180,"") ->  | B175: =IF(Arbeitsplan!F180<>"",Arbeitsplan!G180,"") ->  | E175: =IF(Arbeitsplan!C180<>"",IF(Arbeitsplan!H180<>"",Arbeitsplan!H180-Arbeitsplan!G180+1,""),"") -> 
A176: =IF(C176<>"",Arbeitsplan!F181,"") ->  | B176: =IF(Arbeitsplan!F181<>"",Arbeitsplan!G181,"") ->  | C176: =IF(Arbeitsplan!A181<>"",IF(Arbeitsplan!H181<>"",Arbeitsplan!H181-Arbeitsplan!G181+1,""),"") ->  | D176: =IF(Arbeitsplan!B181<>"",IF(Arbeitsplan!H181<>"",Arbeitsplan!H181-Arbeitsplan!G181+1,""),"") ->  | E176: =IF(Arbeitsplan!C181<>"",IF(Arbeitsplan!H181<>"",Arbeitsplan!H181-Arbeitsplan!G181+1,""),"") -> 
A177: =IF(C177<>"",Arbeitsplan!F182,"") ->  | B177: =IF(Arbeitsplan!F182<>"",Arbeitsplan!G182,"") ->  | D177: =IF(Arbeitsplan!B182<>"",IF(Arbeitsplan!H182<>"",Arbeitsplan!H182-Arbeitsplan!G182+1,""),"") ->  | E177: =IF(Arbeitsplan!C182<>"",IF(Arbeitsplan!H182<>"",Arbeitsplan!H182-Arbeitsplan!G182+1,""),"") -> 
A178: =IF(C178<>"",Arbeitsplan!F183,"") ->  | B178: =IF(Arbeitsplan!F183<>"",Arbeitsplan!G183,"") ->  | E178: =IF(Arbeitsplan!C183<>"",IF(Arbeitsplan!H183<>"",Arbeitsplan!H183-Arbeitsplan!G183+1,""),"") -> 
A179: =IF(C179<>"",Arbeitsplan!F184,"") ->  | B179: =IF(Arbeitsplan!F184<>"",Arbeitsplan!G184,"") ->  | E179: =IF(Arbeitsplan!C184<>"",IF(Arbeitsplan!H184<>"",Arbeitsplan!H184-Arbeitsplan!G184+1,""),"") -> 
A180: =IF(C180<>"",Arbeitsplan!F185,"") ->  | B180: =IF(Arbeitsplan!F185<>"",Arbeitsplan!G185,"") ->  | E180: =IF(Arbeitsplan!C185<>"",IF(Arbeitsplan!H185<>"",Arbeitsplan!H185-Arbeitsplan!G185+1,""),"") -> 
A181: =IF(C181<>"",Arbeitsplan!F186,"") ->  | B181: =IF(Arbeitsplan!F186<>"",Arbeitsplan!G186,"") -> 
A182: =IF(C182<>"",Arbeitsplan!F187,"") ->  | B182: =IF(Arbeitsplan!F187<>"",Arbeitsplan!G187,"") ->  | C182: =IF(Arbeitsplan!A187<>"",IF(Arbeitsplan!H187<>"",Arbeitsplan!H187-Arbeitsplan!G187+1,""),"") ->  | D182: =IF(Arbeitsplan!B187<>"",IF(Arbeitsplan!H187<>"",Arbeitsplan!H187-Arbeitsplan!G187+1,""),"") ->  | E182: =IF(Arbeitsplan!C187<>"",IF(Arbeitsplan!H187<>"",Arbeitsplan!H187-Arbeitsplan!G187+1,""),"") -> 
A183: =IF(C183<>"",Arbeitsplan!F188,"") ->  | B183: =IF(Arbeitsplan!F188<>"",Arbeitsplan!G188,"") ->  | C183: =IF(Arbeitsplan!A188<>"",IF(Arbeitsplan!H188<>"",Arbeitsplan!H188-Arbeitsplan!G188+1,""),"") ->  | D183: =IF(Arbeitsplan!B188<>"",IF(Arbeitsplan!H188<>"",Arbeitsplan!H188-Arbeitsplan!G188+1,""),"") ->  | E183: =IF(Arbeitsplan!C188<>"",IF(Arbeitsplan!H188<>"",Arbeitsplan!H188-Arbeitsplan!G188+1,""),"") -> 
A184: =IF(C184<>"",Arbeitsplan!F189,"") ->  | B184: =IF(Arbeitsplan!F189<>"",Arbeitsplan!G189,"") -> 00:00:00 | D184: =IF(Arbeitsplan!B189<>"",IF(Arbeitsplan!H189<>"",Arbeitsplan!H189-Arbeitsplan!G189+1,""),"") ->  | E184: =IF(Arbeitsplan!C189<>"",IF(Arbeitsplan!H189<>"",Arbeitsplan!H189-Arbeitsplan!G189+1,""),"") -> 
A185: =IF(C185<>"",Arbeitsplan!F190,"") ->  | B185: =IF(Arbeitsplan!F190<>"",Arbeitsplan!G190,"") -> 00:00:00 | E185: =IF(Arbeitsplan!C190<>"",IF(Arbeitsplan!H190<>"",Arbeitsplan!H190-Arbeitsplan!G190+1,""),"") -> 
A186: =IF(C186<>"",Arbeitsplan!F191,"") ->  | B186: =IF(Arbeitsplan!F191<>"",Arbeitsplan!G191,"") -> 00:00:00 | E186: =IF(Arbeitsplan!C191<>"",IF(Arbeitsplan!H191<>"",Arbeitsplan!H191-Arbeitsplan!G191+1,""),"") -> 
A187: =IF(C187<>"",Arbeitsplan!F192,"") ->  | B187: =IF(Arbeitsplan!F192<>"",Arbeitsplan!G192,"") -> 00:00:00 | E187: =IF(Arbeitsplan!C192<>"",IF(Arbeitsplan!H192<>"",Arbeitsplan!H192-Arbeitsplan!G192+1,""),"") -> 
A188: =IF(C188<>"",Arbeitsplan!F193,"") ->  | B188: =IF(Arbeitsplan!F193<>"",Arbeitsplan!G193,"") ->  | C188: =IF(Arbeitsplan!A193<>"",IF(Arbeitsplan!H193<>"",Arbeitsplan!H193-Arbeitsplan!G193+1,""),"") ->  | D188: =IF(Arbeitsplan!B193<>"",IF(Arbeitsplan!H193<>"",Arbeitsplan!H193-Arbeitsplan!G193+1,""),"") ->  | E188: =IF(Arbeitsplan!C193<>"",IF(Arbeitsplan!H193<>"",Arbeitsplan!H193-Arbeitsplan!G193+1,""),"") -> 
A189: =IF(C189<>"",Arbeitsplan!F194,"") ->  | B189: =IF(Arbeitsplan!F194<>"",Arbeitsplan!G194,"") ->  | D189: =IF(Arbeitsplan!B194<>"",IF(Arbeitsplan!H194<>"",Arbeitsplan!H194-Arbeitsplan!G194+1,""),"") ->  | E189: =IF(Arbeitsplan!C194<>"",IF(Arbeitsplan!H194<>"",Arbeitsplan!H194-Arbeitsplan!G194+1,""),"") -> 
A190: =IF(C190<>"",Arbeitsplan!F195,"") ->  | B190: =IF(Arbeitsplan!F195<>"",Arbeitsplan!G195,"") ->  | E190: =IF(Arbeitsplan!C195<>"",IF(Arbeitsplan!H195<>"",Arbeitsplan!H195-Arbeitsplan!G195+1,""),"") -> 
A191: =IF(C191<>"",Arbeitsplan!F196,"") ->  | B191: =IF(Arbeitsplan!F196<>"",Arbeitsplan!G196,"") ->  | E191: =IF(Arbeitsplan!C196<>"",IF(Arbeitsplan!H196<>"",Arbeitsplan!H196-Arbeitsplan!G196+1,""),"") -> 
A192: =IF(C192<>"",Arbeitsplan!F197,"") ->  | B192: =IF(Arbeitsplan!F197<>"",Arbeitsplan!G197,"") ->  | E192: =IF(Arbeitsplan!C197<>"",IF(Arbeitsplan!H197<>"",Arbeitsplan!H197-Arbeitsplan!G197+1,""),"") -> 
A193: =IF(C193<>"",Arbeitsplan!F198,"") ->  | B193: =IF(Arbeitsplan!F198<>"",Arbeitsplan!G198,"") ->  | C193: =IF(Arbeitsplan!A198<>"",IF(Arbeitsplan!H198<>"",Arbeitsplan!H198-Arbeitsplan!G198+1,""),"") ->  | D193: =IF(Arbeitsplan!B198<>"",IF(Arbeitsplan!H198<>"",Arbeitsplan!H198-Arbeitsplan!G198+1,""),"") ->  | E193: =IF(Arbeitsplan!C198<>"",IF(Arbeitsplan!H198<>"",Arbeitsplan!H198-Arbeitsplan!G198+1,""),"") -> 
A194: =IF(C194<>"",Arbeitsplan!F199,"") ->  | B194: =IF(Arbeitsplan!F199<>"",Arbeitsplan!G199,"") ->  | D194: =IF(Arbeitsplan!B199<>"",IF(Arbeitsplan!H199<>"",Arbeitsplan!H199-Arbeitsplan!G199+1,""),"") ->  | E194: =IF(Arbeitsplan!C199<>"",IF(Arbeitsplan!H199<>"",Arbeitsplan!H199-Arbeitsplan!G199+1,""),"") -> 
A195: =IF(C195<>"",Arbeitsplan!F200,"") ->  | B195: =IF(Arbeitsplan!F200<>"",Arbeitsplan!G200,"") ->  | E195: =IF(Arbeitsplan!C200<>"",IF(Arbeitsplan!H200<>"",Arbeitsplan!H200-Arbeitsplan!G200+1,""),"") -> 
A196: =IF(C196<>"",Arbeitsplan!F201,"") ->  | B196: =IF(Arbeitsplan!F201<>"",Arbeitsplan!G201,"") ->  | E196: =IF(Arbeitsplan!C201<>"",IF(Arbeitsplan!H201<>"",Arbeitsplan!H201-Arbeitsplan!G201+1,""),"") -> 
A197: =IF(C197<>"",Arbeitsplan!F202,"") ->  | B197: =IF(Arbeitsplan!F202<>"",Arbeitsplan!G202,"") ->  | E197: =IF(Arbeitsplan!C202<>"",IF(Arbeitsplan!H202<>"",Arbeitsplan!H202-Arbeitsplan!G202+1,""),"") -> 
A198: =IF(C198<>"",Arbeitsplan!F203,"") ->  | B198: =IF(Arbeitsplan!F203<>"",Arbeitsplan!G203,"") ->  | C198: =IF(Arbeitsplan!A203<>"",IF(Arbeitsplan!H203<>"",Arbeitsplan!H203-Arbeitsplan!G203+1,""),"") ->  | D198: =IF(Arbeitsplan!B203<>"",IF(Arbeitsplan!H203<>"",Arbeitsplan!H203-Arbeitsplan!G203+1,""),"") ->  | E198: =IF(Arbeitsplan!C203<>"",IF(Arbeitsplan!H203<>"",Arbeitsplan!H203-Arbeitsplan!G203+1,""),"") -> 
A199: =IF(C199<>"",Arbeitsplan!F204,"") ->  | B199: =IF(Arbeitsplan!F204<>"",Arbeitsplan!G204,"") ->  | D199: =IF(Arbeitsplan!B204<>"",IF(Arbeitsplan!H204<>"",Arbeitsplan!H204-Arbeitsplan!G204+1,""),"") ->  | E199: =IF(Arbeitsplan!C204<>"",IF(Arbeitsplan!H204<>"",Arbeitsplan!H204-Arbeitsplan!G204+1,""),"") -> 
A200: =IF(C200<>"",Arbeitsplan!F205,"") ->  | B200: =IF(Arbeitsplan!F205<>"",Arbeitsplan!G205,"") ->  | E200: =IF(Arbeitsplan!C205<>"",IF(Arbeitsplan!H205<>"",Arbeitsplan!H205-Arbeitsplan!G205+1,""),"") -> 
A201: =IF(C201<>"",Arbeitsplan!F206,"") ->  | B201: =IF(Arbeitsplan!F206<>"",Arbeitsplan!G206,"") ->  | E201: =IF(Arbeitsplan!C206<>"",IF(Arbeitsplan!H206<>"",Arbeitsplan!H206-Arbeitsplan!G206+1,""),"") -> 
... 360 more rows

Sheet Arbeitsplan
A1: Arbeitsplan | G1: Dauer | H1: =ROUND((H3-H2)/7,0) -> 39 | I1: in Wochen
A2: Projekt: | B2: Neues Projekt | G2: Anfang | H2: 2013-01-01
A3: Stand: | B3: 2012-01-01 | G3: Ende | H3: 2013-09-30 | P3: =CONCATENATE(P7," ",P8) -> KW 14 | Q3: =CONCATENATE(Q7," ",Q8) -> KW 18 | R3: KW 23 | S3: KW 27 | T3: KW 32 | U3: KW 36 | V3: KW 40 | W3: KW 45 | X3: KW 49 | Y3: KW 1 | Z3: KW 6 | AA3: KW 10 | AB3: KW 14 | AC3: KW 19 | AD3: KW 23 | AE3: KW 27 | AF3: KW 32 | AG3: KW 36 | AH3: KW 40 | AI3: KW 45 | AJ3: KW 49
A4: Autor: | B4: Dr. Volker Klügl | G4: Review R2 | P4: =P11 -> 0 | Q4: =Q11 -> 0 | R4: 0 | S4: 45 | T4: 85 | U4: 117 | V4: 121 | W4: 117 | X4: 121 | Y4: 121 | Z4: 106 | AA4: 76 | AB4: 71 | AC4: 36 | AD4: 32 | AE4: 0 | AF4: 0 | AG4: 0 | AH4: 0 | AI4: 0 | AJ4: 0
A5: Aufwandsschätzung | O5: Verfügbarkeiit | P5: =Verfügbarkeit!A4 -> 150 | Q5: =Verfügbarkeit!B4 -> 150 | R5: =Verfügbarkeit!C4 -> 150 | S5: =Verfügbarkeit!D4 -> 150 | T5: =Verfügbarkeit!E4 -> 150 | U5: =Verfügbarkeit!F4 -> 150 | V5: =Verfügbarkeit!G4 -> 150 | W5: =Verfügbarkeit!H4 -> 150 | X5: =Verfügbarkeit!I4 -> 150 | Y5: =Verfügbarkeit!J4 -> 150 | Z5: =Verfügbarkeit!K4 -> 150 | AA5: =Verfügbarkeit!L4 -> 150 | AB5: =Verfügbarkeit!M4 -> 150 | AC5: =Verfügbarkeit!N4 -> 150 | AD5: =Verfügbarkeit!O4 -> 150 | AE5: =Verfügbarkeit!P4 -> 150 | AF5: =Verfügbarkeit!Q4 -> 150 | AG5: =Verfügbarkeit!R4 -> 150 | AH5: =Verfügbarkeit!S4 -> 150 | AI5: =Verfügbarkeit!T4 -> 150 | AJ5: =Verfügbarkeit!U4 -> 150
A7: Arbeitsplan / Workplan | J7: Berechnung | P7: KW | Q7: KW | R7: KW | S7: KW | T7: KW | U7: KW | V7: KW | W7: KW | X7: KW | Y7: KW | Z7: KW | AA7: KW | AB7: KW | AC7: KW | AD7: KW | AE7: KW | AF7: KW | AG7: KW | AH7: KW | AI7: KW | AJ7: KW
A8: ID | D8: ID | E8: Mitarbeiter | F8: Taskbezeichnung | G8: Anfang | H8: Ende | I8: Schätz- | K8: Schätz | M8: Summe PT | P8: =WEEKNUM(P9+3) -> 14 | Q8: 18 | R8: 23 | S8: 27 | T8: 32 | U8: 36 | V8: 40 | W8: 45 | X8: 49 | Y8: =WEEKNUM(Y9+3) -> 1 | Z8: 6 | AA8: 10 | AB8: 14 | AC8: 19 | AD8: 23 | AE8: 27 | AF8: 32 | AG8: 36 | AH8: 40 | AI8: 45 | AJ8: 49
A9: Ebene 1 | B9: Ebene 2 | C9: Ebene 3 | G9: Start date | H9: End date | I9: Basis | J9: Me | L9: Summe | M9: pro Task | P9: 2013-04-01 | Q9: 2013-05-01 | R9: 2013-06-01 | S9: 2013-07-01 | T9: 2013-08-01 | U9: 2013-09-01 | V9: 2013-10-01 | W9: 2013-11-01 | X9: 2013-12-01 | Y9: 2014-01-01 | Z9: 2014-02-01 | AA9: 2014-03-01 | AB9: 2014-04-01 | AC9: 2014-05-01 | AD9: 2014-06-01 | AE9: 2014-07-01 | AF9: 2014-08-01 | AG9: 2014-09-01 | AH9: 2014-10-01 | AI9: 2014-11-01 | AJ9: 2014-12-01
P10: 2013-04-30 | Q10: 2013-05-31 | R10: 2013-06-30 | S10: 2013-07-31 | T10: 2013-08-31 | U10: 2013-09-30 | V10: 2013-10-31 | W10: 2013-11-30 | X10: 2013-12-31 | Y10: =Z9-1 -> 2014-01-31 | Z10: =AA9-1 -> 2014-02-28 | AA10: 2014-03-31 | AB10: 2014-04-30 | AC10: 2014-05-31 | AD10: 2014-06-30 | AE10: 2014-07-31 | AF10: 2014-08-31 | AG10: 2014-09-30 | AH10: 2014-10-31 | AI10: 2014-11-30 | AJ10: 2014-12-31
L11: =SUM(L12:L520) -> 1080.0 | M11: =SUM(M12:M520)/2 -> 1080.0 | O11: =SUM(P11:AJ11) -> 1048.0 | P11: =SUBTOTAL(109,(P12:P600))/2 -> 0 | Q11: =SUBTOTAL(109,(Q12:Q600))/2 -> 0 | R11: 0 | S11: 45 | T11: 85 | U11: 117 | V11: 121 | W11: 117 | X11: 121 | Y11: 121 | Z11: 106 | AA11: 76 | AB11: 71 | AC11: 36 | AD11: 32 | AE11: 0 | AF11: 0 | AG11: 0 | AH11: 0 | AI11: 0 | AJ11: 0
A12: 12000 | F12: =INDIRECT(CONCATENATE("Übersicht!C",TEXT((A12-10000)/1000,0))) -> Projekt_1 | G12: =MIN(G13:G27) -> 2013-07-01 | H12: =MAX(H13:H27) -> 2013-12-28 | L12: =IF(AND(J12<>"",K12<>""),J12*K12,"") ->  | M12: =SUMIF(A$12:A$519,A12,L$12:L$519) -> 360.0 | O12: =F12 -> Projekt_1 | P12: =SUM(P13:P31) -> 0 | Q12: =SUM(Q14:Q31) -> 0 | R12: 0 | S12: 45 | T12: 45 | U12: 44 | V12: 45 | W12: 44 | X12: 45 | Y12: 45 | Z12: 37 | AA12: 0 | AB12: 0 | AC12: 0 | AD12: 0 | AE12: 0 | AF12: 0 | AG12: 0 | AH12: 0 | AI12: 0 | AJ12: 0
A13: =A12 -> 12000 | B13: =A12+100 -> 12100 | F13: =INDIRECT(OFFSET(F13,-1,0)&"!B1") -> Studie | G13: =MIN(G14:G16) -> 2013-07-01 | H13: =MAX(H14:H16) -> 2013-08-30 | M13: =SUMIF(B$12:B$519,B13,L$12:L$519) -> 90.0
A14: =A13 -> 12000 | B14: =B13 -> 12100 | C14: =B13+1 -> 12101 | E14: PL | F14: =OFFSET(F14,-2,0)&" "&OFFSET(F14,-1,0)&" "&INDIRECT(OFFSET(F14,-2,0)&"!A4") -> Projekt_1 Studie Projektleitung | G14: =VLOOKUP(OFFSET(G14,-2,-1),Projektübersicht,3,0) -> 2013-07-01 | H14: =VLOOKUP(OFFSET(H14,-2,-2),Projektübersicht,4,0) -> 2013-08-30 | I14: ="Aus Top Down "&OFFSET(I14,-2,-3) -> Aus Top Down Projekt_1 | J14: =IF(ISNA(H14),0,1) -> 1.000 | K14: =INDIRECT("'"&OFFSET(K14,-2,-5)&"'!B4") -> 20.0 | L14: 20.0 | P14: =IF(ISNA($H14),0,zeitausschnitt($G14,$H14,$L14,P$9,P$10)) -> 0 | Q14: =IF(ISNA($H14),0,zeitausschnitt($G14,$H14,$L14,Q$9,Q$10)) -> 0 | R14: 0 | S14: 10 | T14: 10 | U14: 0 | V14: 0 | W14: 0 | X14: 0 | Y14: 0 | Z14: 0 | AA14: 0 | AB14: 0 | AC14: 0 | AD14: 0 | AE14: 0 | AF14: 0 | AG14: 0 | AH14: 0 | AI14: 0 | AJ14: 0
A15: =A14 -> 12000 | B15: =B14 -> 12100 | C15: =C14+1 -> 12102 | E15: Entwicklung | F15: =OFFSET(F15,-3,0)&" "&OFFSET(F15,-2,0)&" "&INDIRECT(OFFSET(F15,-3,0)&"!A5") -> Projekt_1 Studie Entwicklung | G15: =G14 -> 2013-07-01 | H15: =H14 -> 2013-08-30 | I15: ="Aus Top Down "&OFFSET(I15,-3,-3) -> Aus Top Down Projekt_1 | J15: =IF(ISNA(H15),0,1) -> 1.000 | K15: =INDIRECT("'"&OFFSET(K15,-3,-5)&"'!B5") -> 40.0 | L15: 40.0 | P15: =IF(ISNA($H15),0,zeitausschnitt($G15,$H15,$L15,P$9,P$10)) -> 0 | Q15: =IF(ISNA($H15),0,zeitausschnitt($G15,$H15,$L15,Q$9,Q$10)) -> 0 | R15: 0 | S15: 20 | T15: 19 | U15: 0 | V15: 0 | W15: 0 | X15: 0 | Y15: 0 | Z15: 0 | AA15: 0 | AB15: 0 | AC15: 0 | AD15: 0 | AE15: 0 | AF15: 0 | AG15: 0 | AH15: 0 | AI15: 0 | AJ15: 0
A16: 12000 | B16: =B15 -> 12100 | C16: =C15+1 -> 12103 | E16: Test | F16: =OFFSET(F16,-4,0)&" "&OFFSET(F16,-3,0)&" "&INDIRECT(OFFSET(F16,-4,0)&"!A6") -> Projekt_1 Studie Test | G16: =G15 -> 2013-07-01 | H16: =H15 -> 2013-08-30 | I16: ="Aus Top Down "&OFFSET(I16,-4,-3) -> Aus Top Down Projekt_1 | J16: =IF(ISNA(H16),0,1) -> 1.000 | K16: =INDIRECT("'"&OFFSET(K16,-4,-5)&"'!B6") -> 30.0 | L16: 30.0 | P16: =IF(ISNA($H16),0,zeitausschnitt($G16,$H16,$L16,P$9,P$10)) -> 0 | Q16: 0 | R16: 0 | S16: 15 | T16: 15 | U16: 0 | V16: 0 | W16: 0 | X16: 0 | Y16: 0 | Z16: 0 | AA16: 0 | AB16: 0 | AC16: 0 | AD16: 0 | AE16: 0 | AF16: 0 | AG16: 0 | AH16: 0 | AI16: 0 | AJ16: 0
A17: 12000
A18: 12000 | B18: =B13+100 -> 12200 | F18: =INDIRECT(OFFSET(F18,-6,0)&"!C1") -> Konzept | G18: =MIN(G19:G21) -> 2013-08-30 | H18: =MAX(H19:H21) -> 2013-10-29 | M18: =SUMIF(B$12:B$519,B18,L$12:L$519) -> 90.0
A19: 12000 | B19: =B18 -> 12200 | C19: =B18+1 -> 12201 | E19: PL | F19: =OFFSET(F19,-7,0)&" "&OFFSET(F19,-1,0)&" "&INDIRECT(OFFSET(F19,-7,0)&"!A4") -> Projekt_1 Konzept Projektleitung | G19: =VLOOKUP(OFFSET(G19,-7,-1),Projektübersicht,4,0) -> 2013-08-30 | H19: =VLOOKUP(OFFSET(H19,-7,-2),Projektübersicht,5,0) -> 2013-10-29 | I19: ="Aus Top Down "&OFFSET(I19,-7,-3) -> Aus Top Down Projekt_1 | J19: =IF(ISNA(H19),0,1) -> 1.000 | K19: =INDIRECT("'"&OFFSET(K19,-7,-5)&"'!C4") -> 20.0 | L19: 20.0 | P19: =IF(ISNA($H19),0,zeitausschnitt($G19,$H19,$L19,P$9,P$10)) -> 0 | Q19: =IF(ISNA($H19),0,zeitausschnitt($G19,$H19,$L19,Q$9,Q$10)) -> 0 | R19: 0 | S19: 0 | T19: 0 | U19: 10 | V19: 9 | W19: 0 | X19: 0 | Y19: 0 | Z19: 0 | AA19: 0 | AB19: 0 | AC19: 0 | AD19: 0 | AE19: 0 | AF19: 0 | AG19: 0 | AH19: 0 | AI19: 0 | AJ19: 0
A20: 12000 | B20: =B19 -> 12200 | C20: =C19+1 -> 12202 | E20: Entwicklung | F20: =OFFSET(F20,-8,0)&" "&OFFSET(F20,-2,0)&" "&INDIRECT(OFFSET(F20,-8,0)&"!A5") -> Projekt_1 Konzept Entwicklung | G20: =G19 -> 2013-08-30 | H20: =H19 -> 2013-10-29 | I20: ="Aus Top Down "&OFFSET(I20,-8,-3) -> Aus Top Down Projekt_1 | J20: =IF(ISNA(H20),0,1) -> 1.000 | K20: =INDIRECT("'"&OFFSET(K20,-8,-5)&"'!C5") -> 40.0 | L20: 40.0 | P20: =IF(ISNA($H20),0,zeitausschnitt($G20,$H20,$L20,P$9,P$10)) -> 0 | Q20: 0 | R20: 0 | S20: 0 | T20: 1 | U20: 19 | V20: 19 | W20: 0 | X20: 0 | Y20: 0 | Z20: 0 | AA20: 0 | AB20: 0 | AC20: 0 | AD20: 0 | AE20: 0 | AF20: 0 | AG20: 0 | AH20: 0 | AI20: 0 | AJ20: 0
A21: 12000 | B21: =B20 -> 12200 | C21: =C20+1 -> 12203 | E21: Test | F21: =OFFSET(F21,-9,0)&" "&OFFSET(F21,-3,0)&" "&INDIRECT(OFFSET(F21,-9,0)&"!A6") -> Projekt_1 Konzept Test | G21: =G20 -> 2013-08-30 | H21: =H20 -> 2013-10-29 | I21: ="Aus Top Down "&OFFSET(I21,-9,-3) -> Aus Top Down Projekt_1 | J21: =IF(ISNA(H21),0,1) -> 1.000 | K21: =INDIRECT("'"&OFFSET(K21,-9,-5)&"'!C6") -> 30.0 | L21: 30.0 | P21: 0 | Q21: 0 | R21: 0 | S21: 0 | T21: 1 | U21: 15 | V21: 14 | W21: 0 | X21: 0 | Y21: 0 | Z21: 0 | AA21: 0 | AB21: 0 | AC21: 0 | AD21: 0 | AE21: 0 | AF21: 0 | AG21: 0 | AH21: 0 | AI21: 0 | AJ21: 0
A22: 12000
A23: 12000 | B23: =B18+100 -> 12300 | F23: =INDIRECT(OFFSET(F23,-11,0)&"!D1") -> Entwicklung | G23: =MIN(G24:G26) -> 2013-10-29 | H23: =MAX(H24:H26) -> 2013-12-28 | M23: =SUMIF(B$12:B$519,B23,L$12:L$519) -> 90.0
A24: 12000 | B24: =B23 -> 12300 | C24: =B23+1 -> 12301 | E24: PL | F24: =OFFSET(F24,-12,0)&" "&OFFSET(F24,-1,0)&" "&INDIRECT(OFFSET(F24,-12,0)&"!A4") -> Projekt_1 Entwicklung Projektleitung | G24: =VLOOKUP(OFFSET(G24,-12,-1),Projektübersicht,5,0) -> 2013-10-29 | H24: =VLOOKUP(OFFSET(H24,-12,-2),Projektübersicht,6,0) -> 2013-12-28 | I24: ="Aus Top Down "&OFFSET(I24,-12,-3) -> Aus Top Down Projekt_1 | J24: =IF(ISNA(H24),0,1) -> 1.000 | K24: =INDIRECT("'"&OFFSET(K24,-12,-5)&"'!D4") -> 20.0 | L24: 20.0 | P24: =IF(ISNA($H24),0,zeitausschnitt($G24,$H24,$L24,P$9,P$10)) -> 0 | Q24: =IF(ISNA($H24),0,zeitausschnitt($G24,$H24,$L24,Q$9,Q$10)) -> 0 | R24: 0 | S24: 0 | T24: 0 | U24: 0 | V24: 1 | W24: 10 | X24: 9 | Y24: 0 | Z24: 0 | AA24: 0 | AB24: 0 | AC24: 0 | AD24: 0 | AE24: 0 | AF24: 0 | AG24: 0 | AH24: 0 | AI24: 0 | AJ24: 0
A25: 12000 | B25: =B24 -> 12300 | C25: =C24+1 -> 12302 | E25: Entwicklung | F25: =OFFSET(F25,-13,0)&" "&OFFSET(F25,-2,0)&" "&INDIRECT(OFFSET(F25,-13,0)&"!A5") -> Projekt_1 Entwicklung Entwicklung | G25: =G24 -> 2013-10-29 | H25: =H24 -> 2013-12-28 | I25: ="Aus Top Down "&OFFSET(I25,-13,-3) -> Aus Top Down Projekt_1 | J25: =IF(ISNA(H25),0,1) -> 1.000 | K25: =INDIRECT("'"&OFFSET(K25,-13,-5)&"'!D5") -> 40.0 | L25: 40.0 | P25: =IF(ISNA($H25),0,zeitausschnitt($G25,$H25,$L25,P$9,P$10)) -> 0 | Q25: 0 | R25: 0 | S25: 0 | T25: 0 | U25: 0 | V25: 1 | W25: 19 | X25: 18 | Y25: 0 | Z25: 0 | AA25: 0 | AB25: 0 | AC25: 0 | AD25: 0 | AE25: 0 | AF25: 0 | AG25: 0 | AH25: 0 | AI25: 0 | AJ25: 0
A26: 12000 | B26: =B25 -> 12300 | C26: =C25+1 -> 12303 | E26: Test | F26: =OFFSET(F26,-14,0)&" "&OFFSET(F26,-3,0)&" "&INDIRECT(OFFSET(F26,-14,0)&"!A6") -> Projekt_1 Entwicklung Test | G26: =G25 -> 2013-10-29 | H26: =H25 -> 2013-12-28 | I26: ="Aus Top Down "&OFFSET(I26,-14,-3) -> Aus Top Down Projekt_1 | J26: =IF(ISNA(H26),0,1) -> 1.000 | K26: =INDIRECT("'"&OFFSET(K26,-14,-5)&"'!D6") -> 30.0 | L26: 30.0 | P26: 0 | Q26: 0 | R26: 0 | S26: 0 | T26: 0 | U26: 0 | V26: 1 | W26: 15 | X26: 14 | Y26: 0 | Z26: 0 | AA26: 0 | AB26: 0 | AC26: 0 | AD26: 0 | AE26: 0 | AF26: 0 | AG26: 0 | AH26: 0 | AI26: 0 | AJ26: 0
A27: 12000
A28: 12000 | B28: =B23+100 -> 12400 | F28: =INDIRECT(OFFSET(F28,-16,0)&"!E1") -> Pflege | G28: =MIN(G29:G31) -> 2013-12-28 | H28: =MAX(H29:H31) -> 2014-02-26 | M28: =SUMIF(B$12:B$519,B28,L$12:L$519) -> 90.0
A29: 12000 | B29: =B28 -> 12400 | C29: =B28+1 -> 12401 | E29: PL | F29: =OFFSET(F29,-17,0)&" "&OFFSET(F29,-1,0)&" "&INDIRECT(OFFSET(F29,-17,0)&"!A4") -> Projekt_1 Pflege Projektleitung | G29: =VLOOKUP(OFFSET(G29,-17,-1),Projektübersicht,6,0) -> 2013-12-28 | H29: =VLOOKUP(OFFSET(H29,-17,-2),Projektübersicht,7,0) -> 2014-02-26 | I29: ="Aus Top Down "&OFFSET(I29,-17,-3) -> Aus Top Down Projekt_1 | J29: =IF(ISNA(H29),0,1) -> 1.000 | K29: =INDIRECT("'"&OFFSET(K29,-17,-5)&"'!E4") -> 20.0 | L29: 20.0 | P29: =IF(ISNA($H29),0,zeitausschnitt($G29,$H29,$L29,P$9,P$10)) -> 0 | Q29: =IF(ISNA($H29),0,zeitausschnitt($G29,$H29,$L29,Q$9,Q$10)) -> 0 | R29: 0 | S29: 0 | T29: 0 | U29: 0 | V29: 0 | W29: 0 | X29: 1 | Y29: 10 | Z29: 8 | AA29: 0 | AB29: 0 | AC29: 0 | AD29: 0 | AE29: 0 | AF29: 0 | AG29: 0 | AH29: 0 | AI29: 0 | AJ29: 0
A30: 12000 | B30: =B29 -> 12400 | C30: =C29+1 -> 12402 | E30: Entwicklung | F30: =OFFSET(F30,-18,0)&" "&OFFSET(F30,-2,0)&" "&INDIRECT(OFFSET(F30,-18,0)&"!A5") -> Projekt_1 Pflege Entwicklung | G30: =G29 -> 2013-12-28 | H30: =H29 -> 2014-02-26 | I30: ="Aus Top Down "&OFFSET(I30,-18,-3) -> Aus Top Down Projekt_1 | J30: =IF(ISNA(H30),0,1) -> 1.000 | K30: =INDIRECT("'"&OFFSET(K30,-18,-5)&"'!E5") -> 40.0 | L30: 40.0 | P30: =IF(ISNA($H30),0,zeitausschnitt($G30,$H30,$L30,P$9,P$10)) -> 0 | Q30: 0 | R30: 0 | S30: 0 | T30: 0 | U30: 0 | V30: 0 | W30: 0 | X30: 2 | Y30: 20 | Z30: 17 | AA30: 0 | AB30: 0 | AC30: 0 | AD30: 0 | AE30: 0 | AF30: 0 | AG30: 0 | AH30: 0 | AI30: 0 | AJ30: 0
A31: 12000 | B31: =B30 -> 12400 | C31: =C30+1 -> 12403 | E31: Test | F31: =OFFSET(F31,-19,0)&" "&OFFSET(F31,-3,0)&" "&INDIRECT(OFFSET(F31,-19,0)&"!A6") -> Projekt_1 Pflege Test | G31: =G30 -> 2013-12-28 | H31: =H30 -> 2014-02-26 | I31: ="Aus Top Down "&OFFSET(I31,-19,-3) -> Aus Top Down Projekt_1 | J31: =IF(ISNA(H31),0,1) -> 1.000 | K31: =INDIRECT("'"&OFFSET(K31,-19,-5)&"'!E6") -> 30.0 | L31: 30.0 | P31: 0 | Q31: 0 | R31: 0 | S31: 0 | T31: 0 | U31: 0 | V31: 0 | W31: 0 | X31: 2 | Y31: 15 | Z31: 13 | AA31: 0 | AB31: 0 | AC31: 0 | AD31: 0 | AE31: 0 | AF31: 0 | AG31: 0 | AH31: 0 | AI31: 0 | AJ31: 0
A32: 12000
A34: =A12+1000 -> 13000 | F34: =INDIRECT(CONCATENATE("Übersicht!C",TEXT((A34-10000)/1000,0))) -> Projekt_2 | G34: =MIN(G35:G49) -> 2013-08-01 | H34: =MAX(H35:H49) -> 2014-02-19T12:00:00 | M34: =SUMIF(A$12:A$519,A34,L$12:L$519) -> 360.0 | O34: =F34 -> Projekt_2 | P34: =SUM(P36:P53) -> 0 | Q34: =SUM(Q36:Q53) -> 0 | R34: 0 | S34: 0 | T34: 40 | U34: 39 | V34: 40 | W34: 39 | X34: 40 | Y34: 40 | Z34: 36 | AA34: 40 | AB34: 36 | AC34: 0 | AD34: 0 | AE34: 0 | AF34: 0 | AG34: 0 | AH34: 0 | AI34: 0 | AJ34: 0
A35: =A34 -> 13000 | B35: =A34+100 -> 13100 | F35: =INDIRECT(OFFSET(F35,-1,0)&"!B1") -> Studie | G35: =MIN(G36:G38) -> 2013-08-01 | H35: =MAX(H36:H38) -> 2013-10-07T12:00:00 | M35: =SUMIF(B$12:B$519,B35,L$12:L$519) -> 90.0
A36: =A35 -> 13000 | B36: =B35 -> 13100 | C36: =B35+1 -> 13101 | E36: PL | F36: =OFFSET(F36,-2,0)&" "&OFFSET(F36,-1,0)&" "&INDIRECT(OFFSET(F36,-2,0)&"!A4") -> Projekt_2 Studie Projektleitung | G36: =VLOOKUP(OFFSET(G36,-2,-1),Projektübersicht,3,0) -> 2013-08-01 | H36: =VLOOKUP(OFFSET(H36,-2,-2),Projektübersicht,4,0) -> 2013-10-07T12:00:00 | I36: ="Aus Top Down "&OFFSET(I36,-2,-3) -> Aus Top Down Projekt_2 | J36: =IF(ISNA(H36),0,1) -> 1.000 | K36: =INDIRECT("'"&OFFSET(K36,-2,-5)&"'!B4") -> 20.0 | L36: 20.0 | P36: =IF(ISNA($H36),0,zeitausschnitt($G36,$H36,$L36,P$9,P$10)) -> 0 | Q36: =IF(ISNA($H36),0,zeitausschnitt($G36,$H36,$L36,Q$9,Q$10)) -> 0 | R36: 0 | S36: 0 | T36: 9 | U36: 9 | V36: 2 | W36: 0 | X36: 0 | Y36: 0 | Z36: 0 | AA36: 0 | AB36: 0 | AC36: 0 | AD36: 0 | AE36: 0 | AF36: 0 | AG36: 0 | AH36: 0 | AI36: 0 | AJ36: 0
A37: =A36 -> 13000 | B37: =B36 -> 13100 | C37: =C36+1 -> 13102 | E37: Entwicklung | F37: =OFFSET(F37,-3,0)&" "&OFFSET(F37,-2,0)&" "&INDIRECT(OFFSET(F37,-3,0)&"!A5") -> Projekt_2 Studie Entwicklung | G37: =G36 -> 2013-08-01 | H37: =H36 -> 2013-10-07T12:00:00 | I37: ="Aus Top Down "&OFFSET(I37,-3,-3) -> Aus Top Down Projekt_2 | J37: =IF(ISNA(H37),0,1) -> 1.000 | K37: =INDIRECT("'"&OFFSET(K37,-3,-5)&"'!B5") -> 40.0 | L37: 40.0 | P37: =IF(ISNA($H37),0,zeitausschnitt($G37,$H37,$L37,P$9,P$10)) -> 0 | Q37: 0 | R37: 0 | S37: 0 | T37: 18 | U37: 17 | V37: 4 | W37: 0 | X37: 0 | Y37: 0 | Z37: 0 | AA37: 0 | AB37: 0 | AC37: 0 | AD37: 0 | AE37: 0 | AF37: 0 | AG37: 0 | AH37: 0 | AI37: 0 | AJ37: 0
A38: 13000 | B38: =B37 -> 13100 | C38: =C37+1 -> 13103 | E38: Test | F38: =OFFSET(F38,-4,0)&" "&OFFSET(F38,-3,0)&" "&INDIRECT(OFFSET(F38,-4,0)&"!A6") -> Projekt_2 Studie Test | G38: =G37 -> 2013-08-01 | H38: =H37 -> 2013-10-07T12:00:00 | I38: ="Aus Top Down "&OFFSET(I38,-4,-3) -> Aus Top Down Projekt_2 | J38: =IF(ISNA(H38),0,1) -> 1.000 | K38: =INDIRECT("'"&OFFSET(K38,-4,-5)&"'!B6") -> 30.0 | L38: 30.0 | P38: 0 | Q38: 0 | R38: 0 | S38: 0 | T38: 13 | U38: 13 | V38: 3 | W38: 0 | X38: 0 | Y38: 0 | Z38: 0 | AA38: 0 | AB38: 0 | AC38: 0 | AD38: 0 | AE38: 0 | AF38: 0 | AG38: 0 | AH38: 0 | AI38: 0 | AJ38: 0
A39: 13000
A40: 13000 | B40: =B35+100 -> 13200 | F40: =INDIRECT(OFFSET(F40,-6,0)&"!C1") -> Konzept | G40: =MIN(G41:G43) -> 2013-10-07T12:00:00 | H40: =MAX(H41:H43) -> 2013-12-14 | M40: =SUMIF(B$12:B$519,B40,L$12:L$519) -> 90.0
A41: 13000 | B41: =B40 -> 13200 | C41: =B40+1 -> 13201 | E41: PL | F41: =OFFSET(F41,-7,0)&" "&OFFSET(F41,-1,0)&" "&INDIRECT(OFFSET(F41,-7,0)&"!A4") -> Projekt_2 Konzept Projektleitung | G41: =VLOOKUP(OFFSET(G41,-7,-1),Projektübersicht,4,0) -> 2013-10-07T12:00:00 | H41: =VLOOKUP(OFFSET(H41,-7,-2),Projektübersicht,5,0) -> 2013-12-14 | I41: ="Aus Top Down "&OFFSET(I41,-7,-3) -> Aus Top Down Projekt_2 | J41: =IF(ISNA(H41),0,1) -> 1.000 | K41: =INDIRECT("'"&OFFSET(K41,-7,-5)&"'!C4") -> 20.0 | L41: 20.0 | P41: =IF(ISNA($H41),0,zeitausschnitt($G41,$H41,$L41,P$9,P$10)) -> 0 | Q41: =IF(ISNA($H41),0,zeitausschnitt($G41,$H41,$L41,Q$9,Q$10)) -> 0 | R41: 0 | S41: 0 | T41: 0 | U41: 0 | V41: 7 | W41: 9 | X41: 4 | Y41: 0 | Z41: 0 | AA41: 0 | AB41: 0 | AC41: 0 | AD41: 0 | AE41: 0 | AF41: 0 | AG41: 0 | AH41: 0 | AI41: 0 | AJ41: 0
A42: 13000 | B42: =B41 -> 13200 | C42: =C41+1 -> 13202 | E42: Entwicklung | F42: =OFFSET(F42,-8,0)&" "&OFFSET(F42,-2,0)&" "&INDIRECT(OFFSET(F42,-8,0)&"!A5") -> Projekt_2 Konzept Entwicklung | G42: =G41 -> 2013-10-07T12:00:00 | H42: =H41 -> 2013-12-14 | I42: ="Aus Top Down "&OFFSET(I42,-8,-3) -> Aus Top Down Projekt_2 | J42: =IF(ISNA(H42),0,1) -> 1.000 | K42: =INDIRECT("'"&OFFSET(K42,-8,-5)&"'!C5") -> 40.0 | L42: 40.0 | P42: =IF(ISNA($H42),0,zeitausschnitt($G42,$H42,$L42,P$9,P$10)) -> 0 | Q42: 0 | R42: 0 | S42: 0 | T42: 0 | U42: 0 | V42: 14 | W42: 17 | X42: 8 | Y42: 0 | Z42: 0 | AA42: 0 | AB42: 0 | AC42: 0 | AD42: 0 | AE42: 0 | AF42: 0 | AG42: 0 | AH42: 0 | AI42: 0 | AJ42: 0
A43: 13000 | B43: =B42 -> 13200 | C43: =C42+1 -> 13203 | E43: Test | F43: =OFFSET(F43,-9,0)&" "&OFFSET(F43,-3,0)&" "&INDIRECT(OFFSET(F43,-9,0)&"!A6") -> Projekt_2 Konzept Test | G43: =G42 -> 2013-10-07T12:00:00 | H43: =H42 -> 2013-12-14 | I43: ="Aus Top Down "&OFFSET(I43,-9,-3) -> Aus Top Down Projekt_2 | J43: =IF(ISNA(H43),0,1) -> 1.000 | K43: =INDIRECT("'"&OFFSET(K43,-9,-5)&"'!C6") -> 30.0 | L43: 30.0 | P43: 0 | Q43: 0 | R43: 0 | S43: 0 | T43: 0 | U43: 0 | V43: 10 | W43: 13 | X43: 6 | Y43: 0 | Z43: 0 | AA43: 0 | AB43: 0 | AC43: 0 | AD43: 0 | AE43: 0 | AF43: 0 | AG43: 0 | AH43: 0 | AI43: 0 | AJ43: 0
A44: 13000 | L44: =IF(AND(J44<>"",K44<>""),J44*K44,"") -> 
A45: 13000 | B45: =B40+100 -> 13300 | F45: =INDIRECT(OFFSET(F45,-11,0)&"!D1") -> Entwicklung | G45: =MIN(G46:G48) -> 2013-12-14 | H45: =MAX(H46:H48) -> 2014-02-19T12:00:00 | M45: =SUMIF(B$12:B$519,B45,L$12:L$519) -> 90.0
A46: 13000 | B46: =B45 -> 13300 | C46: =B45+1 -> 13301 | E46: PL | F46: =OFFSET(F46,-12,0)&" "&OFFSET(F46,-1,0)&" "&INDIRECT(OFFSET(F46,-12,0)&"!A4") -> Projekt_2 Entwicklung Projektleitung | G46: =VLOOKUP(OFFSET(G46,-12,-1),Projektübersicht,5,0) -> 2013-12-14 | H46: =VLOOKUP(OFFSET(H46,-12,-2),Projektübersicht,6,0) -> 2014-02-19T12:00:00 | I46: ="Aus Top Down "&OFFSET(I46,-12,-3) -> Aus Top Down Projekt_2 | J46: =IF(ISNA(H46),0,1) -> 1.000 | K46: =INDIRECT("'"&OFFSET(K46,-12,-5)&"'!D4") -> 20.0 | L46: 20.0 | P46: =IF(ISNA($H46),0,zeitausschnitt($G46,$H46,$L46,P$9,P$10)) -> 0 | Q46: =IF(ISNA($H46),0,zeitausschnitt($G46,$H46,$L46,Q$9,Q$10)) -> 0 | R46: 0 | S46: 0 | T46: 0 | U46: 0 | V46: 0 | W46: 0 | X46: 5 | Y46: 9 | Z46: 5 | AA46: 0 | AB46: 0 | AC46: 0 | AD46: 0 | AE46: 0 | AF46: 0 | AG46: 0 | AH46: 0 | AI46: 0 | AJ46: 0
A47: 13000 | B47: =B46 -> 13300 | C47: =C46+1 -> 13302 | E47: Entwicklung | F47: =OFFSET(F47,-13,0)&" "&OFFSET(F47,-2,0)&" "&INDIRECT(OFFSET(F47,-13,0)&"!A5") -> Projekt_2 Entwicklung Entwicklung | G47: =G46 -> 2013-12-14 | H47: =H46 -> 2014-02-19T12:00:00 | I47: ="Aus Top Down "&OFFSET(I47,-13,-3) -> Aus Top Down Projekt_2 | J47: =IF(ISNA(H47),0,1) -> 1.000 | K47: =INDIRECT("'"&OFFSET(K47,-13,-5)&"'!D5") -> 40.0 | L47: 40.0 | P47: =IF(ISNA($H47),0,zeitausschnitt($G47,$H47,$L47,P$9,P$10)) -> 0 | Q47: 0 | R47: 0 | S47: 0 | T47: 0 | U47: 0 | V47: 0 | W47: 0 | X47: 10 | Y47: 18 | Z47: 11 | AA47: 0 | AB47: 0 | AC47: 0 | AD47: 0 | AE47: 0 | AF47: 0 | AG47: 0 | AH47: 0 | AI47: 0 | AJ47: 0
A48: 13000 | B48: =B47 -> 13300 | C48: =C47+1 -> 13303 | E48: Test | F48: =OFFSET(F48,-14,0)&" "&OFFSET(F48,-3,0)&" "&INDIRECT(OFFSET(F48,-14,0)&"!A6") -> Projekt_2 Entwicklung Test | G48: =G47 -> 2013-12-14 | H48: =H47 -> 2014-02-19T12:00:00 | I48: ="Aus Top Down "&OFFSET(I48,-14,-3) -> Aus Top Down Projekt_2 | J48: =IF(ISNA(H48),0,1) -> 1.000 | K48: =INDIRECT("'"&OFFSET(K48,-14,-5)&"'!D6") -> 30.0 | L48: 30.0 | P48: 0 | Q48: 0 | R48: 0 | S48: 0 | T48: 0 | U48: 0 | V48: 0 | W48: 0 | X48: 8 | Y48: 13 | Z48: 8 | AA48: 0 | AB48: 0 | AC48: 0 | AD48: 0 | AE48: 0 | AF48: 0 | AG48: 0 | AH48: 0 | AI48: 0 | AJ48: 0
A49: 13000
A50: 13000 | B50: =B45+100 -> 13400 | F50: =INDIRECT(OFFSET(F50,-16,0)&"!E1") -> Pflege | G50: =MIN(G51:G53) -> 2014-02-19T12:00:00 | H50: =MAX(H51:H53) -> 2014-04-28 | M50: =SUMIF(B$12:B$519,B50,L$12:L$519) -> 90.0
A51: 13000 | B51: =B50 -> 13400 | C51: =B50+1 -> 13401 | E51: PL | F51: =OFFSET(F51,-17,0)&" "&OFFSET(F51,-1,0)&" "&INDIRECT(OFFSET(F51,-17,0)&"!A4") -> Projekt_2 Pflege Projektleitung | G51: =VLOOKUP(OFFSET(G51,-17,-1),Projektübersicht,6,0) -> 2014-02-19T12:00:00 | H51: =VLOOKUP(OFFSET(H51,-17,-2),Projektübersicht,7,0) -> 2014-04-28 | I51: ="Aus Top Down "&OFFSET(I51,-17,-3) -> Aus Top Down Projekt_2 | J51: =IF(ISNA(H51),0,1) -> 1.000 | K51: =INDIRECT("'"&OFFSET(K51,-17,-5)&"'!E4") -> 20.0 | L51: 20.0 | P51: =IF(ISNA($H51),0,zeitausschnitt($G51,$H51,$L51,P$9,P$10)) -> 0 | Q51: =IF(ISNA($H51),0,zeitausschnitt($G51,$H51,$L51,Q$9,Q$10)) -> 0 | R51: 0 | S51: 0 | T51: 0 | U51: 0 | V51: 0 | W51: 0 | X51: 0 | Y51: 0 | Z51: 3 | AA51: 9 | AB51: 8 | AC51: 0 | AD51: 0 | AE51: 0 | AF51: 0 | AG51: 0 | AH51: 0 | AI51: 0 | AJ51: 0
A52: 13000 | B52: =B51 -> 13400 | C52: =C51+1 -> 13402 | E52: Entwicklung | F52: =OFFSET(F52,-18,0)&" "&OFFSET(F52,-2,0)&" "&INDIRECT(OFFSET(F52,-18,0)&"!A5") -> Projekt_2 Pflege Entwicklung | G52: =G51 -> 2014-02-19T12:00:00 | H52: =H51 -> 2014-04-28 | I52: ="Aus Top Down "&OFFSET(I52,-18,-3) -> Aus Top Down Projekt_2 | J52: =IF(ISNA(H52),0,1) -> 1.000 | K52: =INDIRECT("'"&OFFSET(K52,-18,-5)&"'!E5") -> 40.0 | L52: 40.0 | P52: =IF(ISNA($H52),0,zeitausschnitt($G52,$H52,$L52,P$9,P$10)) -> 0 | Q52: 0 | R52: 0 | S52: 0 | T52: 0 | U52: 0 | V52: 0 | W52: 0 | X52: 0 | Y52: 0 | Z52: 5 | AA52: 18 | AB52: 16 | AC52: 0 | AD52: 0 | AE52: 0 | AF52: 0 | AG52: 0 | AH52: 0 | AI52: 0 | AJ52: 0
A53: 13000 | B53: =B52 -> 13400 | C53: =C52+1 -> 13403 | E53: Test | F53: =OFFSET(F53,-19,0)&" "&OFFSET(F53,-3,0)&" "&INDIRECT(OFFSET(F53,-19,0)&"!A6") -> Projekt_2 Pflege Test | G53: =G52 -> 2014-02-19T12:00:00 | H53: =H52 -> 2014-04-28 | I53: ="Aus Top Down "&OFFSET(I53,-19,-3) -> Aus Top Down Projekt_2 | J53: =IF(ISNA(H53),0,1) -> 1.000 | K53: =INDIRECT("'"&OFFSET(K53,-19,-5)&"'!E6") -> 30.0 | L53: 30.0 | P53: 0 | Q53: 0 | R53: 0 | S53: 0 | T53: 0 | U53: 0 | V53: 0 | W53: 0 | X53: 0 | Y53: 0 | Z53: 4 | AA53: 13 | AB53: 12 | AC53: 0 | AD53: 0 | AE53: 0 | AF53: 0 | AG53: 0 | AH53: 0 | AI53: 0 | AJ53: 0
A54: 13000
A56: =A34+1000 -> 14000 | F56: =INDIRECT(CONCATENATE("Übersicht!C",TEXT((A56-10000)/1000,0))) -> Projekt_3 | G56: =MIN(G57:G71) -> 2013-09-01 | H56: =MAX(H57:H71) -> 2014-04-14 | M56: =SUMIF(A$12:A$519,A56,L$12:L$519) -> 360.0 | O56: =F56 -> Projekt_3 | P56: =SUM(P58:P75) -> 0 | Q56: =SUM(Q58:Q75) -> 0 | R56: 0 | S56: 0 | T56: 0 | U56: 35 | V56: 36 | W56: 35 | X56: 36 | Y56: 36 | Z56: 32 | AA56: 36 | AB56: 35 | AC56: 36 | AD56: 32 | AE56: 0 | AF56: 0 | AG56: 0 | AH56: 0 | AI56: 0 | AJ56: 0
A57: =A56 -> 14000 | B57: =A56+100 -> 14100 | F57: =INDIRECT(OFFSET(F57,-1,0)&"!B1") -> Studie | G57: =MIN(G58:G60) -> 2013-09-01 | H57: =MAX(H58:H60) -> 2013-11-15 | M57: =SUMIF(B$12:B$519,B57,L$12:L$519) -> 90.0
A58: =A57 -> 14000 | B58: =B57 -> 14100 | C58: =B57+1 -> 14101 | E58: PL | F58: =OFFSET(F58,-2,0)&" "&OFFSET(F58,-1,0)&" "&INDIRECT(OFFSET(F58,-2,0)&"!A4") -> Projekt_3 Studie Projektleitung | G58: =VLOOKUP(OFFSET(G58,-2,-1),Projektübersicht,3,0) -> 2013-09-01 | H58: =VLOOKUP(OFFSET(H58,-2,-2),Projektübersicht,4,0) -> 2013-11-15 | I58: ="Aus Top Down "&OFFSET(I58,-2,-3) -> Aus Top Down Projekt_3 | J58: =IF(ISNA(H58),0,1) -> 1.000 | K58: =INDIRECT("'"&OFFSET(K58,-2,-5)&"'!B4") -> 20.0 | L58: 20.0 | P58: =IF(ISNA($H58),0,zeitausschnitt($G58,$H58,$L58,P$9,P$10)) -> 0 | Q58: =IF(ISNA($H58),0,zeitausschnitt($G58,$H58,$L58,Q$9,Q$10)) -> 0 | R58: 0 | S58: 0 | T58: 0 | U58: 8 | V58: 8 | W58: 4 | X58: 0 | Y58: 0 | Z58: 0 | AA58: 0 | AB58: 0 | AC58: 0 | AD58: 0 | AE58: 0 | AF58: 0 | AG58: 0 | AH58: 0 | AI58: 0 | AJ58: 0
A59: =A58 -> 14000 | B59: =B58 -> 14100 | C59: =C58+1 -> 14102 | E59: Entwicklung | F59: =OFFSET(F59,-3,0)&" "&OFFSET(F59,-2,0)&" "&INDIRECT(OFFSET(F59,-3,0)&"!A5") -> Projekt_3 Studie Entwicklung | G59: =G58 -> 2013-09-01 | H59: =H58 -> 2013-11-15 | I59: ="Aus Top Down "&OFFSET(I59,-3,-3) -> Aus Top Down Projekt_3 | J59: =IF(ISNA(H59),0,1) -> 1.000 | K59: =INDIRECT("'"&OFFSET(K59,-3,-5)&"'!B5") -> 40.0 | L59: 40.0 | P59: =IF(ISNA($H59),0,zeitausschnitt($G59,$H59,$L59,P$9,P$10)) -> 0 | Q59: 0 | R59: 0 | S59: 0 | T59: 0 | U59: 15 | V59: 16 | W59: 7 | X59: 0 | Y59: 0 | Z59: 0 | AA59: 0 | AB59: 0 | AC59: 0 | AD59: 0 | AE59: 0 | AF59: 0 | AG59: 0 | AH59: 0 | AI59: 0 | AJ59: 0
A60: 14000 | B60: =B59 -> 14100 | C60: =C59+1 -> 14103 | E60: Test | F60: =OFFSET(F60,-4,0)&" "&OFFSET(F60,-3,0)&" "&INDIRECT(OFFSET(F60,-4,0)&"!A6") -> Projekt_3 Studie Test | G60: =G59 -> 2013-09-01 | H60: =H59 -> 2013-11-15 | I60: ="Aus Top Down "&OFFSET(I60,-4,-3) -> Aus Top Down Projekt_3 | J60: =IF(ISNA(H60),0,1) -> 1.000 | K60: =INDIRECT("'"&OFFSET(K60,-4,-5)&"'!B6") -> 30.0 | L60: 30.0 | P60: 0 | Q60: 0 | R60: 0 | S60: 0 | T60: 0 | U60: 12 | V60: 12 | W60: 6 | X60: 0 | Y60: 0 | Z60: 0 | AA60: 0 | AB60: 0 | AC60: 0 | AD60: 0 | AE60: 0 | AF60: 0 | AG60: 0 | AH60: 0 | AI60: 0 | AJ60: 0
A61: 14000
A62: 14000 | B62: =B57+100 -> 14200 | F62: =INDIRECT(OFFSET(F62,-6,0)&"!C1") -> Konzept | G62: =MIN(G63:G65) -> 2013-11-15 | H62: =MAX(H63:H65) -> 2014-01-29 | M62: =SUMIF(B$12:B$519,B62,L$12:L$519) -> 90.0
A63: 14000 | B63: =B62 -> 14200 | C63: =B62+1 -> 14201 | E63: PL | F63: =OFFSET(F63,-7,0)&" "&OFFSET(F63,-1,0)&" "&INDIRECT(OFFSET(F63,-7,0)&"!A4") -> Projekt_3 Konzept Projektleitung | G63: =VLOOKUP(OFFSET(G63,-7,-1),Projektübersicht,4,0) -> 2013-11-15 | H63: =VLOOKUP(OFFSET(H63,-7,-2),Projektübersicht,5,0) -> 2014-01-29 | I63: ="Aus Top Down "&OFFSET(I63,-7,-3) -> Aus Top Down Projekt_3 | J63: =IF(ISNA(H63),0,1) -> 1.000 | K63: =INDIRECT("'"&OFFSET(K63,-7,-5)&"'!C4") -> 20.0 | L63: 20.0 | P63: =IF(ISNA($H63),0,zeitausschnitt($G63,$H63,$L63,P$9,P$10)) -> 0 | Q63: =IF(ISNA($H63),0,zeitausschnitt($G63,$H63,$L63,Q$9,Q$10)) -> 0 | R63: 0 | S63: 0 | T63: 0 | U63: 0 | V63: 0 | W63: 4 | X63: 8 | Y63: 7 | Z63: 0 | AA63: 0 | AB63: 0 | AC63: 0 | AD63: 0 | AE63: 0 | AF63: 0 | AG63: 0 | AH63: 0 | AI63: 0 | AJ63: 0
A64: 14000 | B64: =B63 -> 14200 | C64: =C63+1 -> 14202 | E64: Entwicklung | F64: =OFFSET(F64,-8,0)&" "&OFFSET(F64,-2,0)&" "&INDIRECT(OFFSET(F64,-8,0)&"!A5") -> Projekt_3 Konzept Entwicklung | G64: =G63 -> 2013-11-15 | H64: =H63 -> 2014-01-29 | I64: ="Aus Top Down "&OFFSET(I64,-8,-3) -> Aus Top Down Projekt_3 | J64: =IF(ISNA(H64),0,1) -> 1.000 | K64: =INDIRECT("'"&OFFSET(K64,-8,-5)&"'!C5") -> 40.0 | L64: 40.0 | P64: =IF(ISNA($H64),0,zeitausschnitt($G64,$H64,$L64,P$9,P$10)) -> 0 | Q64: 0 | R64: 0 | S64: 0 | T64: 0 | U64: 0 | V64: 0 | W64: 8 | X64: 16 | Y64: 15 | Z64: 0 | AA64: 0 | AB64: 0 | AC64: 0 | AD64: 0 | AE64: 0 | AF64: 0 | AG64: 0 | AH64: 0 | AI64: 0 | AJ64: 0
A65: 14000 | B65: =B64 -> 14200 | C65: =C64+1 -> 14203 | E65: Test | F65: =OFFSET(F65,-9,0)&" "&OFFSET(F65,-3,0)&" "&INDIRECT(OFFSET(F65,-9,0)&"!A6") -> Projekt_3 Konzept Test | G65: =G64 -> 2013-11-15 | H65: =H64 -> 2014-01-29 | I65: ="Aus Top Down "&OFFSET(I65,-9,-3) -> Aus Top Down Projekt_3 | J65: =IF(ISNA(H65),0,1) -> 1.000 | K65: =INDIRECT("'"&OFFSET(K65,-9,-5)&"'!C6") -> 30.0 | L65: 30.0 | P65: 0 | Q65: 0 | R65: 0 | S65: 0 | T65: 0 | U65: 0 | V65: 0 | W65: 6 | X65: 12 | Y65: 11 | Z65: 0 | AA65: 0 | AB65: 0 | AC65: 0 | AD65: 0 | AE65: 0 | AF65: 0 | AG65: 0 | AH65: 0 | AI65: 0 | AJ65: 0
A66: 14000
A67: 14000 | B67: =B62+100 -> 14300 | F67: =INDIRECT(OFFSET(F67,-11,0)&"!D1") -> Entwicklung | G67: =MIN(G68:G70) -> 2014-01-29 | H67: =MAX(H68:H70) -> 2014-04-14 | M67: =SUMIF(B$12:B$519,B67,L$12:L$519) -> 90.0
A68: 14000 | B68: =B67 -> 14300 | C68: =B67+1 -> 14301 | E68: PL | F68: =OFFSET(F68,-12,0)&" "&OFFSET(F68,-1,0)&" "&INDIRECT(OFFSET(F68,-12,0)&"!A4") -> Projekt_3 Entwicklung Projektleitung | G68: =VLOOKUP(OFFSET(G68,-12,-1),Projektübersicht,5,0) -> 2014-01-29 | H68: =VLOOKUP(OFFSET(H68,-12,-2),Projektübersicht,6,0) -> 2014-04-14 | I68: ="Aus Top Down "&OFFSET(I68,-12,-3) -> Aus Top Down Projekt_3 | J68: =IF(ISNA(H68),0,1) -> 1.000 | K68: =INDIRECT("'"&OFFSET(K68,-12,-5)&"'!D4") -> 20.0 | L68: 20.0 | P68: =IF(ISNA($H68),0,zeitausschnitt($G68,$H68,$L68,P$9,P$10)) -> 0 | Q68: =IF(ISNA($H68),0,zeitausschnitt($G68,$H68,$L68,Q$9,Q$10)) -> 0 | R68: 0 | S68: 0 | T68: 0 | U68: 0 | V68: 0 | W68: 0 | X68: 0 | Y68: 1 | Z68: 7 | AA68: 8 | AB68: 3 | AC68: 0 | AD68: 0 | AE68: 0 | AF68: 0 | AG68: 0 | AH68: 0 | AI68: 0 | AJ68: 0
A69: 14000 | B69: =B68 -> 14300 | C69: =C68+1 -> 14302 | E69: Entwicklung | F69: =OFFSET(F69,-13,0)&" "&OFFSET(F69,-2,0)&" "&INDIRECT(OFFSET(F69,-13,0)&"!A5") -> Projekt_3 Entwicklung Entwicklung | G69: =G68 -> 2014-01-29 | H69: =H68 -> 2014-04-14 | I69: ="Aus Top Down "&OFFSET(I69,-13,-3) -> Aus Top Down Projekt_3 | J69: =IF(ISNA(H69),0,1) -> 1.000 | K69: =INDIRECT("'"&OFFSET(K69,-13,-5)&"'!D5") -> 40.0 | L69: 40.0 | P69: =IF(ISNA($H69),0,zeitausschnitt($G69,$H69,$L69,P$9,P$10)) -> 0 | Q69: 0 | R69: 0 | S69: 0 | T69: 0 | U69: 0 | V69: 0 | W69: 0 | X69: 0 | Y69: 1 | Z69: 14 | AA69: 16 | AB69: 7 | AC69: 0 | AD69: 0 | AE69: 0 | AF69: 0 | AG69: 0 | AH69: 0 | AI69: 0 | AJ69: 0
A70: 14000 | B70: =B69 -> 14300 | C70: =C69+1 -> 14303 | E70: Test | F70: =OFFSET(F70,-14,0)&" "&OFFSET(F70,-3,0)&" "&INDIRECT(OFFSET(F70,-14,0)&"!A6") -> Projekt_3 Entwicklung Test | G70: =G69 -> 2014-01-29 | H70: =H69 -> 2014-04-14 | I70: ="Aus Top Down "&OFFSET(I70,-14,-3) -> Aus Top Down Projekt_3 | J70: =IF(ISNA(H70),0,1) -> 1.000 | K70: =INDIRECT("'"&OFFSET(K70,-14,-5)&"'!D6") -> 30.0 | L70: 30.0 | P70: 0 | Q70: 0 | R70: 0 | S70: 0 | T70: 0 | U70: 0 | V70: 0 | W70: 0 | X70: 0 | Y70: 1 | Z70: 11 | AA70: 12 | AB70: 5 | AC70: 0 | AD70: 0 | AE70: 0 | AF70: 0 | AG70: 0 | AH70: 0 | AI70: 0 | AJ70: 0
A71: 14000
A72: 14000 | B72: =B67+100 -> 14400 | F72: =INDIRECT(OFFSET(F72,-16,0)&"!E1") -> Pflege | G72: =MIN(G73:G75) -> 2014-04-14 | H72: =MAX(H73:H75) -> 2014-06-28 | M72: =SUMIF(B$12:B$519,B72,L$12:L$519) -> 90.0
A73: 14000 | B73: =B72 -> 14400 | C73: =B72+1 -> 14401 | E73: PL | F73: =OFFSET(F73,-17,0)&" "&OFFSET(F73,-1,0)&" "&INDIRECT(OFFSET(F73,-17,0)&"!A4") -> Projekt_3 Pflege Projektleitung | G73: =VLOOKUP(OFFSET(G73,-17,-1),Projektübersicht,6,0) -> 2014-04-14 | H73: =VLOOKUP(OFFSET(H73,-17,-2),Projektübersicht,7,0) -> 2014-06-28 | I73: ="Aus Top Down "&OFFSET(I73,-17,-3) -> Aus Top Down Projekt_3 | J73: =IF(ISNA(H73),0,1) -> 1.000 | K73: =INDIRECT("'"&OFFSET(K73,-17,-5)&"'!E4") -> 20.0 | L73: 20.0 | P73: =IF(ISNA($H73),0,zeitausschnitt($G73,$H73,$L73,P$9,P$10)) -> 0 | Q73: =IF(ISNA($H73),0,zeitausschnitt($G73,$H73,$L73,Q$9,Q$10)) -> 0 | R73: 0 | S73: 0 | T73: 0 | U73: 0 | V73: 0 | W73: 0 | X73: 0 | Y73: 0 | Z73: 0 | AA73: 0 | AB73: 4 | AC73: 8 | AD73: 7 | AE73: 0 | AF73: 0 | AG73: 0 | AH73: 0 | AI73: 0 | AJ73: 0
A74: 14000 | B74: =B73 -> 14400 | C74: =C73+1 -> 14402 | E74: Entwicklung | F74: =OFFSET(F74,-18,0)&" "&OFFSET(F74,-2,0)&" "&INDIRECT(OFFSET(F74,-18,0)&"!A5") -> Projekt_3 Pflege Entwicklung | G74: =G73 -> 2014-04-14 | H74: =H73 -> 2014-06-28 | I74: ="Aus Top Down "&OFFSET(I74,-18,-3) -> Aus Top Down Projekt_3 | J74: =IF(ISNA(H74),0,1) -> 1.000 | K74: =INDIRECT("'"&OFFSET(K74,-18,-5)&"'!E5") -> 40.0 | L74: 40.0 | P74: =IF(ISNA($H74),0,zeitausschnitt($G74,$H74,$L74,P$9,P$10)) -> 0 | Q74: 0 | R74: 0 | S74: 0 | T74: 0 | U74: 0 | V74: 0 | W74: 0 | X74: 0 | Y74: 0 | Z74: 0 | AA74: 0 | AB74: 9 | AC74: 16 | AD74: 14 | AE74: 0 | AF74: 0 | AG74: 0 | AH74: 0 | AI74: 0 | AJ74: 0
A75: 14000 | B75: =B74 -> 14400 | C75: =C74+1 -> 14403 | E75: Test | F75: =OFFSET(F75,-19,0)&" "&OFFSET(F75,-3,0)&" "&INDIRECT(OFFSET(F75,-19,0)&"!A6") -> Projekt_3 Pflege Test | G75: =G74 -> 2014-04-14 | H75: =H74 -> 2014-06-28 | I75: ="Aus Top Down "&OFFSET(I75,-19,-3) -> Aus Top Down Projekt_3 | J75: =IF(ISNA(H75),0,1) -> 1.000 | K75: =INDIRECT("'"&OFFSET(K75,-19,-5)&"'!E6") -> 30.0 | L75: 30.0 | P75: 0 | Q75: 0 | R75: 0 | S75: 0 | T75: 0 | U75: 0 | V75: 0 | W75: 0 | X75: 0 | Y75: 0 | Z75: 0 | AA75: 0 | AB75: 6 | AC75: 12 | AD75: 11 | AE75: 0 | AF75: 0 | AG75: 0 | AH75: 0 | AI75: 0 | AJ75: 0
A76: 14000 | L76: =IF(AND(J76<>"",K76<>""),J76*K76,"") -> 
A78: =A56+1000 -> 15000 | F78: =INDIRECT(CONCATENATE("Übersicht!C",TEXT((A78-10000)/1000,0))) -> Projekt_4 | G78: =MIN(G79:G93) ->  | H78: =MAX(H79:H93) ->  | M78: =SUMIF(A$12:A$519,A78,L$12:L$519) -> 0.0 | O78: =F78 -> Projekt_4 | P78: =SUM(P80:P97) -> 0 | Q78: =SUM(Q80:Q97) -> 0 | R78: 0 | S78: 0 | T78: 0 | U78: 0 | V78: 0 | W78: 0 | X78: 0 | Y78: 0 | Z78: 0 | AA78: 0 | AB78: 0 | AC78: 0 | AD78: 0 | AE78: 0 | AF78: 0 | AG78: 0 | AH78: 0 | AI78: 0 | AJ78: 0
A79: =A78 -> 15000 | B79: =A78+100 -> 15100 | F79: =INDIRECT(OFFSET(F79,-1,0)&"!B1") -> Studie | G79: =MIN(G80:G82) -> 2013-10-01 | H79: =MAX(H80:H82) ->  | M79: =SUMIF(B$12:B$519,B79,L$12:L$519) -> 0.0
A80: =A79 -> 15000 | B80: =B79 -> 15100 | C80: =B79+1 -> 15101 | E80: PL | F80: =OFFSET(F80,-2,0)&" "&OFFSET(F80,-1,0)&" "&INDIRECT(OFFSET(F80,-2,0)&"!A4") -> Projekt_4 Studie Projektleitung | G80: =VLOOKUP(OFFSET(G80,-2,-1),Projektübersicht,3,0) -> 2013-10-01 | H80: =VLOOKUP(OFFSET(H80,-2,-2),Projektübersicht,4,0) ->  | I80: ="Aus Top Down "&OFFSET(I80,-2,-3) -> Aus Top Down Projekt_4 | J80: =IF(ISNA(H80),0,1) -> 0.000 | K80: =INDIRECT("'"&OFFSET(K80,-2,-5)&"'!B4") -> 20.0 | L80: 0.0 | P80: =IF(ISNA($H80),0,zeitausschnitt($G80,$H80,$L80,P$9,P$10)) -> 0 | Q80: =IF(ISNA($H80),0,zeitausschnitt($G80,$H80,$L80,Q$9,Q$10)) -> 0 | R80: 0 | S80: 0 | T80: 0 | U80: 0 | V80: 0 | W80: 0 | X80: 0 | Y80: 0 | Z80: 0 | AA80: 0 | AB80: 0 | AC80: 0 | AD80: 0 | AE80: 0 | AF80: 0 | AG80: 0 | AH80: 0 | AI80: 0 | AJ80: 0
A81: =A80 -> 15000 | B81: =B80 -> 15100 | C81: =C80+1 -> 15102 | E81: Entwicklung | F81: =OFFSET(F81,-3,0)&" "&OFFSET(F81,-2,0)&" "&INDIRECT(OFFSET(F81,-3,0)&"!A5") -> Projekt_4 Studie Entwicklung | G81: =G80 -> 2013-10-01 | H81: =H80 ->  | I81: ="Aus Top Down "&OFFSET(I81,-3,-3) -> Aus Top Down Projekt_4 | J81: =IF(ISNA(H81),0,1) -> 0.000 | K81: =INDIRECT("'"&OFFSET(K81,-3,-5)&"'!B5") -> 40.0 | L81: 0.0 | P81: =IF(ISNA($H81),0,zeitausschnitt($G81,$H81,$L81,P$9,P$10)) -> 0 | Q81: 0 | R81: 0 | S81: 0 | T81: 0 | U81: 0 | V81: 0 | W81: 0 | X81: 0 | Y81: 0 | Z81: 0 | AA81: 0 | AB81: 0 | AC81: 0 | AD81: 0 | AE81: 0 | AF81: 0 | AG81: 0 | AH81: 0 | AI81: 0 | AJ81: 0
A82: 15000 | B82: =B81 -> 15100 | C82: =C81+1 -> 15103 | E82: Test | F82: =OFFSET(F82,-4,0)&" "&OFFSET(F82,-3,0)&" "&INDIRECT(OFFSET(F82,-4,0)&"!A6") -> Projekt_4 Studie Test | G82: =G81 -> 2013-10-01 | H82: =H81 ->  | I82: ="Aus Top Down "&OFFSET(I82,-4,-3) -> Aus Top Down Projekt_4 | J82: =IF(ISNA(H82),0,1) -> 0.000 | K82: =INDIRECT("'"&OFFSET(K82,-4,-5)&"'!B6") -> 30.0 | L82: 0.0 | P82: 0 | Q82: 0 | R82: 0 | S82: 0 | T82: 0 | U82: 0 | V82: 0 | W82: 0 | X82: 0 | Y82: 0 | Z82: 0 | AA82: 0 | AB82: 0 | AC82: 0 | AD82: 0 | AE82: 0 | AF82: 0 | AG82: 0 | AH82: 0 | AI82: 0 | AJ82: 0
A83: 15000
A84: 15000 | B84: =B79+100 -> 15200 | F84: =INDIRECT(OFFSET(F84,-6,0)&"!C1") -> Konzept | G84: =MIN(G85:G87) ->  | H84: =MAX(H85:H87) ->  | M84: =SUMIF(B$12:B$519,B84,L$12:L$519) -> 0.0
A85: 15000 | B85: =B84 -> 15200 | C85: =B84+1 -> 15201 | E85: PL | F85: =OFFSET(F85,-7,0)&" "&OFFSET(F85,-1,0)&" "&INDIRECT(OFFSET(F85,-7,0)&"!A4") -> Projekt_4 Konzept Projektleitung | G85: =VLOOKUP(OFFSET(G85,-7,-1),Projektübersicht,4,0) ->  | H85: =VLOOKUP(OFFSET(H85,-7,-2),Projektübersicht,5,0) ->  | I85: ="Aus Top Down "&OFFSET(I85,-7,-3) -> Aus Top Down Projekt_4 | J85: =IF(ISNA(H85),0,1) -> 0.000 | K85: =INDIRECT("'"&OFFSET(K85,-7,-5)&"'!C4") -> 20.0 | L85: 0.0 | P85: =IF(ISNA($H85),0,zeitausschnitt($G85,$H85,$L85,P$9,P$10)) -> 0 | Q85: =IF(ISNA($H85),0,zeitausschnitt($G85,$H85,$L85,Q$9,Q$10)) -> 0 | R85: 0 | S85: 0 | T85: 0 | U85: 0 | V85: 0 | W85: 0 | X85: 0 | Y85: 0 | Z85: 0 | AA85: 0 | AB85: 0 | AC85: 0 | AD85: 0 | AE85: 0 | AF85: 0 | AG85: 0 | AH85: 0 | AI85: 0 | AJ85: 0
A86: 15000 | B86: =B85 -> 15200 | C86: =C85+1 -> 15202 | E86: Entwicklung | F86: =OFFSET(F86,-8,0)&" "&OFFSET(F86,-2,0)&" "&INDIRECT(OFFSET(F86,-8,0)&"!A5") -> Projekt_4 Konzept Entwicklung | G86: =G85 ->  | H86: =H85 ->  | I86: ="Aus Top Down "&OFFSET(I86,-8,-3) -> Aus Top Down Projekt_4 | J86: =IF(ISNA(H86),0,1) -> 0.000 | K86: =INDIRECT("'"&OFFSET(K86,-8,-5)&"'!C5") -> 40.0 | L86: 0.0 | P86: =IF(ISNA($H86),0,zeitausschnitt($G86,$H86,$L86,P$9,P$10)) -> 0 | Q86: 0 | R86: 0 | S86: 0 | T86: 0 | U86: 0 | V86: 0 | W86: 0 | X86: 0 | Y86: 0 | Z86: 0 | AA86: 0 | AB86: 0 | AC86: 0 | AD86: 0 | AE86: 0 | AF86: 0 | AG86: 0 | AH86: 0 | AI86: 0 | AJ86: 0
A87: 15000 | B87: =B86 -> 15200 | C87: =C86+1 -> 15203 | E87: Test | F87: =OFFSET(F87,-9,0)&" "&OFFSET(F87,-3,0)&" "&INDIRECT(OFFSET(F87,-9,0)&"!A6") -> Projekt_4 Konzept Test | G87: =G86 ->  | H87: =H86 ->  | I87: ="Aus Top Down "&OFFSET(I87,-9,-3) -> Aus Top Down Projekt_4 | J87: =IF(ISNA(H87),0,1) -> 0.000 | K87: =INDIRECT("'"&OFFSET(K87,-9,-5)&"'!C6") -> 30.0 | L87: 0.0 | P87: 0 | Q87: 0 | R87: 0 | S87: 0 | T87: 0 | U87: 0 | V87: 0 | W87: 0 | X87: 0 | Y87: 0 | Z87: 0 | AA87: 0 | AB87: 0 | AC87: 0 | AD87: 0 | AE87: 0 | AF87: 0 | AG87: 0 | AH87: 0 | AI87: 0 | AJ87: 0
A88: 15000
A89: 15000 | B89: =B84+100 -> 15300 | F89: =INDIRECT(OFFSET(F89,-11,0)&"!D1") -> Entwicklung | G89: =MIN(G90:G92) ->  | H89: =MAX(H90:H92) ->  | M89: =SUMIF(B$12:B$519,B89,L$12:L$519) -> 0.0
A90: 15000 | B90: =B89 -> 15300 | C90: =B89+1 -> 15301 | E90: PL | F90: =OFFSET(F90,-12,0)&" "&OFFSET(F90,-1,0)&" "&INDIRECT(OFFSET(F90,-12,0)&"!A4") -> Projekt_4 Entwicklung Projektleitung | G90: =VLOOKUP(OFFSET(G90,-12,-1),Projektübersicht,5,0) ->  | H90: =VLOOKUP(OFFSET(H90,-12,-2),Projektübersicht,6,0) ->  | I90: ="Aus Top Down "&OFFSET(I90,-12,-3) -> Aus Top Down Projekt_4 | J90: =IF(ISNA(H90),0,1) -> 0.000 | K90: =INDIRECT("'"&OFFSET(K90,-12,-5)&"'!D4") -> 20.0 | L90: 0.0 | P90: =IF(ISNA($H90),0,zeitausschnitt($G90,$H90,$L90,P$9,P$10)) -> 0 | Q90: =IF(ISNA($H90),0,zeitausschnitt($G90,$H90,$L90,Q$9,Q$10)) -> 0 | R90: 0 | S90: 0 | T90: 0 | U90: 0 | V90: 0 | W90: 0 | X90: 0 | Y90: 0 | Z90: 0 | AA90: 0 | AB90: 0 | AC90: 0 | AD90: 0 | AE90: 0 | AF90: 0 | AG90: 0 | AH90: 0 | AI90: 0 | AJ90: 0
A91: 15000 | B91: =B90 -> 15300 | C91: =C90+1 -> 15302 | E91: Entwicklung | F91: =OFFSET(F91,-13,0)&" "&OFFSET(F91,-2,0)&" "&INDIRECT(OFFSET(F91,-13,0)&"!A5") -> Projekt_4 Entwicklung Entwicklung | G91: =G90 ->  | H91: =H90 ->  | I91: ="Aus Top Down "&OFFSET(I91,-13,-3) -> Aus Top Down Projekt_4 | J91: =IF(ISNA(H91),0,1) -> 0.000 | K91: =INDIRECT("'"&OFFSET(K91,-13,-5)&"'!D5") -> 40.0 | L91: 0.0 | P91: =IF(ISNA($H91),0,zeitausschnitt($G91,$H91,$L91,P$9,P$10)) -> 0 | Q91: 0 | R91: 0 | S91: 0 | T91: 0 | U91: 0 | V91: 0 | W91: 0 | X91: 0 | Y91: 0 | Z91: 0 | AA91: 0 | AB91: 0 | AC91: 0 | AD91: 0 | AE91: 0 | AF91: 0 | AG91: 0 | AH91: 0 | AI91: 0 | AJ91: 0
A92: 15000 | B92: =B91 -> 15300 | C92: =C91+1 -> 15303 | E92: Test | F92: =OFFSET(F92,-14,0)&" "&OFFSET(F92,-3,0)&" "&INDIRECT(OFFSET(F92,-14,0)&"!A6") -> Projekt_4 Entwicklung Test | G92: =G91 ->  | H92: =H91 ->  | I92: ="Aus Top Down "&OFFSET(I92,-14,-3) -> Aus Top Down Projekt_4 | J92: =IF(ISNA(H92),0,1) -> 0.000 | K92: =INDIRECT("'"&OFFSET(K92,-14,-5)&"'!D6") -> 30.0 | L92: 0.0 | P92: 0 | Q92: 0 | R92: 0 | S92: 0 | T92: 0 | U92: 0 | V92: 0 | W92: 0 | X92: 0 | Y92: 0 | Z92: 0 | AA92: 0 | AB92: 0 | AC92: 0 | AD92: 0 | AE92: 0 | AF92: 0 | AG92: 0 | AH92: 0 | AI92: 0 | AJ92: 0
A93: 15000
A94: 15000 | B94: =B89+100 -> 15400 | F94: =INDIRECT(OFFSET(F94,-16,0)&"!E1") -> Pflege | G94: =MIN(G95:G97) ->  | H94: =MAX(H95:H97) ->  | M94: =SUMIF(B$12:B$519,B94,L$12:L$519) -> 0.0
A95: 15000 | B95: =B94 -> 15400 | C95: =B94+1 -> 15401 | E95: PL | F95: =OFFSET(F95,-17,0)&" "&OFFSET(F95,-1,0)&" "&INDIRECT(OFFSET(F95,-17,0)&"!A4") -> Projekt_4 Pflege Projektleitung | G95: =VLOOKUP(OFFSET(G95,-17,-1),Projektübersicht,6,0) ->  | H95: =VLOOKUP(OFFSET(H95,-17,-2),Projektübersicht,7,0) ->  | I95: ="Aus Top Down "&OFFSET(I95,-17,-3) -> Aus Top Down Projekt_4 | J95: =IF(ISNA(H95),0,1) -> 0.000 | K95: =INDIRECT("'"&OFFSET(K95,-17,-5)&"'!E4") -> 20.0 | L95: 0.0 | P95: =IF(ISNA($H95),0,zeitausschnitt($G95,$H95,$L95,P$9,P$10)) -> 0 | Q95: =IF(ISNA($H95),0,zeitausschnitt($G95,$H95,$L95,Q$9,Q$10)) -> 0 | R95: 0 | S95: 0 | T95: 0 | U95: 0 | V95: 0 | W95: 0 | X95: 0 | Y95: 0 | Z95: 0 | AA95: 0 | AB95: 0 | AC95: 0 | AD95: 0 | AE95: 0 | AF95: 0 | AG95: 0 | AH95: 0 | AI95: 0 | AJ95: 0
A96: 15000 | B96: =B95 -> 15400 | C96: =C95+1 -> 15402 | E96: Entwicklung | F96: =OFFSET(F96,-18,0)&" "&OFFSET(F96,-2,0)&" "&INDIRECT(OFFSET(F96,-18,0)&"!A5") -> Projekt_4 Pflege Entwicklung | G96: =G95 ->  | H96: =H95 ->  | I96: ="Aus Top Down "&OFFSET(I96,-18,-3) -> Aus Top Down Projekt_4 | J96: =IF(ISNA(H96),0,1) -> 0.000 | K96: =INDIRECT("'"&OFFSET(K96,-18,-5)&"'!E5") -> 40.0 | L96: 0.0 | P96: =IF(ISNA($H96),0,zeitausschnitt($G96,$H96,$L96,P$9,P$10)) -> 0 | Q96: 0 | R96: 0 | S96: 0 | T96: 0 | U96: 0 | V96: 0 | W96: 0 | X96: 0 | Y96: 0 | Z96: 0 | AA96: 0 | AB96: 0 | AC96: 0 | AD96: 0 | AE96: 0 | AF96: 0 | AG96: 0 | AH96: 0 | AI96: 0 | AJ96: 0
A97: 15000 | B97: =B96 -> 15400 | C97: =C96+1 -> 15403 | E97: Test | F97: =OFFSET(F97,-19,0)&" "&OFFSET(F97,-3,0)&" "&INDIRECT(OFFSET(F97,-19,0)&"!A6") -> Projekt_4 Pflege Test | G97: =G96 ->  | H97: =H96 ->  | I97: ="Aus Top Down "&OFFSET(I97,-19,-3) -> Aus Top Down Projekt_4 | J97: =IF(ISNA(H97),0,1) -> 0.000 | K97: =INDIRECT("'"&OFFSET(K97,-19,-5)&"'!E6") -> 30.0 | L97: 0.0 | P97: 0 | Q97: 0 | R97: 0 | S97: 0 | T97: 0 | U97: 0 | V97: 0 | W97: 0 | X97: 0 | Y97: 0 | Z97: 0 | AA97: 0 | AB97: 0 | AC97: 0 | AD97: 0 | AE97: 0 | AF97: 0 | AG97: 0 | AH97: 0 | AI97: 0 | AJ97: 0
A98: 15000
L99: =IF(AND(J99<>"",K99<>""),J99*K99,"") -> 
A100: =A78+1000 -> 16000 | F100: =INDIRECT(CONCATENATE("Übersicht!C",TEXT((A100-10000)/1000,0))) -> Leer | G100: =MIN(G101:G115) ->  | H100: =MAX(H101:H115) ->  | M100: =SUMIF(A$12:A$519,A100,L$12:L$519) -> 0.0 | O100: =F100 -> Leer | P100: =SUM(P102:P119) -> 0 | Q100: =SUM(Q102:Q119) -> 0 | R100: 0 | S100: 0 | T100: 0 | U100: 0 | V100: 0 | W100: 0 | X100: 0 | Y100: 0 | Z100: 0 | AA100: 0 | AB100: 0 | AC100: 0 | AD100: 0 | AE100: 0 | AF100: 0 | AG100: 0 | AH100: 0 | AI100: 0 | AJ100: 0
A101: =A100 -> 16000 | B101: =A100+100 -> 16100 | F101: =INDIRECT(OFFSET(F101,-1,0)&"!B1") -> Studie | G101: =MIN(G102:G104) -> 00:00:00 | H101: =MAX(H102:H104) ->  | M101: =SUMIF(B$12:B$519,B101,L$12:L$519) -> 0.0
A102: =A101 -> 16000 | B102: =B101 -> 16100 | C102: =B101+1 -> 16101 | E102: PL | F102: =OFFSET(F102,-2,0)&" "&OFFSET(F102,-1,0)&" "&INDIRECT(OFFSET(F102,-2,0)&"!A4") -> Leer Studie Projektleitung | G102: =VLOOKUP(OFFSET(G102,-2,-1),Projektübersicht,3,0) -> 00:00:00 | H102: =VLOOKUP(OFFSET(H102,-2,-2),Projektübersicht,4,0) ->  | I102: ="Aus Top Down "&OFFSET(I102,-2,-3) -> Aus Top Down Leer | J102: =IF(ISNA(H102),0,1) -> 0.000 | K102: =INDIRECT("'"&OFFSET(K102,-2,-5)&"'!B4") -> 0.0 | L102: 0.0 | P102: =IF(ISNA($H102),0,zeitausschnitt($G102,$H102,$L102,P$9,P$10)) -> 0 | Q102: =IF(ISNA($H102),0,zeitausschnitt($G102,$H102,$L102,Q$9,Q$10)) -> 0 | R102: 0 | S102: 0 | T102: 0 | U102: 0 | V102: 0 | W102: 0 | X102: 0 | Y102: 0 | Z102: 0 | AA102: 0 | AB102: 0 | AC102: 0 | AD102: 0 | AE102: 0 | AF102: 0 | AG102: 0 | AH102: 0 | AI102: 0 | AJ102: 0
A103: =A102 -> 16000 | B103: =B102 -> 16100 | C103: =C102+1 -> 16102 | E103: Entwicklung | F103: =OFFSET(F103,-3,0)&" "&OFFSET(F103,-2,0)&" "&INDIRECT(OFFSET(F103,-3,0)&"!A5") -> Leer Studie Entwicklung | G103: =G102 -> 00:00:00 | H103: =H102 ->  | I103: ="Aus Top Down "&OFFSET(I103,-3,-3) -> Aus Top Down Leer | J103: =IF(ISNA(H103),0,1) -> 0.000 | K103: =INDIRECT("'"&OFFSET(K103,-3,-5)&"'!B5") -> 0.0 | L103: 0.0 | P103: =IF(ISNA($H103),0,zeitausschnitt($G103,$H103,$L103,P$9,P$10)) -> 0 | Q103: 0 | R103: 0 | S103: 0 | T103: 0 | U103: 0 | V103: 0 | W103: 0 | X103: 0 | Y103: 0 | Z103: 0 | AA103: 0 | AB103: 0 | AC103: 0 | AD103: 0 | AE103: 0 | AF103: 0 | AG103: 0 | AH103: 0 | AI103: 0 | AJ103: 0
A104: 16000 | B104: =B103 -> 16100 | C104: =C103+1 -> 16103 | E104: Test | F104: =OFFSET(F104,-4,0)&" "&OFFSET(F104,-3,0)&" "&INDIRECT(OFFSET(F104,-4,0)&"!A6") -> Leer Studie Test | G104: =G103 -> 00:00:00 | H104: =H103 ->  | I104: ="Aus Top Down "&OFFSET(I104,-4,-3) -> Aus Top Down Leer | J104: =IF(ISNA(H104),0,1) -> 0.000 | K104: =INDIRECT("'"&OFFSET(K104,-4,-5)&"'!B6") -> 0.0 | L104: 0.0 | P104: 0 | Q104: 0 | R104: 0 | S104: 0 | T104: 0 | U104: 0 | V104: 0 | W104: 0 | X104: 0 | Y104: 0 | Z104: 0 | AA104: 0 | AB104: 0 | AC104: 0 | AD104: 0 | AE104: 0 | AF104: 0 | AG104: 0 | AH104: 0 | AI104: 0 | AJ104: 0
A105: 16000
A106: 16000 | B106: =B101+100 -> 16200 | F106: =INDIRECT(OFFSET(F106,-6,0)&"!C1") -> Konzept | G106: =MIN(G107:G109) ->  | H106: =MAX(H107:H109) ->  | M106: =SUMIF(B$12:B$519,B106,L$12:L$519) -> 0.0
A107: 16000 | B107: =B106 -> 16200 | C107: =B106+1 -> 16201 | E107: PL | F107: =OFFSET(F107,-7,0)&" "&OFFSET(F107,-1,0)&" "&INDIRECT(OFFSET(F107,-7,0)&"!A4") -> Leer Konzept Projektleitung | G107: =VLOOKUP(OFFSET(G107,-7,-1),Projektübersicht,4,0) ->  | H107: =VLOOKUP(OFFSET(H107,-7,-2),Projektübersicht,5,0) ->  | I107: ="Aus Top Down "&OFFSET(I107,-7,-3) -> Aus Top Down Leer | J107: =IF(ISNA(H107),0,1) -> 0.000 | K107: =INDIRECT("'"&OFFSET(K107,-7,-5)&"'!C4") -> 0.0 | L107: 0.0 | P107: =IF(ISNA($H107),0,zeitausschnitt($G107,$H107,$L107,P$9,P$10)) -> 0 | Q107: =IF(ISNA($H107),0,zeitausschnitt($G107,$H107,$L107,Q$9,Q$10)) -> 0 | R107: 0 | S107: 0 | T107: 0 | U107: 0 | V107: 0 | W107: 0 | X107: 0 | Y107: 0 | Z107: 0 | AA107: 0 | AB107: 0 | AC107: 0 | AD107: 0 | AE107: 0 | AF107: 0 | AG107: 0 | AH107: 0 | AI107: 0 | AJ107: 0
A108: 16000 | B108: =B107 -> 16200 | C108: =C107+1 -> 16202 | E108: Entwicklung | F108: =OFFSET(F108,-8,0)&" "&OFFSET(F108,-2,0)&" "&INDIRECT(OFFSET(F108,-8,0)&"!A5") -> Leer Konzept Entwicklung | G108: =G107 ->  | H108: =H107 ->  | I108: ="Aus Top Down "&OFFSET(I108,-8,-3) -> Aus Top Down Leer | J108: =IF(ISNA(H108),0,1) -> 0.000 | K108: =INDIRECT("'"&OFFSET(K108,-8,-5)&"'!C5") -> 0.0 | L108: 0.0 | P108: =IF(ISNA($H108),0,zeitausschnitt($G108,$H108,$L108,P$9,P$10)) -> 0 | Q108: 0 | R108: 0 | S108: 0 | T108: 0 | U108: 0 | V108: 0 | W108: 0 | X108: 0 | Y108: 0 | Z108: 0 | AA108: 0 | AB108: 0 | AC108: 0 | AD108: 0 | AE108: 0 | AF108: 0 | AG108: 0 | AH108: 0 | AI108: 0 | AJ108: 0
A109: 16000 | B109: =B108 -> 16200 | C109: =C108+1 -> 16203 | E109: Test | F109: =OFFSET(F109,-9,0)&" "&OFFSET(F109,-3,0)&" "&INDIRECT(OFFSET(F109,-9,0)&"!A6") -> Leer Konzept Test | G109: =G108 ->  | H109: =H108 ->  | I109: ="Aus Top Down "&OFFSET(I109,-9,-3) -> Aus Top Down Leer | J109: =IF(ISNA(H109),0,1) -> 0.000 | K109: =INDIRECT("'"&OFFSET(K109,-9,-5)&"'!C6") -> 0.0 | L109: 0.0 | P109: 0 | Q109: 0 | R109: 0 | S109: 0 | T109: 0 | U109: 0 | V109: 0 | W109: 0 | X109: 0 | Y109: 0 | Z109: 0 | AA109: 0 | AB109: 0 | AC109: 0 | AD109: 0 | AE109: 0 | AF109: 0 | AG109: 0 | AH109: 0 | AI109: 0 | AJ109: 0
A110: 16000
A111: 16000 | B111: =B106+100 -> 16300 | F111: =INDIRECT(OFFSET(F111,-11,0)&"!D1") -> Entwicklung | G111: =MIN(G112:G114) ->  | H111: =MAX(H112:H114) ->  | M111: =SUMIF(B$12:B$519,B111,L$12:L$519) -> 0.0
A112: 16000 | B112: =B111 -> 16300 | C112: =B111+1 -> 16301 | E112: PL | F112: =OFFSET(F112,-12,0)&" "&OFFSET(F112,-1,0)&" "&INDIRECT(OFFSET(F112,-12,0)&"!A4") -> Leer Entwicklung Projektleitung | G112: =VLOOKUP(OFFSET(G112,-12,-1),Projektübersicht,5,0) ->  | H112: =VLOOKUP(OFFSET(H112,-12,-2),Projektübersicht,6,0) ->  | I112: ="Aus Top Down "&OFFSET(I112,-12,-3) -> Aus Top Down Leer | J112: =IF(ISNA(H112),0,1) -> 0.000 | K112: =INDIRECT("'"&OFFSET(K112,-12,-5)&"'!D4") -> 0.0 | L112: 0.0 | P112: =IF(ISNA($H112),0,zeitausschnitt($G112,$H112,$L112,P$9,P$10)) -> 0 | Q112: =IF(ISNA($H112),0,zeitausschnitt($G112,$H112,$L112,Q$9,Q$10)) -> 0 | R112: 0 | S112: 0 | T112: 0 | U112: 0 | V112: 0 | W112: 0 | X112: 0 | Y112: 0 | Z112: 0 | AA112: 0 | AB112: 0 | AC112: 0 | AD112: 0 | AE112: 0 | AF112: 0 | AG112: 0 | AH112: 0 | AI112: 0 | AJ112: 0
A113: 16000 | B113: =B112 -> 16300 | C113: =C112+1 -> 16302 | E113: Entwicklung | F113: =OFFSET(F113,-13,0)&" "&OFFSET(F113,-2,0)&" "&INDIRECT(OFFSET(F113,-13,0)&"!A5") -> Leer Entwicklung Entwicklung | G113: =G112 ->  | H113: =H112 ->  | I113: ="Aus Top Down "&OFFSET(I113,-13,-3) -> Aus Top Down Leer | J113: =IF(ISNA(H113),0,1) -> 0.000 | K113: =INDIRECT("'"&OFFSET(K113,-13,-5)&"'!D5") -> 0.0 | L113: 0.0 | P113: =IF(ISNA($H113),0,zeitausschnitt($G113,$H113,$L113,P$9,P$10)) -> 0 | Q113: 0 | R113: 0 | S113: 0 | T113: 0 | U113: 0 | V113: 0 | W113: 0 | X113: 0 | Y113: 0 | Z113: 0 | AA113: 0 | AB113: 0 | AC113: 0 | AD113: 0 | AE113: 0 | AF113: 0 | AG113: 0 | AH113: 0 | AI113: 0 | AJ113: 0
A114: 16000 | B114: =B113 -> 16300 | C114: =C113+1 -> 16303 | E114: Test | F114: =OFFSET(F114,-14,0)&" "&OFFSET(F114,-3,0)&" "&INDIRECT(OFFSET(F114,-14,0)&"!A6") -> Leer Entwicklung Test | G114: =G113 ->  | H114: =H113 ->  | I114: ="Aus Top Down "&OFFSET(I114,-14,-3) -> Aus Top Down Leer | J114: =IF(ISNA(H114),0,1) -> 0.000 | K114: =INDIRECT("'"&OFFSET(K114,-14,-5)&"'!D6") -> 0.0 | L114: 0.0 | P114: 0 | Q114: 0 | R114: 0 | S114: 0 | T114: 0 | U114: 0 | V114: 0 | W114: 0 | X114: 0 | Y114: 0 | Z114: 0 | AA114: 0 | AB114: 0 | AC114: 0 | AD114: 0 | AE114: 0 | AF114: 0 | AG114: 0 | AH114: 0 | AI114: 0 | AJ114: 0
A115: 16000
A116: 16000 | B116: =B111+100 -> 16400 | F116: =INDIRECT(OFFSET(F116,-16,0)&"!E1") -> Pflege | G116: =MIN(G117:G119) ->  | H116: =MAX(H117:H119) ->  | M116: =SUMIF(B$12:B$519,B116,L$12:L$519) -> 0.0
A117: 16000 | B117: =B116 -> 16400 | C117: =B116+1 -> 16401 | E117: PL | F117: =OFFSET(F117,-17,0)&" "&OFFSET(F117,-1,0)&" "&INDIRECT(OFFSET(F117,-17,0)&"!A4") -> Leer Pflege Projektleitung | G117: =VLOOKUP(OFFSET(G117,-17,-1),Projektübersicht,6,0) ->  | H117: =VLOOKUP(OFFSET(H117,-17,-2),Projektübersicht,7,0) ->  | I117: ="Aus Top Down "&OFFSET(I117,-17,-3) -> Aus Top Down Leer | J117: =IF(ISNA(H117),0,1) -> 0.000 | K117: =INDIRECT("'"&OFFSET(K117,-17,-5)&"'!E4") -> 0.0 | L117: 0.0 | P117: =IF(ISNA($H117),0,zeitausschnitt($G117,$H117,$L117,P$9,P$10)) -> 0 | Q117: =IF(ISNA($H117),0,zeitausschnitt($G117,$H117,$L117,Q$9,Q$10)) -> 0 | R117: 0 | S117: 0 | T117: 0 | U117: 0 | V117: 0 | W117: 0 | X117: 0 | Y117: 0 | Z117: 0 | AA117: 0 | AB117: 0 | AC117: 0 | AD117: 0 | AE117: 0 | AF117: 0 | AG117: 0 | AH117: 0 | AI117: 0 | AJ117: 0
A118: 16000 | B118: =B117 -> 16400 | C118: =C117+1 -> 16402 | E118: Entwicklung | F118: =OFFSET(F118,-18,0)&" "&OFFSET(F118,-2,0)&" "&INDIRECT(OFFSET(F118,-18,0)&"!A5") -> Leer Pflege Entwicklung | G118: =G117 ->  | H118: =H117 ->  | I118: ="Aus Top Down "&OFFSET(I118,-18,-3) -> Aus Top Down Leer | J118: =IF(ISNA(H118),0,1) -> 0.000 | K118: =INDIRECT("'"&OFFSET(K118,-18,-5)&"'!E5") -> 0.0 | L118: 0.0 | P118: =IF(ISNA($H118),0,zeitausschnitt($G118,$H118,$L118,P$9,P$10)) -> 0 | Q118: 0 | R118: 0 | S118: 0 | T118: 0 | U118: 0 | V118: 0 | W118: 0 | X118: 0 | Y118: 0 | Z118: 0 | AA118: 0 | AB118: 0 | AC118: 0 | AD118: 0 | AE118: 0 | AF118: 0 | AG118: 0 | AH118: 0 | AI118: 0 | AJ118: 0
A119: 16000 | B119: =B118 -> 16400 | C119: =C118+1 -> 16403 | E119: Test | F119: =OFFSET(F119,-19,0)&" "&OFFSET(F119,-3,0)&" "&INDIRECT(OFFSET(F119,-19,0)&"!A6") -> Leer Pflege Test | G119: =G118 ->  | H119: =H118 ->  | I119: ="Aus Top Down "&OFFSET(I119,-19,-3) -> Aus Top Down Leer | J119: =IF(ISNA(H119),0,1) -> 0.000 | K119: =INDIRECT("'"&OFFSET(K119,-19,-5)&"'!E6") -> 0.0 | L119: 0.0 | P119: 0 | Q119: 0 | R119: 0 | S119: 0 | T119: 0 | U119: 0 | V119: 0 | W119: 0 | X119: 0 | Y119: 0 | Z119: 0 | AA119: 0 | AB119: 0 | AC119: 0 | AD119: 0 | AE119: 0 | AF119: 0 | AG119: 0 | AH119: 0 | AI119: 0 | AJ119: 0
A120: 16000
L121: =IF(AND(J121<>"",K121<>""),J121*K121,"") -> 
A122: =A100+1000 -> 17000 | F122: =INDIRECT(CONCATENATE("Übersicht!C",TEXT((A122-10000)/1000,0))) -> Leer | G122: =MIN(G123:G137) ->  | H122: =MAX(H123:H137) ->  | M122: =SUMIF(A$12:A$519,A122,L$12:L$519) -> 0.0 | O122: =F122 -> Leer | P122: =SUM(P124:P141) -> 0 | Q122: =SUM(Q124:Q141) -> 0 | R122: 0 | S122: 0 | T122: 0 | U122: 0 | V122: 0 | W122: 0 | X122: 0 | Y122: 0 | Z122: 0 | AA122: 0 | AB122: 0 | AC122: 0 | AD122: 0 | AE122: 0 | AF122: 0 | AG122: 0 | AH122: 0 | AI122: 0 | AJ122: 0
A123: =A122 -> 17000 | B123: =A122+100 -> 17100 | F123: =INDIRECT(OFFSET(F123,-1,0)&"!B1") -> Studie | G123: =MIN(G124:G126) -> 00:00:00 | H123: =MAX(H124:H126) ->  | M123: =SUMIF(B$12:B$519,B123,L$12:L$519) -> 0.0
A124: =A123 -> 17000 | B124: =B123 -> 17100 | C124: =B123+1 -> 17101 | E124: PL | F124: =OFFSET(F124,-2,0)&" "&OFFSET(F124,-1,0)&" "&INDIRECT(OFFSET(F124,-2,0)&"!A4") -> Leer Studie Projektleitung | G124: =VLOOKUP(OFFSET(G124,-2,-1),Projektübersicht,3,0) -> 00:00:00 | H124: =VLOOKUP(OFFSET(H124,-2,-2),Projektübersicht,4,0) ->  | I124: ="Aus Top Down "&OFFSET(I124,-2,-3) -> Aus Top Down Leer | J124: =IF(ISNA(H124),0,1) -> 0.000 | K124: =INDIRECT("'"&OFFSET(K124,-2,-5)&"'!B4") -> 0.0 | L124: 0.0 | P124: =IF(ISNA($H124),0,zeitausschnitt($G124,$H124,$L124,P$9,P$10)) -> 0 | Q124: =IF(ISNA($H124),0,zeitausschnitt($G124,$H124,$L124,Q$9,Q$10)) -> 0 | R124: 0 | S124: 0 | T124: 0 | U124: 0 | V124: 0 | W124: 0 | X124: 0 | Y124: 0 | Z124: 0 | AA124: 0 | AB124: 0 | AC124: 0 | AD124: 0 | AE124: 0 | AF124: 0 | AG124: 0 | AH124: 0 | AI124: 0 | AJ124: 0
A125: =A124 -> 17000 | B125: =B124 -> 17100 | C125: =C124+1 -> 17102 | E125: Entwicklung | F125: =OFFSET(F125,-3,0)&" "&OFFSET(F125,-2,0)&" "&INDIRECT(OFFSET(F125,-3,0)&"!A5") -> Leer Studie Entwicklung | G125: =G124 -> 00:00:00 | H125: =H124 ->  | I125: ="Aus Top Down "&OFFSET(I125,-3,-3) -> Aus Top Down Leer | J125: =IF(ISNA(H125),0,1) -> 0.000 | K125: =INDIRECT("'"&OFFSET(K125,-3,-5)&"'!B5") -> 0.0 | L125: 0.0 | P125: =IF(ISNA($H125),0,zeitausschnitt($G125,$H125,$L125,P$9,P$10)) -> 0 | Q125: 0 | R125: 0 | S125: 0 | T125: 0 | U125: 0 | V125: 0 | W125: 0 | X125: 0 | Y125: 0 | Z125: 0 | AA125: 0 | AB125: 0 | AC125: 0 | AD125: 0 | AE125: 0 | AF125: 0 | AG125: 0 | AH125: 0 | AI125: 0 | AJ125: 0
A126: 17000 | B126: =B125 -> 17100 | C126: =C125+1 -> 17103 | E126: Test | F126: =OFFSET(F126,-4,0)&" "&OFFSET(F126,-3,0)&" "&INDIRECT(OFFSET(F126,-4,0)&"!A6") -> Leer Studie Test | G126: =G125 -> 00:00:00 | H126: =H125 ->  | I126: ="Aus Top Down "&OFFSET(I126,-4,-3) -> Aus Top Down Leer | J126: =IF(ISNA(H126),0,1) -> 0.000 | K126: =INDIRECT("'"&OFFSET(K126,-4,-5)&"'!B6") -> 0.0 | L126: 0.0 | P126: 0 | Q126: 0 | R126: 0 | S126: 0 | T126: 0 | U126: 0 | V126: 0 | W126: 0 | X126: 0 | Y126: 0 | Z126: 0 | AA126: 0 | AB126: 0 | AC126: 0 | AD126: 0 | AE126: 0 | AF126: 0 | AG126: 0 | AH126: 0 | AI126: 0 | AJ126: 0
A127: 17000
A128: 17000 | B128: =B123+100 -> 17200 | F128: =INDIRECT(OFFSET(F128,-6,0)&"!C1") -> Konzept | G128: =MIN(G129:G131) ->  | H128: =MAX(H129:H131) ->  | M128: =SUMIF(B$12:B$519,B128,L$12:L$519) -> 0.0
A129: 17000 | B129: =B128 -> 17200 | C129: =B128+1 -> 17201 | E129: PL | F129: =OFFSET(F129,-7,0)&" "&OFFSET(F129,-1,0)&" "&INDIRECT(OFFSET(F129,-7,0)&"!A4") -> Leer Konzept Projektleitung | G129: =VLOOKUP(OFFSET(G129,-7,-1),Projektübersicht,4,0) ->  | H129: =VLOOKUP(OFFSET(H129,-7,-2),Projektübersicht,5,0) ->  | I129: ="Aus Top Down "&OFFSET(I129,-7,-3) -> Aus Top Down Leer | J129: =IF(ISNA(H129),0,1) -> 0.000 | K129: =INDIRECT("'"&OFFSET(K129,-7,-5)&"'!C4") -> 0.0 | L129: 0.0 | P129: =IF(ISNA($H129),0,zeitausschnitt($G129,$H129,$L129,P$9,P$10)) -> 0 | Q129: =IF(ISNA($H129),0,zeitausschnitt($G129,$H129,$L129,Q$9,Q$10)) -> 0 | R129: 0 | S129: 0 | T129: 0 | U129: 0 | V129: 0 | W129: 0 | X129: 0 | Y129: 0 | Z129: 0 | AA129: 0 | AB129: 0 | AC129: 0 | AD129: 0 | AE129: 0 | AF129: 0 | AG129: 0 | AH129: 0 | AI129: 0 | AJ129: 0
A130: 17000 | B130: =B129 -> 17200 | C130: =C129+1 -> 17202 | E130: Entwicklung | F130: =OFFSET(F130,-8,0)&" "&OFFSET(F130,-2,0)&" "&INDIRECT(OFFSET(F130,-8,0)&"!A5") -> Leer Konzept Entwicklung | G130: =G129 ->  | H130: =H129 ->  | I130: ="Aus Top Down "&OFFSET(I130,-8,-3) -> Aus Top Down Leer | J130: =IF(ISNA(H130),0,1) -> 0.000 | K130: =INDIRECT("'"&OFFSET(K130,-8,-5)&"'!C5") -> 0.0 | L130: 0.0 | P130: =IF(ISNA($H130),0,zeitausschnitt($G130,$H130,$L130,P$9,P$10)) -> 0 | Q130: 0 | R130: 0 | S130: 0 | T130: 0 | U130: 0 | V130: 0 | W130: 0 | X130: 0 | Y130: 0 | Z130: 0 | AA130: 0 | AB130: 0 | AC130: 0 | AD130: 0 | AE130: 0 | AF130: 0 | AG130: 0 | AH130: 0 | AI130: 0 | AJ130: 0
A131: 17000 | B131: =B130 -> 17200 | C131: =C130+1 -> 17203 | E131: Test | F131: =OFFSET(F131,-9,0)&" "&OFFSET(F131,-3,0)&" "&INDIRECT(OFFSET(F131,-9,0)&"!A6") -> Leer Konzept Test | G131: =G130 ->  | H131: =H130 ->  | I131: ="Aus Top Down "&OFFSET(I131,-9,-3) -> Aus Top Down Leer | J131: =IF(ISNA(H131),0,1) -> 0.000 | K131: =INDIRECT("'"&OFFSET(K131,-9,-5)&"'!C6") -> 0.0 | L131: 0.0 | P131: 0 | Q131: 0 | R131: 0 | S131: 0 | T131: 0 | U131: 0 | V131: 0 | W131: 0 | X131: 0 | Y131: 0 | Z131: 0 | AA131: 0 | AB131: 0 | AC131: 0 | AD131: 0 | AE131: 0 | AF131: 0 | AG131: 0 | AH131: 0 | AI131: 0 | AJ131: 0
A132: 17000
A133: 17000 | B133: =B128+100 -> 17300 | F133: =INDIRECT(OFFSET(F133,-11,0)&"!D1") -> Entwicklung | G133: =MIN(G134:G136) ->  | H133: =MAX(H134:H136) ->  | M133: =SUMIF(B$12:B$519,B133,L$12:L$519) -> 0.0
A134: 17000 | B134: =B133 -> 17300 | C134: =B133+1 -> 17301 | E134: PL | F134: =OFFSET(F134,-12,0)&" "&OFFSET(F134,-1,0)&" "&INDIRECT(OFFSET(F134,-12,0)&"!A4") -> Leer Entwicklung Projektleitung | G134: =VLOOKUP(OFFSET(G134,-12,-1),Projektübersicht,5,0) ->  | H134: =VLOOKUP(OFFSET(H134,-12,-2),Projektübersicht,6,0) ->  | I134: ="Aus Top Down "&OFFSET(I134,-12,-3) -> Aus Top Down Leer | J134: =IF(ISNA(H134),0,1) -> 0.000 | K134: =INDIRECT("'"&OFFSET(K134,-12,-5)&"'!D4") -> 0.0 | L134: 0.0 | P134: =IF(ISNA($H134),0,zeitausschnitt($G134,$H134,$L134,P$9,P$10)) -> 0 | Q134: =IF(ISNA($H134),0,zeitausschnitt($G134,$H134,$L134,Q$9,Q$10)) -> 0 | R134: 0 | S134: 0 | T134: 0 | U134: 0 | V134: 0 | W134: 0 | X134: 0 | Y134: 0 | Z134: 0 | AA134: 0 | AB134: 0 | AC134: 0 | AD134: 0 | AE134: 0 | AF134: 0 | AG134: 0 | AH134: 0 | AI134: 0 | AJ134: 0
A135: 17000 | B135: =B134 -> 17300 | C135: =C134+1 -> 17302 | E135: Entwicklung | F135: =OFFSET(F135,-13,0)&" "&OFFSET(F135,-2,0)&" "&INDIRECT(OFFSET(F135,-13,0)&"!A5") -> Leer Entwicklung Entwicklung | G135: =G134 ->  | H135: =H134 ->  | I135: ="Aus Top Down "&OFFSET(I135,-13,-3) -> Aus Top Down Leer | J135: =IF(ISNA(H135),0,1) -> 0.000 | K135: =INDIRECT("'"&OFFSET(K135,-13,-5)&"'!D5") -> 0.0 | L135: 0.0 | P135: =IF(ISNA($H135),0,zeitausschnitt($G135,$H135,$L135,P$9,P$10)) -> 0 | Q135: 0 | R135: 0 | S135: 0 | T135: 0 | U135: 0 | V135: 0 | W135: 0 | X135: 0 | Y135: 0 | Z135: 0 | AA135: 0 | AB135: 0 | AC135: 0 | AD135: 0 | AE135: 0 | AF135: 0 | AG135: 0 | AH135: 0 | AI135: 0 | AJ135: 0
A136: 17000 | B136: =B135 -> 17300 | C136: =C135+1 -> 17303 | E136: Test | F136: =OFFSET(F136,-14,0)&" "&OFFSET(F136,-3,0)&" "&INDIRECT(OFFSET(F136,-14,0)&"!A6") -> Leer Entwicklung Test | G136: =G135 ->  | H136: =H135 ->  | I136: ="Aus Top Down "&OFFSET(I136,-14,-3) -> Aus Top Down Leer | J136: =IF(ISNA(H136),0,1) -> 0.000 | K136: =INDIRECT("'"&OFFSET(K136,-14,-5)&"'!D6") -> 0.0 | L136: 0.0 | P136: 0 | Q136: 0 | R136: 0 | S136: 0 | T136: 0 | U136: 0 | V136: 0 | W136: 0 | X136: 0 | Y136: 0 | Z136: 0 | AA136: 0 | AB136: 0 | AC136: 0 | AD136: 0 | AE136: 0 | AF136: 0 | AG136: 0 | AH136: 0 | AI136: 0 | AJ136: 0
A137: 17000
A138: 17000 | B138: =B133+100 -> 17400 | F138: =INDIRECT(OFFSET(F138,-16,0)&"!E1") -> Pflege | G138: =MIN(G139:G141) ->  | H138: =MAX(H139:H141) ->  | M138: =SUMIF(B$12:B$519,B138,L$12:L$519) -> 0.0
A139: 17000 | B139: =B138 -> 17400 | C139: =B138+1 -> 17401 | E139: PL | F139: =OFFSET(F139,-17,0)&" "&OFFSET(F139,-1,0)&" "&INDIRECT(OFFSET(F139,-17,0)&"!A4") -> Leer Pflege Projektleitung | G139: =VLOOKUP(OFFSET(G139,-17,-1),Projektübersicht,6,0) ->  | H139: =VLOOKUP(OFFSET(H139,-17,-2),Projektübersicht,7,0) ->  | I139: ="Aus Top Down "&OFFSET(I139,-17,-3) -> Aus Top Down Leer | J139: =IF(ISNA(H139),0,1) -> 0.000 | K139: =INDIRECT("'"&OFFSET(K139,-17,-5)&"'!E4") -> 0.0 | L139: 0.0 | P139: =IF(ISNA($H139),0,zeitausschnitt($G139,$H139,$L139,P$9,P$10)) -> 0 | Q139: =IF(ISNA($H139),0,zeitausschnitt($G139,$H139,$L139,Q$9,Q$10)) -> 0 | R139: 0 | S139: 0 | T139: 0 | U139: 0 | V139: 0 | W139: 0 | X139: 0 | Y139: 0 | Z139: 0 | AA139: 0 | AB139: 0 | AC139: 0 | AD139: 0 | AE139: 0 | AF139: 0 | AG139: 0 | AH139: 0 | AI139: 0 | AJ139: 0
A140: 17000 | B140: =B139 -> 17400 | C140: =C139+1 -> 17402 | E140: Entwicklung | F140: =OFFSET(F140,-18,0)&" "&OFFSET(F140,-2,0)&" "&INDIRECT(OFFSET(F140,-18,0)&"!A5") -> Leer Pflege Entwicklung | G140: =G139 ->  | H140: =H139 ->  | I140: ="Aus Top Down "&OFFSET(I140,-18,-3) -> Aus Top Down Leer | J140: =IF(ISNA(H140),0,1) -> 0.000 | K140: =INDIRECT("'"&OFFSET(K140,-18,-5)&"'!E5") -> 0.0 | L140: 0.0 | P140: =IF(ISNA($H140),0,zeitausschnitt($G140,$H140,$L140,P$9,P$10)) -> 0 | Q140: 0 | R140: 0 | S140: 0 | T140: 0 | U140: 0 | V140: 0 | W140: 0 | X140: 0 | Y140: 0 | Z140: 0 | AA140: 0 | AB140: 0 | AC140: 0 | AD140: 0 | AE140: 0 | AF140: 0 | AG140: 0 | AH140: 0 | AI140: 0 | AJ140: 0
A141: 17000 | B141: =B140 -> 17400 | C141: =C140+1 -> 17403 | E141: Test | F141: =OFFSET(F141,-19,0)&" "&OFFSET(F141,-3,0)&" "&INDIRECT(OFFSET(F141,-19,0)&"!A6") -> Leer Pflege Test | G141: =G140 ->  | H141: =H140 ->  | I141: ="Aus Top Down "&OFFSET(I141,-19,-3) -> Aus Top Down Leer | J141: =IF(ISNA(H141),0,1) -> 0.000 | K141: =INDIRECT("'"&OFFSET(K141,-19,-5)&"'!E6") -> 0.0 | L141: 0.0 | P141: 0 | Q141: 0 | R141: 0 | S141: 0 | T141: 0 | U141: 0 | V141: 0 | W141: 0 | X141: 0 | Y141: 0 | Z141: 0 | AA141: 0 | AB141: 0 | AC141: 0 | AD141: 0 | AE141: 0 | AF141: 0 | AG141: 0 | AH141: 0 | AI141: 0 | AJ141: 0
A142: 17000
L143: =IF(AND(J143<>"",K143<>""),J143*K143,"") -> 
A144: =A122+1000 -> 18000 | F144: =INDIRECT(CONCATENATE("Übersicht!C",TEXT((A144-10000)/1000,0))) -> Leer | G144: =MIN(G145:G159) ->  | H144: =MAX(H145:H159) ->  | M144: =SUMIF(A$12:A$519,A144,L$12:L$519) -> 0.0 | O144: =F144 -> Leer | P144: =SUM(P146:P163) -> 0 | Q144: =SUM(Q146:Q163) -> 0 | R144: 0 | S144: 0 | T144: 0 | U144: 0 | V144: 0 | W144: 0 | X144: 0 | Y144: 0 | Z144: 0 | AA144: 0 | AB144: 0 | AC144: 0 | AD144: 0 | AE144: 0 | AF144: 0 | AG144: 0 | AH144: 0 | AI144: 0 | AJ144: 0
A145: =A144 -> 18000 | B145: =A144+100 -> 18100 | F145: =INDIRECT(OFFSET(F145,-1,0)&"!B1") -> Studie | G145: =MIN(G146:G148) -> 00:00:00 | H145: =MAX(H146:H148) ->  | M145: =SUMIF(B$12:B$519,B145,L$12:L$519) -> 0.0
A146: =A145 -> 18000 | B146: =B145 -> 18100 | C146: =B145+1 -> 18101 | E146: PL | F146: =OFFSET(F146,-2,0)&" "&OFFSET(F146,-1,0)&" "&INDIRECT(OFFSET(F146,-2,0)&"!A4") -> Leer Studie Projektleitung | G146: =VLOOKUP(OFFSET(G146,-2,-1),Projektübersicht,3,0) -> 00:00:00 | H146: =VLOOKUP(OFFSET(H146,-2,-2),Projektübersicht,4,0) ->  | I146: ="Aus Top Down "&OFFSET(I146,-2,-3) -> Aus Top Down Leer | J146: =IF(ISNA(H146),0,1) -> 0.000 | K146: =INDIRECT("'"&OFFSET(K146,-2,-5)&"'!B4") -> 0.0 | L146: 0.0 | P146: =IF(ISNA($H146),0,zeitausschnitt($G146,$H146,$L146,P$9,P$10)) -> 0 | Q146: =IF(ISNA($H146),0,zeitausschnitt($G146,$H146,$L146,Q$9,Q$10)) -> 0 | R146: 0 | S146: 0 | T146: 0 | U146: 0 | V146: 0 | W146: 0 | X146: 0 | Y146: 0 | Z146: 0 | AA146: 0 | AB146: 0 | AC146: 0 | AD146: 0 | AE146: 0 | AF146: 0 | AG146: 0 | AH146: 0 | AI146: 0 | AJ146: 0
A147: =A146 -> 18000 | B147: =B146 -> 18100 | C147: =C146+1 -> 18102 | E147: Entwicklung | F147: =OFFSET(F147,-3,0)&" "&OFFSET(F147,-2,0)&" "&INDIRECT(OFFSET(F147,-3,0)&"!A5") -> Leer Studie Entwicklung | G147: =G146 -> 00:00:00 | H147: =H146 ->  | I147: ="Aus Top Down "&OFFSET(I147,-3,-3) -> Aus Top Down Leer | J147: =IF(ISNA(H147),0,1) -> 0.000 | K147: =INDIRECT("'"&OFFSET(K147,-3,-5)&"'!B5") -> 0.0 | L147: 0.0 | P147: =IF(ISNA($H147),0,zeitausschnitt($G147,$H147,$L147,P$9,P$10)) -> 0 | Q147: 0 | R147: 0 | S147: 0 | T147: 0 | U147: 0 | V147: 0 | W147: 0 | X147: 0 | Y147: 0 | Z147: 0 | AA147: 0 | AB147: 0 | AC147: 0 | AD147: 0 | AE147: 0 | AF147: 0 | AG147: 0 | AH147: 0 | AI147: 0 | AJ147: 0
A148: 18000 | B148: =B147 -> 18100 | C148: =C147+1 -> 18103 | E148: Test | F148: =OFFSET(F148,-4,0)&" "&OFFSET(F148,-3,0)&" "&INDIRECT(OFFSET(F148,-4,0)&"!A6") -> Leer Studie Test | G148: =G147 -> 00:00:00 | H148: =H147 ->  | I148: ="Aus Top Down "&OFFSET(I148,-4,-3) -> Aus Top Down Leer | J148: =IF(ISNA(H148),0,1) -> 0.000 | K148: =INDIRECT("'"&OFFSET(K148,-4,-5)&"'!B6") -> 0.0 | L148: 0.0 | P148: 0 | Q148: 0 | R148: 0 | S148: 0 | T148: 0 | U148: 0 | V148: 0 | W148: 0 | X148: 0 | Y148: 0 | Z148: 0 | AA148: 0 | AB148: 0 | AC148: 0 | AD148: 0 | AE148: 0 | AF148: 0 | AG148: 0 | AH148: 0 | AI148: 0 | AJ148: 0
A149: 18000
A150: 18000 | B150: =B145+100 -> 18200 | F150: =INDIRECT(OFFSET(F150,-6,0)&"!C1") -> Konzept | G150: =MIN(G151:G153) ->  | H150: =MAX(H151:H153) ->  | M150: =SUMIF(B$12:B$519,B150,L$12:L$519) -> 0.0
A151: 18000 | B151: =B150 -> 18200 | C151: =B150+1 -> 18201 | E151: PL | F151: =OFFSET(F151,-7,0)&" "&OFFSET(F151,-1,0)&" "&INDIRECT(OFFSET(F151,-7,0)&"!A4") -> Leer Konzept Projektleitung | G151: =VLOOKUP(OFFSET(G151,-7,-1),Projektübersicht,4,0) ->  | H151: =VLOOKUP(OFFSET(H151,-7,-2),Projektübersicht,5,0) ->  | I151: ="Aus Top Down "&OFFSET(I151,-7,-3) -> Aus Top Down Leer | J151: =IF(ISNA(H151),0,1) -> 0.000 | K151: =INDIRECT("'"&OFFSET(K151,-7,-5)&"'!C4") -> 0.0 | L151: 0.0 | P151: =IF(ISNA($H151),0,zeitausschnitt($G151,$H151,$L151,P$9,P$10)) -> 0 | Q151: =IF(ISNA($H151),0,zeitausschnitt($G151,$H151,$L151,Q$9,Q$10)) -> 0 | R151: 0 | S151: 0 | T151: 0 | U151: 0 | V151: 0 | W151: 0 | X151: 0 | Y151: 0 | Z151: 0 | AA151: 0 | AB151: 0 | AC151: 0 | AD151: 0 | AE151: 0 | AF151: 0 | AG151: 0 | AH151: 0 | AI151: 0 | AJ151: 0
A152: 18000 | B152: =B151 -> 18200 | C152: =C151+1 -> 18202 | E152: Entwicklung | F152: =OFFSET(F152,-8,0)&" "&OFFSET(F152,-2,0)&" "&INDIRECT(OFFSET(F152,-8,0)&"!A5") -> Leer Konzept Entwicklung | G152: =G151 ->  | H152: =H151 ->  | I152: ="Aus Top Down "&OFFSET(I152,-8,-3) -> Aus Top Down Leer | J152: =IF(ISNA(H152),0,1) -> 0.000 | K152: =INDIRECT("'"&OFFSET(K152,-8,-5)&"'!C5") -> 0.0 | L152: 0.0 | P152: =IF(ISNA($H152),0,zeitausschnitt($G152,$H152,$L152,P$9,P$10)) -> 0 | Q152: 0 | R152: 0 | S152: 0 | T152: 0 | U152: 0 | V152: 0 | W152: 0 | X152: 0 | Y152: 0 | Z152: 0 | AA152: 0 | AB152: 0 | AC152: 0 | AD152: 0 | AE152: 0 | AF152: 0 | AG152: 0 | AH152: 0 | AI152: 0 | AJ152: 0
A153: 18000 | B153: =B152 -> 18200 | C153: =C152+1 -> 18203 | E153: Test | F153: =OFFSET(F153,-9,0)&" "&OFFSET(F153,-3,0)&" "&INDIRECT(OFFSET(F153,-9,0)&"!A6") -> Leer Konzept Test | G153: =G152 ->  | H153: =H152 ->  | I153: ="Aus Top Down "&OFFSET(I153,-9,-3) -> Aus Top Down Leer | J153: =IF(ISNA(H153),0,1) -> 0.000 | K153: =INDIRECT("'"&OFFSET(K153,-9,-5)&"'!C6") -> 0.0 | L153: 0.0 | P153: 0 | Q153: 0 | R153: 0 | S153: 0 | T153: 0 | U153: 0 | V153: 0 | W153: 0 | X153: 0 | Y153: 0 | Z153: 0 | AA153: 0 | AB153: 0 | AC153: 0 | AD153: 0 | AE153: 0 | AF153: 0 | AG153: 0 | AH153: 0 | AI153: 0 | AJ153: 0
A154: 18000
A155: 18000 | B155: =B150+100 -> 18300 | F155: =INDIRECT(OFFSET(F155,-11,0)&"!D1") -> Entwicklung | G155: =MIN(G156:G158) ->  | H155: =MAX(H156:H158) ->  | M155: =SUMIF(B$12:B$519,B155,L$12:L$519) -> 0.0
A156: 18000 | B156: =B155 -> 18300 | C156: =B155+1 -> 18301 | E156: PL | F156: =OFFSET(F156,-12,0)&" "&OFFSET(F156,-1,0)&" "&INDIRECT(OFFSET(F156,-12,0)&"!A4") -> Leer Entwicklung Projektleitung | G156: =VLOOKUP(OFFSET(G156,-12,-1),Projektübersicht,5,0) ->  | H156: =VLOOKUP(OFFSET(H156,-12,-2),Projektübersicht,6,0) ->  | I156: ="Aus Top Down "&OFFSET(I156,-12,-3) -> Aus Top Down Leer | J156: =IF(ISNA(H156),0,1) -> 0.000 | K156: =INDIRECT("'"&OFFSET(K156,-12,-5)&"'!D4") -> 0.0 | L156: 0.0 | P156: =IF(ISNA($H156),0,zeitausschnitt($G156,$H156,$L156,P$9,P$10)) -> 0 | Q156: =IF(ISNA($H156),0,zeitausschnitt($G156,$H156,$L156,Q$9,Q$10)) -> 0 | R156: 0 | S156: 0 | T156: 0 | U156: 0 | V156: 0 | W156: 0 | X156: 0 | Y156: 0 | Z156: 0 | AA156: 0 | AB156: 0 | AC156: 0 | AD156: 0 | AE156: 0 | AF156: 0 | AG156: 0 | AH156: 0 | AI156: 0 | AJ156: 0
A157: 18000 | B157: =B156 -> 18300 | C157: =C156+1 -> 18302 | E157: Entwicklung | F157: =OFFSET(F157,-13,0)&" "&OFFSET(F157,-2,0)&" "&INDIRECT(OFFSET(F157,-13,0)&"!A5") -> Leer Entwicklung Entwicklung | G157: =G156 ->  | H157: =H156 ->  | I157: ="Aus Top Down "&OFFSET(I157,-13,-3) -> Aus Top Down Leer | J157: =IF(ISNA(H157),0,1) -> 0.000 | K157: =INDIRECT("'"&OFFSET(K157,-13,-5)&"'!D5") -> 0.0 | L157: 0.0 | P157: =IF(ISNA($H157),0,zeitausschnitt($G157,$H157,$L157,P$9,P$10)) -> 0 | Q157: 0 | R157: 0 | S157: 0 | T157: 0 | U157: 0 | V157: 0 | W157: 0 | X157: 0 | Y157: 0 | Z157: 0 | AA157: 0 | AB157: 0 | AC157: 0 | AD157: 0 | AE157: 0 | AF157: 0 | AG157: 0 | AH157: 0 | AI157: 0 | AJ157: 0
A158: 18000 | B158: =B157 -> 18300 | C158: =C157+1 -> 18303 | E158: Test | F158: =OFFSET(F158,-14,0)&" "&OFFSET(F158,-3,0)&" "&INDIRECT(OFFSET(F158,-14,0)&"!A6") -> Leer Entwicklung Test | G158: =G157 ->  | H158: =H157 ->  | I158: ="Aus Top Down "&OFFSET(I158,-14,-3) -> Aus Top Down Leer | J158: =IF(ISNA(H158),0,1) -> 0.000 | K158: =INDIRECT("'"&OFFSET(K158,-14,-5)&"'!D6") -> 0.0 | L158: 0.0 | P158: 0 | Q158: 0 | R158: 0 | S158: 0 | T158: 0 | U158: 0 | V158: 0 | W158: 0 | X158: 0 | Y158: 0 | Z158: 0 | AA158: 0 | AB158: 0 | AC158: 0 | AD158: 0 | AE158: 0 | AF158: 0 | AG158: 0 | AH158: 0 | AI158: 0 | AJ158: 0
A159: 18000
A160: 18000 | B160: =B155+100 -> 18400 | F160: =INDIRECT(OFFSET(F160,-16,0)&"!E1") -> Pflege | G160: =MIN(G161:G163) ->  | H160: =MAX(H161:H163) ->  | M160: =SUMIF(B$12:B$519,B160,L$12:L$519) -> 0.0
A161: 18000 | B161: =B160 -> 18400 | C161: =B160+1 -> 18401 | E161: PL | F161: =OFFSET(F161,-17,0)&" "&OFFSET(F161,-1,0)&" "&INDIRECT(OFFSET(F161,-17,0)&"!A4") -> Leer Pflege Projektleitung | G161: =VLOOKUP(OFFSET(G161,-17,-1),Projektübersicht,6,0) ->  | H161: =VLOOKUP(OFFSET(H161,-17,-2),Projektübersicht,7,0) ->  | I161: ="Aus Top Down "&OFFSET(I161,-17,-3) -> Aus Top Down Leer | J161: =IF(ISNA(H161),0,1) -> 0.000 | K161: =INDIRECT("'"&OFFSET(K161,-17,-5)&"'!E4") -> 0.0 | L161: 0.0 | P161: =IF(ISNA($H161),0,zeitausschnitt($G161,$H161,$L161,P$9,P$10)) -> 0 | Q161: =IF(ISNA($H161),0,zeitausschnitt($G161,$H161,$L161,Q$9,Q$10)) -> 0 | R161: 0 | S161: 0 | T161: 0 | U161: 0 | V161: 0 | W161: 0 | X161: 0 | Y161: 0 | Z161: 0 | AA161: 0 | AB161: 0 | AC161: 0 | AD161: 0 | AE161: 0 | AF161: 0 | AG161: 0 | AH161: 0 | AI161: 0 | AJ161: 0
A162: 18000 | B162: =B161 -> 18400 | C162: =C161+1 -> 18402 | E162: Entwicklung | F162: =OFFSET(F162,-18,0)&" "&OFFSET(F162,-2,0)&" "&INDIRECT(OFFSET(F162,-18,0)&"!A5") -> Leer Pflege Entwicklung | G162: =G161 ->  | H162: =H161 ->  | I162: ="Aus Top Down "&OFFSET(I162,-18,-3) -> Aus Top Down Leer | J162: =IF(ISNA(H162),0,1) -> 0.000 | K162: =INDIRECT("'"&OFFSET(K162,-18,-5)&"'!E5") -> 0.0 | L162: 0.0 | P162: =IF(ISNA($H162),0,zeitausschnitt($G162,$H162,$L162,P$9,P$10)) -> 0 | Q162: 0 | R162: 0 | S162: 0 | T162: 0 | U162: 0 | V162: 0 | W162: 0 | X162: 0 | Y162: 0 | Z162: 0 | AA162: 0 | AB162: 0 | AC162: 0 | AD162: 0 | AE162: 0 | AF162: 0 | AG162: 0 | AH162: 0 | AI162: 0 | AJ162: 0
A163: 18000 | B163: =B162 -> 18400 | C163: =C162+1 -> 18403 | E163: Test | F163: =OFFSET(F163,-19,0)&" "&OFFSET(F163,-3,0)&" "&INDIRECT(OFFSET(F163,-19,0)&"!A6") -> Leer Pflege Test | G163: =G162 ->  | H163: =H162 ->  | I163: ="Aus Top Down "&OFFSET(I163,-19,-3) -> Aus Top Down Leer | J163: =IF(ISNA(H163),0,1) -> 0.000 | K163: =INDIRECT("'"&OFFSET(K163,-19,-5)&"'!E6") -> 0.0 | L163: 0.0 | P163: 0 | Q163: 0 | R163: 0 | S163: 0 | T163: 0 | U163: 0 | V163: 0 | W163: 0 | X163: 0 | Y163: 0 | Z163: 0 | AA163: 0 | AB163: 0 | AC163: 0 | AD163: 0 | AE163: 0 | AF163: 0 | AG163: 0 | AH163: 0 | AI163: 0 | AJ163: 0
A164: 18000
L165: =IF(AND(J165<>"",K165<>""),J165*K165,"") -> 
A166: =A145+1000 -> 19000 | F166: =INDIRECT(CONCATENATE("Übersicht!C",TEXT((A166-10000)/1000,0))) -> Leer | G166: =MIN(G167:G181) ->  | H166: =MAX(H167:H181) ->  | M166: =SUMIF(A$12:A$519,A166,L$12:L$519) -> 0.0 | O166: =F166 -> Leer | P166: =SUM(P168:P185) -> 0 | Q166: =SUM(Q168:Q185) -> 0 | R166: 0 | S166: 0 | T166: 0 | U166: 0 | V166: 0 | W166: 0 | X166: 0 | Y166: 0 | Z166: 0 | AA166: 0 | AB166: 0 | AC166: 0 | AD166: 0 | AE166: 0 | AF166: 0 | AG166: 0 | AH166: 0 | AI166: 0 | AJ166: 0
A167: =A166 -> 19000 | B167: =A166+100 -> 19100 | F167: =INDIRECT(OFFSET(F167,-1,0)&"!B1") -> Studie | G167: =MIN(G168:G170) -> 00:00:00 | H167: =MAX(H168:H170) ->  | M167: =SUMIF(B$12:B$519,B167,L$12:L$519) -> 0.0
A168: =A167 -> 19000 | B168: =B167 -> 19100 | C168: =B167+1 -> 19101 | E168: PL | F168: =OFFSET(F168,-2,0)&" "&OFFSET(F168,-1,0)&" "&INDIRECT(OFFSET(F168,-2,0)&"!A4") -> Leer Studie Projektleitung | G168: =VLOOKUP(OFFSET(G168,-2,-1),Projektübersicht,3,0) -> 00:00:00 | H168: =VLOOKUP(OFFSET(H168,-2,-2),Projektübersicht,4,0) ->  | I168: ="Aus Top Down "&OFFSET(I168,-2,-3) -> Aus Top Down Leer | J168: =IF(ISNA(H168),0,1) -> 0.000 | K168: =INDIRECT("'"&OFFSET(K168,-2,-5)&"'!B4") -> 0.0 | L168: 0.0 | P168: =IF(ISNA($H168),0,zeitausschnitt($G168,$H168,$L168,P$9,P$10)) -> 0 | Q168: =IF(ISNA($H168),0,zeitausschnitt($G168,$H168,$L168,Q$9,Q$10)) -> 0 | R168: 0 | S168: 0 | T168: 0 | U168: 0 | V168: 0 | W168: 0 | X168: 0 | Y168: 0 | Z168: 0 | AA168: 0 | AB168: 0 | AC168: 0 | AD168: 0 | AE168: 0 | AF168: 0 | AG168: 0 | AH168: 0 | AI168: 0 | AJ168: 0
A169: =A168 -> 19000 | B169: =B168 -> 19100 | C169: =C168+1 -> 19102 | E169: Entwicklung | F169: =OFFSET(F169,-3,0)&" "&OFFSET(F169,-2,0)&" "&INDIRECT(OFFSET(F169,-3,0)&"!A5") -> Leer Studie Entwicklung | G169: =G168 -> 00:00:00 | H169: =H168 ->  | I169: ="Aus Top Down "&OFFSET(I169,-3,-3) -> Aus Top Down Leer | J169: =IF(ISNA(H169),0,1) -> 0.000 | K169: =INDIRECT("'"&OFFSET(K169,-3,-5)&"'!B5") -> 0.0 | L169: 0.0 | P169: =IF(ISNA($H169),0,zeitausschnitt($G169,$H169,$L169,P$9,P$10)) -> 0 | Q169: 0 | R169: 0 | S169: 0 | T169: 0 | U169: 0 | V169: 0 | W169: 0 | X169: 0 | Y169: 0 | Z169: 0 | AA169: 0 | AB169: 0 | AC169: 0 | AD169: 0 | AE169: 0 | AF169: 0 | AG169: 0 | AH169: 0 | AI169: 0 | AJ169: 0
A170: 19000 | B170: =B169 -> 19100 | C170: =C169+1 -> 19103 | E170: Test | F170: =OFFSET(F170,-4,0)&" "&OFFSET(F170,-3,0)&" "&INDIRECT(OFFSET(F170,-4,0)&"!A6") -> Leer Studie Test | G170: =G169 -> 00:00:00 | H170: =H169 ->  | I170: ="Aus Top Down "&OFFSET(I170,-4,-3) -> Aus Top Down Leer | J170: =IF(ISNA(H170),0,1) -> 0.000 | K170: =INDIRECT("'"&OFFSET(K170,-4,-5)&"'!B6") -> 0.0 | L170: 0.0 | P170: 0 | Q170: 0 | R170: 0 | S170: 0 | T170: 0 | U170: 0 | V170: 0 | W170: 0 | X170: 0 | Y170: 0 | Z170: 0 | AA170: 0 | AB170: 0 | AC170: 0 | AD170: 0 | AE170: 0 | AF170: 0 | AG170: 0 | AH170: 0 | AI170: 0 | AJ170: 0
A171: 19000
A172: 19000 | B172: =B167+100 -> 19200 | F172: =INDIRECT(OFFSET(F172,-6,0)&"!C1") -> Konzept | G172: =MIN(G173:G175) ->  | H172: =MAX(H173:H175) ->  | M172: =SUMIF(B$12:B$519,B172,L$12:L$519) -> 0.0
A173: 19000 | B173: =B172 -> 19200 | C173: =B172+1 -> 19201 | E173: PL | F173: =OFFSET(F173,-7,0)&" "&OFFSET(F173,-1,0)&" "&INDIRECT(OFFSET(F173,-7,0)&"!A4") -> Leer Konzept Projektleitung | G173: =VLOOKUP(OFFSET(G173,-7,-1),Projektübersicht,4,0) ->  | H173: =VLOOKUP(OFFSET(H173,-7,-2),Projektübersicht,5,0) ->  | I173: ="Aus Top Down "&OFFSET(I173,-7,-3) -> Aus Top Down Leer | J173: =IF(ISNA(H173),0,1) -> 0.000 | K173: =INDIRECT("'"&OFFSET(K173,-7,-5)&"'!C4") -> 0.0 | L173: 0.0 | P173: =IF(ISNA($H173),0,zeitausschnitt($G173,$H173,$L173,P$9,P$10)) -> 0 | Q173: =IF(ISNA($H173),0,zeitausschnitt($G173,$H173,$L173,Q$9,Q$10)) -> 0 | R173: 0 | S173: 0 | T173: 0 | U173: 0 | V173: 0 | W173: 0 | X173: 0 | Y173: 0 | Z173: 0 | AA173: 0 | AB173: 0 | AC173: 0 | AD173: 0 | AE173: 0 | AF173: 0 | AG173: 0 | AH173: 0 | AI173: 0 | AJ173: 0
A174: 19000 | B174: =B173 -> 19200 | C174: =C173+1 -> 19202 | E174: Entwicklung | F174: =OFFSET(F174,-8,0)&" "&OFFSET(F174,-2,0)&" "&INDIRECT(OFFSET(F174,-8,0)&"!A5") -> Leer Konzept Entwicklung | G174: =G173 ->  | H174: =H173 ->  | I174: ="Aus Top Down "&OFFSET(I174,-8,-3) -> Aus Top Down Leer | J174: =IF(ISNA(H174),0,1) -> 0.000 | K174: =INDIRECT("'"&OFFSET(K174,-8,-5)&"'!C5") -> 0.0 | L174: 0.0 | P174: =IF(ISNA($H174),0,zeitausschnitt($G174,$H174,$L174,P$9,P$10)) -> 0 | Q174: 0 | R174: 0 | S174: 0 | T174: 0 | U174: 0 | V174: 0 | W174: 0 | X174: 0 | Y174: 0 | Z174: 0 | AA174: 0 | AB174: 0 | AC174: 0 | AD174: 0 | AE174: 0 | AF174: 0 | AG174: 0 | AH174: 0 | AI174: 0 | AJ174: 0
A175: 19000 | B175: =B174 -> 19200 | C175: =C174+1 -> 19203 | E175: Test | F175: =OFFSET(F175,-9,0)&" "&OFFSET(F175,-3,0)&" "&INDIRECT(OFFSET(F175,-9,0)&"!A6") -> Leer Konzept Test | G175: =G174 ->  | H175: =H174 ->  | I175: ="Aus Top Down "&OFFSET(I175,-9,-3) -> Aus Top Down Leer | J175: =IF(ISNA(H175),0,1) -> 0.000 | K175: =INDIRECT("'"&OFFSET(K175,-9,-5)&"'!C6") -> 0.0 | L175: 0.0 | P175: 0 | Q175: 0 | R175: 0 | S175: 0 | T175: 0 | U175: 0 | V175: 0 | W175: 0 | X175: 0 | Y175: 0 | Z175: 0 | AA175: 0 | AB175: 0 | AC175: 0 | AD175: 0 | AE175: 0 | AF175: 0 | AG175: 0 | AH175: 0 | AI175: 0 | AJ175: 0
A176: 19000
A177: 19000 | B177: =B172+100 -> 19300 | F177: =INDIRECT(OFFSET(F177,-11,0)&"!D1") -> Entwicklung | G177: =MIN(G178:G180) ->  | H177: =MAX(H178:H180) ->  | M177: =SUMIF(B$12:B$519,B177,L$12:L$519) -> 0.0
A178: 19000 | B178: =B177 -> 19300 | C178: =B177+1 -> 19301 | E178: PL | F178: =OFFSET(F178,-12,0)&" "&OFFSET(F178,-1,0)&" "&INDIRECT(OFFSET(F178,-12,0)&"!A4") -> Leer Entwicklung Projektleitung | G178: =VLOOKUP(OFFSET(G178,-12,-1),Projektübersicht,5,0) ->  | H178: =VLOOKUP(OFFSET(H178,-12,-2),Projektübersicht,6,0) ->  | I178: ="Aus Top Down "&OFFSET(I178,-12,-3) -> Aus Top Down Leer | J178: =IF(ISNA(H178),0,1) -> 0.000 | K178: =INDIRECT("'"&OFFSET(K178,-12,-5)&"'!D4") -> 0.0 | L178: 0.0 | P178: =IF(ISNA($H178),0,zeitausschnitt($G178,$H178,$L178,P$9,P$10)) -> 0 | Q178: =IF(ISNA($H178),0,zeitausschnitt($G178,$H178,$L178,Q$9,Q$10)) -> 0 | R178: 0 | S178: 0 | T178: 0 | U178: 0 | V178: 0 | W178: 0 | X178: 0 | Y178: 0 | Z178: 0 | AA178: 0 | AB178: 0 | AC178: 0 | AD178: 0 | AE178: 0 | AF178: 0 | AG178: 0 | AH178: 0 | AI178: 0 | AJ178: 0
A179: 19000 | B179: =B178 -> 19300 | C179: =C178+1 -> 19302 | E179: Entwicklung | F179: =OFFSET(F179,-13,0)&" "&OFFSET(F179,-2,0)&" "&INDIRECT(OFFSET(F179,-13,0)&"!A5") -> Leer Entwicklung Entwicklung | G179: =G178 ->  | H179: =H178 ->  | I179: ="Aus Top Down "&OFFSET(I179,-13,-3) -> Aus Top Down Leer | J179: =IF(ISNA(H179),0,1) -> 0.000 | K179: =INDIRECT("'"&OFFSET(K179,-13,-5)&"'!D5") -> 0.0 | L179: 0.0 | P179: =IF(ISNA($H179),0,zeitausschnitt($G179,$H179,$L179,P$9,P$10)) -> 0 | Q179: 0 | R179: 0 | S179: 0 | T179: 0 | U179: 0 | V179: 0 | W179: 0 | X179: 0 | Y179: 0 | Z179: 0 | AA179: 0 | AB179: 0 | AC179: 0 | AD179: 0 | AE179: 0 | AF179: 0 | AG179: 0 | AH179: 0 | AI179: 0 | AJ179: 0
A180: 19000 | B180: =B179 -> 19300 | C180: =C179+1 -> 19303 | E180: Test | F180: =OFFSET(F180,-14,0)&" "&OFFSET(F180,-3,0)&" "&INDIRECT(OFFSET(F180,-14,0)&"!A6") -> Leer Entwicklung Test | G180: =G179 ->  | H180: =H179 ->  | I180: ="Aus Top Down "&OFFSET(I180,-14,-3) -> Aus Top Down Leer | J180: =IF(ISNA(H180),0,1) -> 0.000 | K180: =INDIRECT("'"&OFFSET(K180,-14,-5)&"'!D6") -> 0.0 | L180: 0.0 | P180: 0 | Q180: 0 | R180: 0 | S180: 0 | T180: 0 | U180: 0 | V180: 0 | W180: 0 | X180: 0 | Y180: 0 | Z180: 0 | AA180: 0 | AB180: 0 | AC180: 0 | AD180: 0 | AE180: 0 | AF180: 0 | AG180: 0 | AH180: 0 | AI180: 0 | AJ180: 0
A181: 19000
A182: 19000 | B182: =B177+100 -> 19400 | F182: =INDIRECT(OFFSET(F182,-16,0)&"!E1") -> Pflege | G182: =MIN(G183:G185) ->  | H182: =MAX(H183:H185) ->  | M182: =SUMIF(B$12:B$519,B182,L$12:L$519) -> 0.0
A183: 19000 | B183: =B182 -> 19400 | C183: =B182+1 -> 19401 | E183: PL | F183: =OFFSET(F183,-17,0)&" "&OFFSET(F183,-1,0)&" "&INDIRECT(OFFSET(F183,-17,0)&"!A4") -> Leer Pflege Projektleitung | G183: =VLOOKUP(OFFSET(G183,-17,-1),Projektübersicht,6,0) ->  | H183: =VLOOKUP(OFFSET(H183,-17,-2),Projektübersicht,7,0) ->  | I183: ="Aus Top Down "&OFFSET(I183,-17,-3) -> Aus Top Down Leer | J183: =IF(ISNA(H183),0,1) -> 0.000 | K183: =INDIRECT("'"&OFFSET(K183,-17,-5)&"'!E4") -> 0.0 | L183: 0.0 | P183: =IF(ISNA($H183),0,zeitausschnitt($G183,$H183,$L183,P$9,P$10)) -> 0 | Q183: =IF(ISNA($H183),0,zeitausschnitt($G183,$H183,$L183,Q$9,Q$10)) -> 0 | R183: 0 | S183: 0 | T183: 0 | U183: 0 | V183: 0 | W183: 0 | X183: 0 | Y183: 0 | Z183: 0 | AA183: 0 | AB183: 0 | AC183: 0 | AD183: 0 | AE183: 0 | AF183: 0 | AG183: 0 | AH183: 0 | AI183: 0 | AJ183: 0
A184: 19000 | B184: =B183 -> 19400 | C184: =C183+1 -> 19402 | E184: Entwicklung | F184: =OFFSET(F184,-18,0)&" "&OFFSET(F184,-2,0)&" "&INDIRECT(OFFSET(F184,-18,0)&"!A5") -> Leer Pflege Entwicklung | G184: =G183 ->  | H184: =H183 ->  | I184: ="Aus Top Down "&OFFSET(I184,-18,-3) -> Aus Top Down Leer | J184: =IF(ISNA(H184),0,1) -> 0.000 | K184: =INDIRECT("'"&OFFSET(K184,-18,-5)&"'!E5") -> 0.0 | L184: 0.0 | P184: =IF(ISNA($H184),0,zeitausschnitt($G184,$H184,$L184,P$9,P$10)) -> 0 | Q184: 0 | R184: 0 | S184: 0 | T184: 0 | U184: 0 | V184: 0 | W184: 0 | X184: 0 | Y184: 0 | Z184: 0 | AA184: 0 | AB184: 0 | AC184: 0 | AD184: 0 | AE184: 0 | AF184: 0 | AG184: 0 | AH184: 0 | AI184: 0 | AJ184: 0
A185: 19000 | B185: =B184 -> 19400 | C185: =C184+1 -> 19403 | E185: Test | F185: =OFFSET(F185,-19,0)&" "&OFFSET(F185,-3,0)&" "&INDIRECT(OFFSET(F185,-19,0)&"!A6") -> Leer Pflege Test | G185: =G184 ->  | H185: =H184 ->  | I185: ="Aus Top Down "&OFFSET(I185,-19,-3) -> Aus Top Down Leer | J185: =IF(ISNA(H185),0,1) -> 0.000 | K185: =INDIRECT("'"&OFFSET(K185,-19,-5)&"'!E6") -> 0.0 | L185: 0.0 | P185: 0 | Q185: 0 | R185: 0 | S185: 0 | T185: 0 | U185: 0 | V185: 0 | W185: 0 | X185: 0 | Y185: 0 | Z185: 0 | AA185: 0 | AB185: 0 | AC185: 0 | AD185: 0 | AE185: 0 | AF185: 0 | AG185: 0 | AH185: 0 | AI185: 0 | AJ185: 0
A186: 19000
A188: =A166+1000 -> 20000 | F188: =INDIRECT(CONCATENATE("Übersicht!C",TEXT((A188-10000)/1000,0))) -> Leer | G188: =MIN(G189:G203) ->  | H188: =MAX(H189:H203) ->  | M188: =SUMIF(A$12:A$519,A188,L$12:L$519) -> 0.0 | O188: =F188 -> Leer | P188: =SUM(P190:P207) -> 0 | Q188: =SUM(Q190:Q207) -> 0 | R188: 0 | S188: 0 | T188: 0 | U188: 0 | V188: 0 | W188: 0 | X188: 0 | Y188: 0 | Z188: 0 | AA188: 0 | AB188: 0 | AC188: 0 | AD188: 0 | AE188: 0 | AF188: 0 | AG188: 0 | AH188: 0 | AI188: 0 | AJ188: 0
A189: =A188 -> 20000 | B189: =A188+100 -> 20100 | F189: =INDIRECT(OFFSET(F189,-1,0)&"!B1") -> Studie | G189: =MIN(G190:G192) -> 00:00:00 | H189: =MAX(H190:H192) ->  | M189: =SUMIF(B$12:B$519,B189,L$12:L$519) -> 0.0
A190: =A189 -> 20000 | B190: =B189 -> 20100 | C190: =B189+1 -> 20101 | E190: PL | F190: =OFFSET(F190,-2,0)&" "&OFFSET(F190,-1,0)&" "&INDIRECT(OFFSET(F190,-2,0)&"!A4") -> Leer Studie Projektleitung | G190: =VLOOKUP(OFFSET(G190,-2,-1),Projektübersicht,3,0) -> 00:00:00 | H190: =VLOOKUP(OFFSET(H190,-2,-2),Projektübersicht,4,0) ->  | I190: ="Aus Top Down "&OFFSET(I190,-2,-3) -> Aus Top Down Leer | J190: =IF(ISNA(H190),0,1) -> 0.000 | K190: =INDIRECT("'"&OFFSET(K190,-2,-5)&"'!B4") -> 0.0 | L190: 0.0 | P190: =IF(ISNA($H190),0,zeitausschnitt($G190,$H190,$L190,P$9,P$10)) -> 0 | Q190: =IF(ISNA($H190),0,zeitausschnitt($G190,$H190,$L190,Q$9,Q$10)) -> 0 | R190: 0 | S190: 0 | T190: 0 | U190: 0 | V190: 0 | W190: 0 | X190: 0 | Y190: 0 | Z190: 0 | AA190: 0 | AB190: 0 | AC190: 0 | AD190: 0 | AE190: 0 | AF190: 0 | AG190: 0 | AH190: 0 | AI190: 0 | AJ190: 0
A191: =A190 -> 20000 | B191: =B190 -> 20100 | C191: =C190+1 -> 20102 | E191: Entwicklung | F191: =OFFSET(F191,-3,0)&" "&OFFSET(F191,-2,0)&" "&INDIRECT(OFFSET(F191,-3,0)&"!A5") -> Leer Studie Entwicklung | G191: =G190 -> 00:00:00 | H191: =H190 ->  | I191: ="Aus Top Down "&OFFSET(I191,-3,-3) -> Aus Top Down Leer | J191: =IF(ISNA(H191),0,1) -> 0.000 | K191: =INDIRECT("'"&OFFSET(K191,-3,-5)&"'!B5") -> 0.0 | L191: 0.0 | P191: =IF(ISNA($H191),0,zeitausschnitt($G191,$H191,$L191,P$9,P$10)) -> 0 | Q191: 0 | R191: 0 | S191: 0 | T191: 0 | U191: 0 | V191: 0 | W191: 0 | X191: 0 | Y191: 0 | Z191: 0 | AA191: 0 | AB191: 0 | AC191: 0 | AD191: 0 | AE191: 0 | AF191: 0 | AG191: 0 | AH191: 0 | AI191: 0 | AJ191: 0
A192: 20000 | B192: =B191 -> 20100 | C192: =C191+1 -> 20103 | E192: Test | F192: =OFFSET(F192,-4,0)&" "&OFFSET(F192,-3,0)&" "&INDIRECT(OFFSET(F192,-4,0)&"!A6") -> Leer Studie Test | G192: =G191 -> 00:00:00 | H192: =H191 ->  | I192: ="Aus Top Down "&OFFSET(I192,-4,-3) -> Aus Top Down Leer | J192: =IF(ISNA(H192),0,1) -> 0.000 | K192: =INDIRECT("'"&OFFSET(K192,-4,-5)&"'!B6") -> 0.0 | L192: 0.0 | P192: 0 | Q192: 0 | R192: 0 | S192: 0 | T192: 0 | U192: 0 | V192: 0 | W192: 0 | X192: 0 | Y192: 0 | Z192: 0 | AA192: 0 | AB192: 0 | AC192: 0 | AD192: 0 | AE192: 0 | AF192: 0 | AG192: 0 | AH192: 0 | AI192: 0 | AJ192: 0
A193: 20000
A194: 20000 | B194: =B189+100 -> 20200 | F194: =INDIRECT(OFFSET(F194,-6,0)&"!C1") -> Konzept | G194: =MIN(G195:G197) ->  | H194: =MAX(H195:H197) ->  | M194: =SUMIF(B$12:B$519,B194,L$12:L$519) -> 0.0
A195: 20000 | B195: =B194 -> 20200 | C195: =B194+1 -> 20201 | E195: PL | F195: =OFFSET(F195,-7,0)&" "&OFFSET(F195,-1,0)&" "&INDIRECT(OFFSET(F195,-7,0)&"!A4") -> Leer Konzept Projektleitung | G195: =VLOOKUP(OFFSET(G195,-7,-1),Projektübersicht,4,0) ->  | H195: =VLOOKUP(OFFSET(H195,-7,-2),Projektübersicht,5,0) ->  | I195: ="Aus Top Down "&OFFSET(I195,-7,-3) -> Aus Top Down Leer | J195: =IF(ISNA(H195),0,1) -> 0.000 | K195: =INDIRECT("'"&OFFSET(K195,-7,-5)&"'!C4") -> 0.0 | L195: 0.0 | P195: =IF(ISNA($H195),0,zeitausschnitt($G195,$H195,$L195,P$9,P$10)) -> 0 | Q195: =IF(ISNA($H195),0,zeitausschnitt($G195,$H195,$L195,Q$9,Q$10)) -> 0 | R195: 0 | S195: 0 | T195: 0 | U195: 0 | V195: 0 | W195: 0 | X195: 0 | Y195: 0 | Z195: 0 | AA195: 0 | AB195: 0 | AC195: 0 | AD195: 0 | AE195: 0 | AF195: 0 | AG195: 0 | AH195: 0 | AI195: 0 | AJ195: 0
A196: 20000 | B196: =B195 -> 20200 | C196: =C195+1 -> 20202 | E196: Entwicklung | F196: =OFFSET(F196,-8,0)&" "&OFFSET(F196,-2,0)&" "&INDIRECT(OFFSET(F196,-8,0)&"!A5") -> Leer Konzept Entwicklung | G196: =G195 ->  | H196: =H195 ->  | I196: ="Aus Top Down "&OFFSET(I196,-8,-3) -> Aus Top Down Leer | J196: =IF(ISNA(H196),0,1) -> 0.000 | K196: =INDIRECT("'"&OFFSET(K196,-8,-5)&"'!C5") -> 0.0 | L196: 0.0 | P196: =IF(ISNA($H196),0,zeitausschnitt($G196,$H196,$L196,P$9,P$10)) -> 0 | Q196: 0 | R196: 0 | S196: 0 | T196: 0 | U196: 0 | V196: 0 | W196: 0 | X196: 0 | Y196: 0 | Z196: 0 | AA196: 0 | AB196: 0 | AC196: 0 | AD196: 0 | AE196: 0 | AF196: 0 | AG196: 0 | AH196: 0 | AI196: 0 | AJ196: 0
A197: 20000 | B197: =B196 -> 20200 | C197: =C196+1 -> 20203 | E197: Test | F197: =OFFSET(F197,-9,0)&" "&OFFSET(F197,-3,0)&" "&INDIRECT(OFFSET(F197,-9,0)&"!A6") -> Leer Konzept Test | G197: =G196 ->  | H197: =H196 ->  | I197: ="Aus Top Down "&OFFSET(I197,-9,-3) -> Aus Top Down Leer | J197: =IF(ISNA(H197),0,1) -> 0.000 | K197: =INDIRECT("'"&OFFSET(K197,-9,-5)&"'!C6") -> 0.0 | L197: 0.0 | P197: 0 | Q197: 0 | R197: 0 | S197: 0 | T197: 0 | U197: 0 | V197: 0 | W197: 0 | X197: 0 | Y197: 0 | Z197: 0 | AA197: 0 | AB197: 0 | AC197: 0 | AD197: 0 | AE197: 0 | AF197: 0 | AG197: 0 | AH197: 0 | AI197: 0 | AJ197: 0
A198: 20000
A199: 20000 | B199: =B194+100 -> 20300 | F199: =INDIRECT(OFFSET(F199,-11,0)&"!D1") -> Entwicklung | G199: =MIN(G200:G202) ->  | H199: =MAX(H200:H202) ->  | M199: =SUMIF(B$12:B$519,B199,L$12:L$519) -> 0.0
A200: 20000 | B200: =B199 -> 20300 | C200: =B199+1 -> 20301 | E200: PL | F200: =OFFSET(F200,-12,0)&" "&OFFSET(F200,-1,0)&" "&INDIRECT(OFFSET(F200,-12,0)&"!A4") -> Leer Entwicklung Projektleitung | G200: =VLOOKUP(OFFSET(G200,-12,-1),Projektübersicht,5,0) ->  | H200: =VLOOKUP(OFFSET(H200,-12,-2),Projektübersicht,6,0) ->  | I200: ="Aus Top Down "&OFFSET(I200,-12,-3) -> Aus Top Down Leer | J200: =IF(ISNA(H200),0,1) -> 0.000 | K200: =INDIRECT("'"&OFFSET(K200,-12,-5)&"'!D4") -> 0.0 | L200: 0.0 | P200: =IF(ISNA($H200),0,zeitausschnitt($G200,$H200,$L200,P$9,P$10)) -> 0 | Q200: =IF(ISNA($H200),0,zeitausschnitt($G200,$H200,$L200,Q$9,Q$10)) -> 0 | R200: 0 | S200: 0 | T200: 0 | U200: 0 | V200: 0 | W200: 0 | X200: 0 | Y200: 0 | Z200: 0 | AA200: 0 | AB200: 0 | AC200: 0 | AD200: 0 | AE200: 0 | AF200: 0 | AG200: 0 | AH200: 0 | AI200: 0 | AJ200: 0
A201: 20000 | B201: =B200 -> 20300 | C201: =C200+1 -> 20302 | E201: Entwicklung | F201: =OFFSET(F201,-13,0)&" "&OFFSET(F201,-2,0)&" "&INDIRECT(OFFSET(F201,-13,0)&"!A5") -> Leer Entwicklung Entwicklung | G201: =G200 ->  | H201: =H200 ->  | I201: ="Aus Top Down "&OFFSET(I201,-13,-3) -> Aus Top Down Leer | J201: =IF(ISNA(H201),0,1) -> 0.000 | K201: =INDIRECT("'"&OFFSET(K201,-13,-5)&"'!D5") -> 0.0 | L201: 0.0 | P201: =IF(ISNA($H201),0,zeitausschnitt($G201,$H201,$L201,P$9,P$10)) -> 0 | Q201: 0 | R201: 0 | S201: 0 | T201: 0 | U201: 0 | V201: 0 | W201: 0 | X201: 0 | Y201: 0 | Z201: 0 | AA201: 0 | AB201: 0 | AC201: 0 | AD201: 0 | AE201: 0 | AF201: 0 | AG201: 0 | AH201: 0 | AI201: 0 | AJ201: 0
A202: 20000 | B202: =B201 -> 20300 | C202: =C201+1 -> 20303 | E202: Test | F202: =OFFSET(F202,-14,0)&" "&OFFSET(F202,-3,0)&" "&INDIRECT(OFFSET(F202,-14,0)&"!A6") -> Leer Entwicklung Test | G202: =G201 ->  | H202: =H201 ->  | I202: ="Aus Top Down "&OFFSET(I202,-14,-3) -> Aus Top Down Leer | J202: =IF(ISNA(H202),0,1) -> 0.000 | K202: =INDIRECT("'"&OFFSET(K202,-14,-5)&"'!D6") -> 0.0 | L202: 0.0 | P202: 0 | Q202: 0 | R202: 0 | S202: 0 | T202: 0 | U202: 0 | V202: 0 | W202: 0 | X202: 0 | Y202: 0 | Z202: 0 | AA202: 0 | AB202: 0 | AC202: 0 | AD202: 0 | AE202: 0 | AF202: 0 | AG202: 0 | AH202: 0 | AI202: 0 | AJ202: 0
A203: 20000
A204: 20000 | B204: =B199+100 -> 20400 | F204: =INDIRECT(OFFSET(F204,-16,0)&"!E1") -> Pflege | G204: =MIN(G205:G207) ->  | H204: =MAX(H205:H207) ->  | M204: =SUMIF(B$12:B$519,B204,L$12:L$519) -> 0.0
A205: 20000 | B205: =B204 -> 20400 | C205: =B204+1 -> 20401 | E205: PL | F205: =OFFSET(F205,-17,0)&" "&OFFSET(F205,-1,0)&" "&INDIRECT(OFFSET(F205,-17,0)&"!A4") -> Leer Pflege Projektleitung | G205: =VLOOKUP(OFFSET(G205,-17,-1),Projektübersicht,6,0) ->  | H205: =VLOOKUP(OFFSET(H205,-17,-2),Projektübersicht,7,0) ->  | I205: ="Aus Top Down "&OFFSET(I205,-17,-3) -> Aus Top Down Leer | J205: =IF(ISNA(H205),0,1) -> 0.000 | K205: =INDIRECT("'"&OFFSET(K205,-17,-5)&"'!E4") -> 0.0 | L205: 0.0 | P205: =IF(ISNA($H205),0,zeitausschnitt($G205,$H205,$L205,P$9,P$10)) -> 0 | Q205: =IF(ISNA($H205),0,zeitausschnitt($G205,$H205,$L205,Q$9,Q$10)) -> 0 | R205: 0 | S205: 0 | T205: 0 | U205: 0 | V205: 0 | W205: 0 | X205: 0 | Y205: 0 | Z205: 0 | AA205: 0 | AB205: 0 | AC205: 0 | AD205: 0 | AE205: 0 | AF205: 0 | AG205: 0 | AH205: 0 | AI205: 0 | AJ205: 0
... 373 more rows

Sheet KPI
A2: 2013-01-01 | B2: =A2+7 -> 2013-01-08 | C2: 2013-01-15 | D2: 2013-01-22 | E2: 2013-01-29 | F2: 2013-02-05 | G2: 2013-02-12 | H2: 2013-02-19 | I2: 2013-02-26 | J2: 2013-03-05 | K2: 2013-03-12 | L2: 2013-03-19 | M2: 2013-03-26 | N2: 2013-04-02 | O2: 2013-04-09 | P2: 2013-04-16 | Q2: 2013-04-23 | R2: 2013-04-30 | S2: 2013-05-07 | T2: 2013-05-14 | U2: 2013-05-21 | V2: 2013-05-28 | W2: 2013-06-04 | X2: 2013-06-11 | Y2: 2013-06-18 | Z2: 2013-06-25 | AA2: 2013-07-02 | AB2: 2013-07-09 | AC2: 2013-07-16 | AD2: 2013-07-23 | AE2: 2013-07-30 | AF2: 2013-08-06 | AG2: 2013-08-13 | AH2: =AG2+7 -> 2013-08-20 | AI2: 2013-08-27 | AJ2: 2013-09-03 | AK2: 2013-09-10 | AL2: 2013-09-17 | AM2: 2013-09-24 | AN2: 2013-10-01 | AO2: 2013-10-08 | AP2: 2013-10-15 | AQ2: 2013-10-22 | AR2: 2013-10-29 | AS2: 2013-11-05 | AT2: 2013-11-12 | AU2: 2013-11-19 | AV2: 2013-11-26 | AW2: 2013-12-03 | AX2: 2013-12-10 | AY2: 2013-12-17 | AZ2: 2013-12-24 | BA2: =AZ2+7 -> 2013-12-31 | BB2: 2014-01-07 | BC2: 2014-01-14 | BD2: 2014-01-21 | BE2: 2014-01-28 | BF2: 2014-02-04 | BG2: 2014-02-11 | BH2: 2014-02-18 | BI2: 2014-02-25 | BJ2: 2014-03-04 | BK2: 2014-03-11 | BL2: 2014-03-18 | BM2: 2014-03-25 | BN2: 2014-04-01 | BO2: 2014-04-08 | BP2: 2014-04-15 | BQ2: 2014-04-22 | BR2: 2014-04-29 | BS2: 2014-05-06 | BT2: 2014-05-13 | BU2: =BT2+7 -> 2014-05-20 | BV2: 2014-05-27 | BW2: 2014-06-03 | BX2: 2014-06-10 | BY2: 2014-06-17 | BZ2: 2014-06-24 | CA2: 2014-07-01 | CB2: 2014-07-08 | CC2: 2014-07-15 | CD2: 2014-07-22 | CE2: 2014-07-29 | CF2: 2014-08-05 | CG2: 2014-08-12 | CH2: 2014-08-19 | CI2: 2014-08-26 | CJ2: 2014-09-02 | CK2: 2014-09-09 | CL2: 2014-09-16 | CM2: 2014-09-23 | CN2: 2014-09-30 | CO2: 2014-10-07 | CP2: 2014-10-14 | CQ2: 2014-10-21 | CR2: 2014-10-28 | CS2: 2014-11-04 | CT2: 2014-11-11 | CU2: 2014-11-18 | CV2: 2014-11-25 | CW2: 2014-12-02 | CX2: 2014-12-09 | CY2: 2014-12-16 | CZ2: 2014-12-23 | DA2: 2014-12-30
A3: =SUMIF(Arbeitsplan!$G12:$G520,"<="&A2,Arbeitsplan!$L12:$L520) -> 0 | B3: =SUMIF(Arbeitsplan!$G12:$G520,"<="&B2,Arbeitsplan!$L12:$L520) -> 0 | C3: =SUMIF(Arbeitsplan!$G12:$G520,"<="&C2,Arbeitsplan!$L12:$L520) -> 0 | D3: =SUMIF(Arbeitsplan!$G12:$G520,"<="&D2,Arbeitsplan!$L12:$L520) -> 0 | E3: =SUMIF(Arbeitsplan!$G12:$G520,"<="&E2,Arbeitsplan!$L12:$L520) -> 0 | F3: =SUMIF(Arbeitsplan!$G12:$G520,"<="&F2,Arbeitsplan!$L12:$L520) -> 0 | G3: =SUMIF(Arbeitsplan!$G12:$G520,"<="&G2,Arbeitsplan!$L12:$L520) -> 0 | H3: =SUMIF(Arbeitsplan!$G12:$G520,"<="&H2,Arbeitsplan!$L12:$L520) -> 0 | I3: =SUMIF(Arbeitsplan!$G12:$G520,"<="&I2,Arbeitsplan!$L12:$L520) -> 0 | J3: =SUMIF(Arbeitsplan!$G12:$G520,"<="&J2,Arbeitsplan!$L12:$L520) -> 0 | K3: =SUMIF(Arbeitsplan!$G12:$G520,"<="&K2,Arbeitsplan!$L12:$L520) -> 0 | L3: =SUMIF(Arbeitsplan!$G12:$G520,"<="&L2,Arbeitsplan!$L12:$L520) -> 0 | M3: =SUMIF(Arbeitsplan!$G12:$G520,"<="&M2,Arbeitsplan!$L12:$L520) -> 0 | N3: =SUMIF(Arbeitsplan!$G12:$G520,"<="&N2,Arbeitsplan!$L12:$L520) -> 0 | O3: =SUMIF(Arbeitsplan!$G12:$G520,"<="&O2,Arbeitsplan!$L12:$L520) -> 0 | P3: =SUMIF(Arbeitsplan!$G12:$G520,"<="&P2,Arbeitsplan!$L12:$L520) -> 0 | Q3: =SUMIF(Arbeitsplan!$G12:$G520,"<="&Q2,Arbeitsplan!$L12:$L520) -> 0 | R3: =SUMIF(Arbeitsplan!$G12:$G520,"<="&R2,Arbeitsplan!$L12:$L520) -> 0 | S3: =SUMIF(Arbeitsplan!$G12:$G520,"<="&S2,Arbeitsplan!$L12:$L520) -> 0 | T3: =SUMIF(Arbeitsplan!$G12:$G520,"<="&T2,Arbeitsplan!$L12:$L520) -> 0 | U3: =SUMIF(Arbeitsplan!$G12:$G520,"<="&U2,Arbeitsplan!$L12:$L520) -> 0 | V3: =SUMIF(Arbeitsplan!$G12:$G520,"<="&V2,Arbeitsplan!$L12:$L520) -> 0 | W3: =SUMIF(Arbeitsplan!$G12:$G520,"<="&W2,Arbeitsplan!$L12:$L520) -> 0 | X3: =SUMIF(Arbeitsplan!$G12:$G520,"<="&X2,Arbeitsplan!$L12:$L520) -> 0 | Y3: =SUMIF(Arbeitsplan!$G12:$G520,"<="&Y2,Arbeitsplan!$L12:$L520) -> 0 | Z3: =SUMIF(Arbeitsplan!$G12:$G520,"<="&Z2,Arbeitsplan!$L12:$L520) -> 0 | AA3: =SUMIF(Arbeitsplan!$G12:$G520,"<="&AA2,Arbeitsplan!$L12:$L520) -> 90 | AB3: =SUMIF(Arbeitsplan!$G12:$G520,"<="&AB2,Arbeitsplan!$L12:$L520) -> 90 | AC3: =SUMIF(Arbeitsplan!$G12:$G520,"<="&AC2,Arbeitsplan!$L12:$L520) -> 90 | AD3: =SUMIF(Arbeitsplan!$G12:$G520,"<="&AD2,Arbeitsplan!$L12:$L520) -> 90 | AE3: =SUMIF(Arbeitsplan!$G12:$G520,"<="&AE2,Arbeitsplan!$L12:$L520) -> 90 | AF3: =SUMIF(Arbeitsplan!$G12:$G520,"<="&AF2,Arbeitsplan!$L12:$L520) -> 180 | AG3: =SUMIF(Arbeitsplan!$G12:$G520,"<="&AG2,Arbeitsplan!$L12:$L520) -> 180 | AH3: =SUMIF(Arbeitsplan!$G12:$G520,"<="&AH2,Arbeitsplan!$L12:$L520) -> 180 | AI3: =SUMIF(Arbeitsplan!$G12:$G520,"<="&AI2,Arbeitsplan!$L12:$L520) -> 180 | AJ3: =SUMIF(Arbeitsplan!$G12:$G520,"<="&AJ2,Arbeitsplan!$L12:$L520) -> 360 | AK3: =SUMIF(Arbeitsplan!$G12:$G520,"<="&AK2,Arbeitsplan!$L12:$L520) -> 360 | AL3: =SUMIF(Arbeitsplan!$G12:$G520,"<="&AL2,Arbeitsplan!$L12:$L520) -> 360 | AM3: =SUMIF(Arbeitsplan!$G12:$G520,"<="&AM2,Arbeitsplan!$L12:$L520) -> 360 | AN3: =SUMIF(Arbeitsplan!$G12:$G520,"<="&AN2,Arbeitsplan!$L12:$L520) -> 360 | AO3: =SUMIF(Arbeitsplan!$G12:$G520,"<="&AO2,Arbeitsplan!$L12:$L520) -> 450 | AP3: =SUMIF(Arbeitsplan!$G12:$G520,"<="&AP2,Arbeitsplan!$L12:$L520) -> 450 | AQ3: =SUMIF(Arbeitsplan!$G12:$G520,"<="&AQ2,Arbeitsplan!$L12:$L520) -> 450 | AR3: =SUMIF(Arbeitsplan!$G12:$G520,"<="&AR2,Arbeitsplan!$L12:$L520) -> 540 | AS3: =SUMIF(Arbeitsplan!$G12:$G520,"<="&AS2,Arbeitsplan!$L12:$L520) -> 540 | AT3: =SUMIF(Arbeitsplan!$G12:$G520,"<="&AT2,Arbeitsplan!$L12:$L520) -> 540 | AU3: =SUMIF(Arbeitsplan!$G12:$G520,"<="&AU2,Arbeitsplan!$L12:$L520) -> 630 | AV3: =SUMIF(Arbeitsplan!$G12:$G520,"<="&AV2,Arbeitsplan!$L12:$L520) -> 630 | AW3: =SUMIF(Arbeitsplan!$G12:$G520,"<="&AW2,Arbeitsplan!$L12:$L520) -> 630 | AX3: =SUMIF(Arbeitsplan!$G12:$G520,"<="&AX2,Arbeitsplan!$L12:$L520) -> 630 | AY3: =SUMIF(Arbeitsplan!$G12:$G520,"<="&AY2,Arbeitsplan!$L12:$L520) -> 720 | AZ3: =SUMIF(Arbeitsplan!$G12:$G520,"<="&AZ2,Arbeitsplan!$L12:$L520) -> 720 | BA3: =SUMIF(Arbeitsplan!$G12:$G520,"<="&BA2,Arbeitsplan!$L12:$L520) -> 810 | BB3: =SUMIF(Arbeitsplan!$G12:$G520,"<="&BB2,Arbeitsplan!$L12:$L520) -> 810 | BC3: =SUMIF(Arbeitsplan!$G12:$G520,"<="&BC2,Arbeitsplan!$L12:$L520) -> 810 | BD3: =SUMIF(Arbeitsplan!$G12:$G520,"<="&BD2,Arbeitsplan!$L12:$L520) -> 810 | BE3: =SUMIF(Arbeitsplan!$G12:$G520,"<="&BE2,Arbeitsplan!$L12:$L520) -> 810 | BF3: =SUMIF(Arbeitsplan!$G12:$G520,"<="&BF2,Arbeitsplan!$L12:$L520) -> 900 | BG3: =SUMIF(Arbeitsplan!$G12:$G520,"<="&BG2,Arbeitsplan!$L12:$L520) -> 900 | BH3: =SUMIF(Arbeitsplan!$G12:$G520,"<="&BH2,Arbeitsplan!$L12:$L520) -> 900 | BI3: =SUMIF(Arbeitsplan!$G12:$G520,"<="&BI2,Arbeitsplan!$L12:$L520) -> 990 | BJ3: =SUMIF(Arbeitsplan!$G12:$G520,"<="&BJ2,Arbeitsplan!$L12:$L520) -> 990 | BK3: =SUMIF(Arbeitsplan!$G12:$G520,"<="&BK2,Arbeitsplan!$L12:$L520) -> 990 | BL3: =SUMIF(Arbeitsplan!$G12:$G520,"<="&BL2,Arbeitsplan!$L12:$L520) -> 990 | BM3: =SUMIF(Arbeitsplan!$G12:$G520,"<="&BM2,Arbeitsplan!$L12:$L520) -> 990 | BN3: =SUMIF(Arbeitsplan!$G12:$G520,"<="&BN2,Arbeitsplan!$L12:$L520) -> 990 | BO3: =SUMIF(Arbeitsplan!$G12:$G520,"<="&BO2,Arbeitsplan!$L12:$L520) -> 990 | BP3: =SUMIF(Arbeitsplan!$G12:$G520,"<="&BP2,Arbeitsplan!$L12:$L520) -> 1080 | BQ3: =SUMIF(Arbeitsplan!$G12:$G520,"<="&BQ2,Arbeitsplan!$L12:$L520) -> 1080 | BR3: =SUMIF(Arbeitsplan!$G12:$G520,"<="&BR2,Arbeitsplan!$L12:$L520) -> 1080 | BS3: =SUMIF(Arbeitsplan!$G12:$G520,"<="&BS2,Arbeitsplan!$L12:$L520) -> 1080 | BT3: =SUMIF(Arbeitsplan!$G12:$G520,"<="&BT2,Arbeitsplan!$L12:$L520) -> 1080 | BU3: =SUMIF(Arbeitsplan!$G12:$G520,"<="&BU2,Arbeitsplan!$L12:$L520) -> 1080 | BV3: =SUMIF(Arbeitsplan!$G12:$G520,"<="&BV2,Arbeitsplan!$L12:$L520) -> 1080 | BW3: =SUMIF(Arbeitsplan!$G12:$G520,"<="&BW2,Arbeitsplan!$L12:$L520) -> 1080 | BX3: =SUMIF(Arbeitsplan!$G12:$G520,"<="&BX2,Arbeitsplan!$L12:$L520) -> 1080 | BY3: =SUMIF(Arbeitsplan!$G12:$G520,"<="&BY2,Arbeitsplan!$L12:$L520) -> 1080 | BZ3: =SUMIF(Arbeitsplan!$G12:$G520,"<="&BZ2,Arbeitsplan!$L12:$L520) -> 1080 | CA3: =SUMIF(Arbeitsplan!$G12:$G520,"<="&CA2,Arbeitsplan!$L12:$L520) -> 1080 | CB3: =SUMIF(Arbeitsplan!$G12:$G520,"<="&CB2,Arbeitsplan!$L12:$L520) -> 1080 | CC3: =SUMIF(Arbeitsplan!$G12:$G520,"<="&CC2,Arbeitsplan!$L12:$L520) -> 1080 | CD3: =SUMIF(Arbeitsplan!$G12:$G520,"<="&CD2,Arbeitsplan!$L12:$L520) -> 1080 | CE3: =SUMIF(Arbeitsplan!$G12:$G520,"<="&CE2,Arbeitsplan!$L12:$L520) -> 1080 | CF3: =SUMIF(Arbeitsplan!$G12:$G520,"<="&CF2,Arbeitsplan!$L12:$L520) -> 1080 | CG3: =SUMIF(Arbeitsplan!$G12:$G520,"<="&CG2,Arbeitsplan!$L12:$L520) -> 1080 | CH3: =SUMIF(Arbeitsplan!$G12:$G520,"<="&CH2,Arbeitsplan!$L12:$L520) -> 1080 | CI3: =SUMIF(Arbeitsplan!$G12:$G520,"<="&CI2,Arbeitsplan!$L12:$L520) -> 1080 | CJ3: =SUMIF(Arbeitsplan!$G12:$G520,"<="&CJ2,Arbeitsplan!$L12:$L520) -> 1080 | CK3: =SUMIF(Arbeitsplan!$G12:$G520,"<="&CK2,Arbeitsplan!$L12:$L520) -> 1080 | CL3: =SUMIF(Arbeitsplan!$G12:$G520,"<="&CL2,Arbeitsplan!$L12:$L520) -> 1080 | CM3: =SUMIF(Arbeitsplan!$G12:$G520,"<="&CM2,Arbeitsplan!$L12:$L520) -> 1080 | CN3: =SUMIF(Arbeitsplan!$G12:$G520,"<="&CN2,Arbeitsplan!$L12:$L520) -> 1080 | CO3: =SUMIF(Arbeitsplan!$G12:$G520,"<="&CO2,Arbeitsplan!$L12:$L520) -> 1080 | CP3: =SUMIF(Arbeitsplan!$G12:$G520,"<="&CP2,Arbeitsplan!$L12:$L520) -> 1080 | CQ3: =SUMIF(Arbeitsplan!$G12:$G520,"<="&CQ2,Arbeitsplan!$L12:$L520) -> 1080 | CR3: =SUMIF(Arbeitsplan!$G12:$G520,"<="&CR2,Arbeitsplan!$L12:$L520) -> 1080 | CS3: =SUMIF(Arbeitsplan!$G12:$G520,"<="&CS2,Arbeitsplan!$L12:$L520) -> 1080 | CT3: =SUMIF(Arbeitsplan!$G12:$G520,"<="&CT2,Arbeitsplan!$L12:$L520) -> 1080 | CU3: =SUMIF(Arbeitsplan!$G12:$G520,"<="&CU2,Arbeitsplan!$L12:$L520) -> 1080 | CV3: =SUMIF(Arbeitsplan!$G12:$G520,"<="&CV2,Arbeitsplan!$L12:$L520) -> 1080 | CW3: =SUMIF(Arbeitsplan!$G12:$G520,"<="&CW2,Arbeitsplan!$L12:$L520) -> 1080 | CX3: =SUMIF(Arbeitsplan!$G12:$G520,"<="&CX2,Arbeitsplan!$L12:$L520) -> 1080 | CY3: =SUMIF(Arbeitsplan!$G12:$G520,"<="&CY2,Arbeitsplan!$L12:$L520) -> 1080 | CZ3: =SUMIF(Arbeitsplan!$G12:$G520,"<="&CZ2,Arbeitsplan!$L12:$L520) -> 1080 | DA3: =SUMIF(Arbeitsplan!$G12:$G520,"<="&DA2,Arbeitsplan!$L12:$L520) -> 1080
A4: =SUMIF(Arbeitsplan!$H12:$H520,"<="&A2,Arbeitsplan!$L12:$L520) -> 0 | B4: =SUMIF(Arbeitsplan!$H12:$H520,"<="&B2,Arbeitsplan!$L12:$L520) -> 0 | C4: =SUMIF(Arbeitsplan!$H12:$H520,"<="&C2,Arbeitsplan!$L12:$L520) -> 0 | D4: =SUMIF(Arbeitsplan!$H12:$H520,"<="&D2,Arbeitsplan!$L12:$L520) -> 0 | E4: =SUMIF(Arbeitsplan!$H12:$H520,"<="&E2,Arbeitsplan!$L12:$L520) -> 0 | F4: =SUMIF(Arbeitsplan!$H12:$H520,"<="&F2,Arbeitsplan!$L12:$L520) -> 0 | G4: =SUMIF(Arbeitsplan!$H12:$H520,"<="&G2,Arbeitsplan!$L12:$L520) -> 0 | H4: =SUMIF(Arbeitsplan!$H12:$H520,"<="&H2,Arbeitsplan!$L12:$L520) -> 0 | I4: =SUMIF(Arbeitsplan!$H12:$H520,"<="&I2,Arbeitsplan!$L12:$L520) -> 0 | J4: =SUMIF(Arbeitsplan!$H12:$H520,"<="&J2,Arbeitsplan!$L12:$L520) -> 0 | K4: =SUMIF(Arbeitsplan!$H12:$H520,"<="&K2,Arbeitsplan!$L12:$L520) -> 0 | L4: =SUMIF(Arbeitsplan!$H12:$H520,"<="&L2,Arbeitsplan!$L12:$L520) -> 0 | M4: =SUMIF(Arbeitsplan!$H12:$H520,"<="&M2,Arbeitsplan!$L12:$L520) -> 0 | N4: =SUMIF(Arbeitsplan!$H12:$H520,"<="&N2,Arbeitsplan!$L12:$L520) -> 0 | O4: =SUMIF(Arbeitsplan!$H12:$H520,"<="&O2,Arbeitsplan!$L12:$L520) -> 0 | P4: =SUMIF(Arbeitsplan!$H12:$H520,"<="&P2,Arbeitsplan!$L12:$L520) -> 0 | Q4: =SUMIF(Arbeitsplan!$H12:$H520,"<="&Q2,Arbeitsplan!$L12:$L520) -> 0 | R4: =SUMIF(Arbeitsplan!$H12:$H520,"<="&R2,Arbeitsplan!$L12:$L520) -> 0 | S4: =SUMIF(Arbeitsplan!$H12:$H520,"<="&S2,Arbeitsplan!$L12:$L520) -> 0 | T4: =SUMIF(Arbeitsplan!$H12:$H520,"<="&T2,Arbeitsplan!$L12:$L520) -> 0 | U4: =SUMIF(Arbeitsplan!$H12:$H520,"<="&U2,Arbeitsplan!$L12:$L520) -> 0 | V4: =SUMIF(Arbeitsplan!$H12:$H520,"<="&V2,Arbeitsplan!$L12:$L520) -> 0 | W4: =SUMIF(Arbeitsplan!$H12:$H520,"<="&W2,Arbeitsplan!$L12:$L520) -> 0 | X4: =SUMIF(Arbeitsplan!$H12:$H520,"<="&X2,Arbeitsplan!$L12:$L520) -> 0 | Y4: =SUMIF(Arbeitsplan!$H12:$H520,"<="&Y2,Arbeitsplan!$L12:$L520) -> 0 | Z4: =SUMIF(Arbeitsplan!$H12:$H520,"<="&Z2,Arbeitsplan!$L12:$L520) -> 0 | AA4: =SUMIF(Arbeitsplan!$H12:$H520,"<="&AA2,Arbeitsplan!$L12:$L520) -> 0 | AB4: =SUMIF(Arbeitsplan!$H12:$H520,"<="&AB2,Arbeitsplan!$L12:$L520) -> 0 | AC4: =SUMIF(Arbeitsplan!$H12:$H520,"<="&AC2,Arbeitsplan!$L12:$L520) -> 0 | AD4: =SUMIF(Arbeitsplan!$H12:$H520,"<="&AD2,Arbeitsplan!$L12:$L520) -> 0 | AE4: =SUMIF(Arbeitsplan!$H12:$H520,"<="&AE2,Arbeitsplan!$L12:$L520) -> 0 | AF4: =SUMIF(Arbeitsplan!$H12:$H520,"<="&AF2,Arbeitsplan!$L12:$L520) -> 0 | AG4: =SUMIF(Arbeitsplan!$H12:$H520,"<="&AG2,Arbeitsplan!$L12:$L520) -> 0 | AH4: =SUMIF(Arbeitsplan!$H12:$H520,"<="&AH2,Arbeitsplan!$L12:$L520) -> 0 | AI4: =SUMIF(Arbeitsplan!$H12:$H520,"<="&AI2,Arbeitsplan!$L12:$L520) -> 0 | AJ4: =SUMIF(Arbeitsplan!$H12:$H520,"<="&AJ2,Arbeitsplan!$L12:$L520) -> 90 | AK4: =SUMIF(Arbeitsplan!$H12:$H520,"<="&AK2,Arbeitsplan!$L12:$L520) -> 90 | AL4: =SUMIF(Arbeitsplan!$H12:$H520,"<="&AL2,Arbeitsplan!$L12:$L520) -> 90 | AM4: =SUMIF(Arbeitsplan!$H12:$H520,"<="&AM2,Arbeitsplan!$L12:$L520) -> 90 | AN4: =SUMIF(Arbeitsplan!$H12:$H520,"<="&AN2,Arbeitsplan!$L12:$L520) -> 90 | AO4: =SUMIF(Arbeitsplan!$H12:$H520,"<="&AO2,Arbeitsplan!$L12:$L520) -> 180 | AP4: =SUMIF(Arbeitsplan!$H12:$H520,"<="&AP2,Arbeitsplan!$L12:$L520) -> 180 | AQ4: =SUMIF(Arbeitsplan!$H12:$H520,"<="&AQ2,Arbeitsplan!$L12:$L520) -> 180 | AR4: =SUMIF(Arbeitsplan!$H12:$H520,"<="&AR2,Arbeitsplan!$L12:$L520) -> 270 | AS4: =SUMIF(Arbeitsplan!$H12:$H520,"<="&AS2,Arbeitsplan!$L12:$L520) -> 270 | AT4: =SUMIF(Arbeitsplan!$H12:$H520,"<="&AT2,Arbeitsplan!$L12:$L520) -> 270 | AU4: =SUMIF(Arbeitsplan!$H12:$H520,"<="&AU2,Arbeitsplan!$L12:$L520) -> 360 | AV4: =SUMIF(Arbeitsplan!$H12:$H520,"<="&AV2,Arbeitsplan!$L12:$L520) -> 360 | AW4: =SUMIF(Arbeitsplan!$H12:$H520,"<="&AW2,Arbeitsplan!$L12:$L520) -> 360 | AX4: =SUMIF(Arbeitsplan!$H12:$H520,"<="&AX2,Arbeitsplan!$L12:$L520) -> 360 | AY4: =SUMIF(Arbeitsplan!$H12:$H520,"<="&AY2,Arbeitsplan!$L12:$L520) -> 450 | AZ4: =SUMIF(Arbeitsplan!$H12:$H520,"<="&AZ2,Arbeitsplan!$L12:$L520) -> 450 | BA4: =SUMIF(Arbeitsplan!$H12:$H520,"<="&BA2,Arbeitsplan!$L12:$L520) -> 540 | BB4: =SUMIF(Arbeitsplan!$H12:$H520,"<="&BB2,Arbeitsplan!$L12:$L520) -> 540 | BC4: =SUMIF(Arbeitsplan!$H12:$H520,"<="&BC2,Arbeitsplan!$L12:$L520) -> 540 | BD4: =SUMIF(Arbeitsplan!$H12:$H520,"<="&BD2,Arbeitsplan!$L12:$L520) -> 540 | BE4: =SUMIF(Arbeitsplan!$H12:$H520,"<="&BE2,Arbeitsplan!$L12:$L520) -> 540 | BF4: =SUMIF(Arbeitsplan!$H12:$H520,"<="&BF2,Arbeitsplan!$L12:$L520) -> 630 | BG4: =SUMIF(Arbeitsplan!$H12:$H520,"<="&BG2,Arbeitsplan!$L12:$L520) -> 630 | BH4: =SUMIF(Arbeitsplan!$H12:$H520,"<="&BH2,Arbeitsplan!$L12:$L520) -> 630 | BI4: =SUMIF(Arbeitsplan!$H12:$H520,"<="&BI2,Arbeitsplan!$L12:$L520) -> 720 | BJ4: =SUMIF(Arbeitsplan!$H12:$H520,"<="&BJ2,Arbeitsplan!$L12:$L520) -> 810 | BK4: =SUMIF(Arbeitsplan!$H12:$H520,"<="&BK2,Arbeitsplan!$L12:$L520) -> 810 | BL4: =SUMIF(Arbeitsplan!$H12:$H520,"<="&BL2,Arbeitsplan!$L12:$L520) -> 810 | BM4: =SUMIF(Arbeitsplan!$H12:$H520,"<="&BM2,Arbeitsplan!$L12:$L520) -> 810 | BN4: =SUMIF(Arbeitsplan!$H12:$H520,"<="&BN2,Arbeitsplan!$L12:$L520) -> 810 | BO4: =SUMIF(Arbeitsplan!$H12:$H520,"<="&BO2,Arbeitsplan!$L12:$L520) -> 810 | BP4: =SUMIF(Arbeitsplan!$H12:$H520,"<="&BP2,Arbeitsplan!$L12:$L520) -> 900 | BQ4: =SUMIF(Arbeitsplan!$H12:$H520,"<="&BQ2,Arbeitsplan!$L12:$L520) -> 900 | BR4: =SUMIF(Arbeitsplan!$H12:$H520,"<="&BR2,Arbeitsplan!$L12:$L520) -> 990 | BS4: =SUMIF(Arbeitsplan!$H12:$H520,"<="&BS2,Arbeitsplan!$L12:$L520) -> 990 | BT4: =SUMIF(Arbeitsplan!$H12:$H520,"<="&BT2,Arbeitsplan!$L12:$L520) -> 990 | BU4: =SUMIF(Arbeitsplan!$H12:$H520,"<="&BU2,Arbeitsplan!$L12:$L520) -> 990 | BV4: =SUMIF(Arbeitsplan!$H12:$H520,"<="&BV2,Arbeitsplan!$L12:$L520) -> 990 | BW4: =SUMIF(Arbeitsplan!$H12:$H520,"<="&BW2,Arbeitsplan!$L12:$L520) -> 990 | BX4: =SUMIF(Arbeitsplan!$H12:$H520,"<="&BX2,Arbeitsplan!$L12:$L520) -> 990 | BY4: =SUMIF(Arbeitsplan!$H12:$H520,"<="&BY2,Arbeitsplan!$L12:$L520) -> 990 | BZ4: =SUMIF(Arbeitsplan!$H12:$H520,"<="&BZ2,Arbeitsplan!$L12:$L520) -> 990 | CA4: =SUMIF(Arbeitsplan!$H12:$H520,"<="&CA2,Arbeitsplan!$L12:$L520) -> 1080 | CB4: =SUMIF(Arbeitsplan!$H12:$H520,"<="&CB2,Arbeitsplan!$L12:$L520) -> 1080 | CC4: =SUMIF(Arbeitsplan!$H12:$H520,"<="&CC2,Arbeitsplan!$L12:$L520) -> 1080 | CD4: =SUMIF(Arbeitsplan!$H12:$H520,"<="&CD2,Arbeitsplan!$L12:$L520) -> 1080 | CE4: =SUMIF(Arbeitsplan!$H12:$H520,"<="&CE2,Arbeitsplan!$L12:$L520) -> 1080 | CF4: =SUMIF(Arbeitsplan!$H12:$H520,"<="&CF2,Arbeitsplan!$L12:$L520) -> 1080 | CG4: =SUMIF(Arbeitsplan!$H12:$H520,"<="&CG2,Arbeitsplan!$L12:$L520) -> 1080 | CH4: =SUMIF(Arbeitsplan!$H12:$H520,"<="&CH2,Arbeitsplan!$L12:$L520) -> 1080 | CI4: =SUMIF(Arbeitsplan!$H12:$H520,"<="&CI2,Arbeitsplan!$L12:$L520) -> 1080 | CJ4: =SUMIF(Arbeitsplan!$H12:$H520,"<="&CJ2,Arbeitsplan!$L12:$L520) -> 1080 | CK4: =SUMIF(Arbeitsplan!$H12:$H520,"<="&CK2,Arbeitsplan!$L12:$L520) -> 1080 | CL4: =SUMIF(Arbeitsplan!$H12:$H520,"<="&CL2,Arbeitsplan!$L12:$L520) -> 1080 | CM4: =SUMIF(Arbeitsplan!$H12:$H520,"<="&CM2,Arbeitsplan!$L12:$L520) -> 1080 | CN4: =SUMIF(Arbeitsplan!$H12:$H520,"<="&CN2,Arbeitsplan!$L12:$L520) -> 1080 | CO4: =SUMIF(Arbeitsplan!$H12:$H520,"<="&CO2,Arbeitsplan!$L12:$L520) -> 1080 | CP4: =SUMIF(Arbeitsplan!$H12:$H520,"<="&CP2,Arbeitsplan!$L12:$L520) -> 1080 | CQ4: =SUMIF(Arbeitsplan!$H12:$H520,"<="&CQ2,Arbeitsplan!$L12:$L520) -> 1080 | CR4: =SUMIF(Arbeitsplan!$H12:$H520,"<="&CR2,Arbeitsplan!$L12:$L520) -> 1080 | CS4: =SUMIF(Arbeitsplan!$H12:$H520,"<="&CS2,Arbeitsplan!$L12:$L520) -> 1080 | CT4: =SUMIF(Arbeitsplan!$H12:$H520,"<="&CT2,Arbeitsplan!$L12:$L520) -> 1080 | CU4: =SUMIF(Arbeitsplan!$H12:$H520,"<="&CU2,Arbeitsplan!$L12:$L520) -> 1080 | CV4: =SUMIF(Arbeitsplan!$H12:$H520,"<="&CV2,Arbeitsplan!$L12:$L520) -> 1080 | CW4: =SUMIF(Arbeitsplan!$H12:$H520,"<="&CW2,Arbeitsplan!$L12:$L520) -> 1080 | CX4: =SUMIF(Arbeitsplan!$H12:$H520,"<="&CX2,Arbeitsplan!$L12:$L520) -> 1080 | CY4: =SUMIF(Arbeitsplan!$H12:$H520,"<="&CY2,Arbeitsplan!$L12:$L520) -> 1080 | CZ4: =SUMIF(Arbeitsplan!$H12:$H520,"<="&CZ2,Arbeitsplan!$L12:$L520) -> 1080 | DA4: =SUMIF(Arbeitsplan!$H12:$H520,"<="&DA2,Arbeitsplan!$L12:$L520) -> 1080

Sheet Projekt_1
A1: =RIGHT(CELL("dateiname"),LEN(CELL("dateiname"))-FIND("]",CELL("dateiname"))) -> Übersicht | B1: Studie | C1: Konzept | D1: Entwicklung | E1: Pflege | G1: =HYPERLINK("#Übersicht!A1","Zurück zur Übersicht") -> Zurück zur Übersicht
A2: T min [Monate] | B2: 2.0 | C2: 2.0 | D2: 2.0 | E2: 2.0
A3: FTE min | B3: 2.0 | C3: 2.0 | D3: 2.0 | E3: 2.0
A4: Projektleitung | B4: 20 | C4: 20 | D4: 20 | E4: 20
A5: Entwicklung | B5: 40 | C5: 40 | D5: 40 | E5: 40
A6: Test | B6: 30 | C6: 30 | D6: 30 | E6: 30
A8: Summe | B8: =SUM(B4:B6) -> 90.0 | C8: =SUM(C4:C6) -> 90.0 | D8: =SUM(D4:D6) -> 90.0 | E8: =SUM(E4:E6) -> 90.0
A9: Fast | B9: =B2 -> 2.0 | C9: =C2 -> 2.0 | D9: =D2 -> 2.0 | E9: =E2 -> 2.0
A10: Medium | B10: =AVERAGE(B9,B11) -> 2.3 | C10: =AVERAGE(C9,C11) -> 2.3 | D10: =AVERAGE(D9,D11) -> 2.3 | E10: =AVERAGE(E9,E11) -> 2.3
A11: Slow | B11: =IF(B3=0,0,IF(B8/B3/18>B9,B8/B3/18,"FTEmin!")) -> 2.5 | C11: =IF(C3=0,0,IF(C8/C3/18>C9,C8/C3/18,"FTEmin!")) -> 2.5 | D11: =IF(D3=0,0,IF(D8/D3/18>D9,D8/D3/18,"FTEmin!")) -> 2.5 | E11: =IF(E3=0,0,IF(E8/E3/18>E9,E8/E3/18,"FTEmin!")) -> 2.5
A12: FTE min | B12: =B3 -> 2.0 | C12: =C3 -> 2.0 | D12: =D3 -> 2.0 | E12: =E3 -> 2.0
A13: FTE mittel | B13: =AVERAGE(B12,B14) -> 2.3 | C13: =AVERAGE(C12,C14) -> 2.3 | D13: =AVERAGE(D12,D14) -> 2.3 | E13: =AVERAGE(E12,E14) -> 2.3
A14: FTE max | B14: =IF(B2=0,0,B8/B2/18) -> 2.5 | C14: =IF(C2=0,0,C8/C2/18) -> 2.5 | D14: =IF(D2=0,0,D8/D2/18) -> 2.5 | E14: =IF(E2=0,0,E8/E2/18) -> 2.5
A16: Projekt / ggf. Planungsszenario
A21: Projekt offene Fragen

Sheet Projekt_2
A1: =RIGHT(CELL("dateiname"),LEN(CELL("dateiname"))-FIND("]",CELL("dateiname"))) -> Übersicht | B1: Studie | C1: Konzept | D1: Entwicklung | E1: Pflege | G1: =HYPERLINK("#Übersicht!A1","Zurück zur Übersicht") -> Zurück zur Übersicht
A2: T min [Monate] | B2: 2.0 | C2: 2.0 | D2: 2.0 | E2: 2.0
A3: FTE min | B3: 2.0 | C3: 2.0 | D3: 2.0 | E3: 2.0
A4: Projektleitung | B4: 20 | C4: 20 | D4: 20 | E4: 20
A5: Entwicklung | B5: 40 | C5: 40 | D5: 40 | E5: 40
A6: Test | B6: 30 | C6: 30 | D6: 30 | E6: 30
A8: Summe | B8: =SUM(B4:B6) -> 90.0 | C8: =SUM(C4:C6) -> 90.0 | D8: =SUM(D4:D6) -> 90.0 | E8: =SUM(E4:E6) -> 90.0
A9: Fast | B9: =B2 -> 2.0 | C9: =C2 -> 2.0 | D9: =D2 -> 2.0 | E9: =E2 -> 2.0
A10: Medium | B10: =AVERAGE(B9,B11) -> 2.3 | C10: =AVERAGE(C9,C11) -> 2.3 | D10: =AVERAGE(D9,D11) -> 2.3 | E10: =AVERAGE(E9,E11) -> 2.3
A11: Slow | B11: =IF(B3=0,0,IF(B8/B3/18>B9,B8/B3/18,"FTEmin!")) -> 2.5 | C11: =IF(C3=0,0,IF(C8/C3/18>C9,C8/C3/18,"FTEmin!")) -> 2.5 | D11: =IF(D3=0,0,IF(D8/D3/18>D9,D8/D3/18,"FTEmin!")) -> 2.5 | E11: =IF(E3=0,0,IF(E8/E3/18>E9,E8/E3/18,"FTEmin!")) -> 2.5
A12: FTE min | B12: =B3 -> 2.0 | C12: =C3 -> 2.0 | D12: =D3 -> 2.0 | E12: =E3 -> 2.0
A13: FTE mittel | B13: =AVERAGE(B12,B14) -> 2.3 | C13: =AVERAGE(C12,C14) -> 2.3 | D13: =AVERAGE(D12,D14) -> 2.3 | E13: =AVERAGE(E12,E14) -> 2.3
A14: FTE max | B14: =IF(B2=0,0,B8/B2/18) -> 2.5 | C14: =IF(C2=0,0,C8/C2/18) -> 2.5 | D14: =IF(D2=0,0,D8/D2/18) -> 2.5 | E14: =IF(E2=0,0,E8/E2/18) -> 2.5
A16: Projekt / ggf. Planungsszenario
A21: Projekt offene Fragen

Sheet Projekt_3
A1: =RIGHT(CELL("dateiname"),LEN(CELL("dateiname"))-FIND("]",CELL("dateiname"))) -> Übersicht | B1: Studie | C1: Konzept | D1: Entwicklung | E1: Pflege | G1: =HYPERLINK("#Übersicht!A1","Zurück zur Übersicht") -> Zurück zur Übersicht
A2: T min [Monate] | B2: 2.0 | C2: 2.0 | D2: 2.0 | E2: 2.0
A3: FTE min | B3: 2.0 | C3: 2.0 | D3: 2.0 | E3: 2.0
A4: Projektleitung | B4: 20 | C4: 20 | D4: 20 | E4: 20
A5: Entwicklung | B5: 40 | C5: 40 | D5: 40 | E5: 40
A6: Test | B6: 30 | C6: 30 | D6: 30 | E6: 30
A8: Summe | B8: =SUM(B4:B6) -> 90.0 | C8: =SUM(C4:C6) -> 90.0 | D8: =SUM(D4:D6) -> 90.0 | E8: =SUM(E4:E6) -> 90.0
A9: Fast | B9: =B2 -> 2.0 | C9: =C2 -> 2.0 | D9: =D2 -> 2.0 | E9: =E2 -> 2.0
A10: Medium | B10: =AVERAGE(B9,B11) -> 2.3 | C10: =AVERAGE(C9,C11) -> 2.3 | D10: =AVERAGE(D9,D11) -> 2.3 | E10: =AVERAGE(E9,E11) -> 2.3
A11: Slow | B11: =IF(B3=0,0,IF(B8/B3/18>B9,B8/B3/18,"FTEmin!")) -> 2.5 | C11: =IF(C3=0,0,IF(C8/C3/18>C9,C8/C3/18,"FTEmin!")) -> 2.5 | D11: =IF(D3=0,0,IF(D8/D3/18>D9,D8/D3/18,"FTEmin!")) -> 2.5 | E11: =IF(E3=0,0,IF(E8/E3/18>E9,E8/E3/18,"FTEmin!")) -> 2.5
A12: FTE min | B12: =B3 -> 2.0 | C12: =C3 -> 2.0 | D12: =D3 -> 2.0 | E12: =E3 -> 2.0
A13: FTE mittel | B13: =AVERAGE(B12,B14) -> 2.3 | C13: =AVERAGE(C12,C14) -> 2.3 | D13: =AVERAGE(D12,D14) -> 2.3 | E13: =AVERAGE(E12,E14) -> 2.3
A14: FTE max | B14: =IF(B2=0,0,B8/B2/18) -> 2.5 | C14: =IF(C2=0,0,C8/C2/18) -> 2.5 | D14: =IF(D2=0,0,D8/D2/18) -> 2.5 | E14: =IF(E2=0,0,E8/E2/18) -> 2.5
A16: Projekt / ggf. Planungsszenario
A21: Projekt offene Fragen

Sheet Projekt_4
A1: =RIGHT(CELL("dateiname"),LEN(CELL("dateiname"))-FIND("]",CELL("dateiname"))) -> Übersicht | B1: Studie | C1: Konzept | D1: Entwicklung | E1: Pflege | G1: =HYPERLINK("#Übersicht!A1","Zurück zur Übersicht") -> Zurück zur Übersicht
A2: T min [Monate] | B2: 2.0 | C2: 2.0 | D2: 2.0 | E2: 2.0
A3: FTE min | B3: 2.0 | C3: 2.0 | D3: 2.0 | E3: 2.0
A4: Projektleitung | B4: 20 | C4: 20 | D4: 20 | E4: 20
A5: Entwicklung | B5: 40 | C5: 40 | D5: 40 | E5: 40
A6: Test | B6: 30 | C6: 30 | D6: 30 | E6: 30
A8: Summe | B8: =SUM(B4:B6) -> 90.0 | C8: =SUM(C4:C6) -> 90.0 | D8: =SUM(D4:D6) -> 90.0 | E8: =SUM(E4:E6) -> 90.0
A9: Fast | B9: =B2 -> 2.0 | C9: =C2 -> 2.0 | D9: =D2 -> 2.0 | E9: =E2 -> 2.0
A10: Medium | B10: =AVERAGE(B9,B11) -> 2.3 | C10: =AVERAGE(C9,C11) -> 2.3 | D10: =AVERAGE(D9,D11) -> 2.3 | E10: =AVERAGE(E9,E11) -> 2.3
A11: Slow | B11: =IF(B3=0,0,IF(B8/B3/18>B9,B8/B3/18,"FTEmin!")) -> 2.5 | C11: =IF(C3=0,0,IF(C8/C3/18>C9,C8/C3/18,"FTEmin!")) -> 2.5 | D11: =IF(D3=0,0,IF(D8/D3/18>D9,D8/D3/18,"FTEmin!")) -> 2.5 | E11: =IF(E3=0,0,IF(E8/E3/18>E9,E8/E3/18,"FTEmin!")) -> 2.5
A12: FTE min | B12: =B3 -> 2.0 | C12: =C3 -> 2.0 | D12: =D3 -> 2.0 | E12: =E3 -> 2.0
A13: FTE mittel | B13: =AVERAGE(B12,B14) -> 2.3 | C13: =AVERAGE(C12,C14) -> 2.3 | D13: =AVERAGE(D12,D14) -> 2.3 | E13: =AVERAGE(E12,E14) -> 2.3
A14: FTE max | B14: =IF(B2=0,0,B8/B2/18) -> 2.5 | C14: =IF(C2=0,0,C8/C2/18) -> 2.5 | D14: =IF(D2=0,0,D8/D2/18) -> 2.5 | E14: =IF(E2=0,0,E8/E2/18) -> 2.5
A16: Projekt / ggf. Planungsszenario
A21: Projekt offene Fragen

Sheet Leer
A1: =RIGHT(CELL("dateiname"),LEN(CELL("dateiname"))-FIND("]",CELL("dateiname"))) -> Übersicht | B1: Studie | C1: Konzept | D1: Entwicklung | E1: Pflege | G1: =HYPERLINK("#Übersicht!A1","Zurück zur Übersicht") -> Zurück zur Übersicht
A2: T min [Monate]
A3: FTE min
A4: Projektleitung
A5: Entwicklung
A6: Test
A8: Summe | B8: =SUM(B4:B6) -> 0.0 | C8: =SUM(C4:C6) -> 0.0 | D8: =SUM(D4:D6) -> 0.0 | E8: =SUM(E4:E6) -> 0.0
A9: Fast | B9: =B2 -> 0.0 | C9: =C2 -> 0.0 | D9: =D2 -> 0.0 | E9: =E2 -> 0.0
A10: Medium | B10: =AVERAGE(B9,B11) -> 0.0 | C10: =AVERAGE(C9,C11) -> 0.0 | D10: =AVERAGE(D9,D11) -> 0.0 | E10: =AVERAGE(E9,E11) -> 0.0
A11: Slow | B11: =IF(B3=0,0,IF(B8/B3/18>B9,B8/B3/18,"FTEmin!")) -> 0.0 | C11: =IF(C3=0,0,IF(C8/C3/18>C9,C8/C3/18,"FTEmin!")) -> 0.0 | D11: =IF(D3=0,0,IF(D8/D3/18>D9,D8/D3/18,"FTEmin!")) -> 0.0 | E11: =IF(E3=0,0,IF(E8/E3/18>E9,E8/E3/18,"FTEmin!")) -> 0.0
A12: FTE min | B12: =B3 -> 0.0 | C12: =C3 -> 0.0 | D12: =D3 -> 0.0 | E12: =E3 -> 0.0
A13: FTE mittel | B13: =AVERAGE(B12,B14) -> 0.0 | C13: =AVERAGE(C12,C14) -> 0.0 | D13: =AVERAGE(D12,D14) -> 0.0 | E13: =AVERAGE(E12,E14) -> 0.0
A14: FTE max | B14: =IF(B2=0,0,B8/B2/18) -> 0.0 | C14: =IF(C2=0,0,C8/C2/18) -> 0.0 | D14: =IF(D2=0,0,D8/D2/18) -> 0.0 | E14: =IF(E2=0,0,E8/E2/18) -> 0.0
A16: Projekt / ggf. Planungsszenario
A21: Projekt offene Fragen
